Workbook

Sheet Info
B3: Creation Date | D3: 2020-03-27
B4: Client | D4: Austroads
B5: Project | D5: Investment prioritisation framework
B6: Description | D6: Investment prioritisation template
B7: Author | D7: Martin Chow and Dylan Frangos
B8: Version | D8: 1

Sheet About
A1: =MID(CELL("filename",A2),FIND("]",CELL("filename",A2))+1,256) -> About
A2: Insert description
B4: About the Austroads investment prioritisation tool
B6: General
B7: The Austroads investment prioritisation tool illustrates how to draw upon the outputs of the decision-making processes of road authorities to enable a like-for-like comparison of different investments. In general, the investment prioritisation tool compares various user defined scenarios to compare and contrast the investments undertaken in each scenario.
B9: The layout of the investment prioritisation tool follows two modelling conventions: 1) Colour scheme for cells; and 2) Outputs, inputs and calculation tab structure
B11: These modelling conventions are described below
B13: Colour scheme
B14: Each cell in the investment prioritisation tool follows a colour scheme that provides guidance as to which cells can be modified by the user and which cells should not be modified. Each colour used is described below.
B16: Colour | C16: Cell type | D16: Cell description | E16: User inputs
C17: Parameter cell | D17: These cells provide the tool with general parameter inputs such as discount rates and funding levels. They allow the user to change parameters as required. | E17: Yes
C18: Input cell | D18: These cells provide the tool with input estimates. They allow the user to enter inputs relevant to the calculation. | E18: Yes
C19: Calculation cell | D19: Calculation cells are where the tool makes calculations required for optimisation and production of the dashboard. These cells do not need input from the user. | E19: No
C20: Output cell | D20: Output cells draw on calculation cells to report results of the tool. These cells do not require input from the user. | E20: No
B22: Output tabs
B24: O1 User interface
B25: This tab enables users to input parameters that define the scenarios to be examined. These parameters include levels of funding and performance outcomes, eg, target level of reduced fatalities.
B27: O2 Dashboard
B28: This tab contains a summary of the optimisation results dynamically under each inputted scenario.
B30: Input tabs
B32: I1 Inputs
B33: The purpose of this tab is for the user to input the necessary data to undertake the optimisation procedure. The inputs that are required cover areas such as project descriptors, outputs of CBA, performance measures, risk assessments and asset condition.
B35: I2 Definitions
B36: The purpose of this tab is for the user to populate the naming conventions used in the drop-down boxes used elsewhere in the tool. In other words, the user can adjust the default naming conventions to reflect their road authority's approach to descriptions regarding characteristics such as service groups.
B38: Calculation tabs
B40: C1 Portfolio construction
B41: This tab contains the optimisation procedure, drawing on the inputs and scenarios defined by the user. The user can activate the optimisation procedure by clicking the button 'run optimisation procedure'.
B43: C2 Dashboard data
B44: This tab automatically extracts data from the outputs of the optimisation procedure to undertake the calculations underpinning the dashboard.
B46: Solver add-in
B47: The investment prioritisation tool uses a Solver add-in to find the highest NPV portfolio of individual projects or investments. The Solver add-in performs the optimisation task by using linear programming to maximise portfolio NPV, constrained by budget and performance level requirements.
B49: Other constraints are required to run the tool, which are binary 0/1 switches that enable the Solver add-in to turn on and off investments and that the remaining unused funding need to be larger than or equal to zero.
B51: A screenshot of the Solver add-in interface is shown below.
B82: The solver can be activated by clicking the 'run optimisation procedure' button on C1 Portfolio construction.

Sheet Outputs =>
A1: =MID(CELL("filename",A2),FIND("]",CELL("filename",A2))+1,256) -> Outputs =>

Sheet O1 User interface
A1: =MID(CELL("filename",A2),FIND("]",CELL("filename",A2))+1,256) -> O1 User interface
B4: User interface
B6: Description
B7: This tab enables users to input parameters that define the scenarios to be examined. These parameters include levels of funding and performance outcomes, eg, target level of reduced fatalities over the next 10 years.
B9: Scenario construction
B11: Scenario construction
B13: Scenario | C13: Budget ($) | D13: Target number of lives saved over next 10 years | E13: Target number of hours saved (millions) | F13: Maximum risk tolerance | G13: Weighted proportion of road in pavement condition
B14: Scenario 1 | C14: 200000000 | D14: 0 | E14: 0 | F14: 25 | G14: 0
B15: Scenario 2 | C15: 100000000 | D15: 0 | E15: 0 | F15: 25 | G15: 0
B16: Scenario 3 | C16: 200000000 | D16: 60 | E16: 0 | F16: 15 | G16: 0
B17: Scenario 4 | C17: 200000000 | D17: 90 | E17: 0 | F17: 15 | G17: 0

Sheet O2 Dashboard
A1: =MID(CELL("filename",A2),FIND("]",CELL("filename",A2))+1,256) -> O2 Dashboard
B3: Scenario selection
B5: Active scenario
B6: Scenario selection/index | C6: Scenario 1 | D6: =MATCH(C6,'I2 Definitions'!B12:B15,0) -> 1
B10: ="Portfolio outcomes under " & active_scenario -> Portfolio outcomes under Scenario 1
B12: Aggregate portfolio characteristics
B14: Breakdown of portfolio net present value ($m) | G14: Summary of portfolio characteristics | N14: Portfolio composition
G15: Outcome | H15: Funding all investments | I15: Scenario 1 | J15: Scenario 2 | K15: Scenario 3 | L15: Scenario 4 | N15: ='C2 Dashboard data'!B22 -> Project | O15: ='C2 Dashboard data'!M22 -> Asset class | P15: ='C2 Dashboard data'!C22 -> NPV ($m) | Q15: ='C2 Dashboard data'!D22 -> Costs (PV $m) | R15: ='C2 Dashboard data'!E22 -> Safety benefits (PV $m) | S15: ='C2 Dashboard data'!F22 -> User travel costs (PV $m) | T15: ='C2 Dashboard data'!G22 -> Other benefits (PV $m) | U15: ='C2 Dashboard data'!H22 -> Lives saved over first 10 years | V15: ='C2 Dashboard data'!I22 -> Hours of travel time saved (millions) | W15: Length of road (km) | X15: Proportion of road in good condition (without investment) | Y15: Proportion of road in good condition (with investment)
G16: Expected avoided fatalities (first ten years) | H16: =SUM('I1 Inputs'!L13:L42) -> 130.01 | I16: ='C1 Portfolio construction'!I93 -> 49.01 | J16: ='C1 Portfolio construction'!I128 -> 42.01 | K16: ='C1 Portfolio construction'!I163 -> 76.01 | L16: ='C1 Portfolio construction'!I198 -> 91.01 | N16: ='C2 Dashboard data'!B23 -> Project 7 | O16: ='C2 Dashboard data'!M23 -> Pavements | P16: ='C2 Dashboard data'!C23 -> 87.859091 | Q16: ='C2 Dashboard data'!D23 -> 43.222042 | R16: ='C2 Dashboard data'!E23 -> 73.826636 | S16: ='C2 Dashboard data'!F23 -> 52.824104 | T16: ='C2 Dashboard data'!G23 -> 4.430393 | U16: ='C2 Dashboard data'!H23 -> 7 | V16: ='C2 Dashboard data'!I23 -> 1 | W16: ='C2 Dashboard data'!O23 -> 400 | X16: ='C2 Dashboard data'!P23 -> 0.93 | Y16: ='C2 Dashboard data'!Q23 -> 0.96
G17: Hours of travel time saved (millions) | H17: =SUM('I1 Inputs'!M13:M42) -> 51.5 | I17: ='C1 Portfolio construction'!J93 -> 14.5 | J17: ='C1 Portfolio construction'!J128 -> 18.2 | K17: ='C1 Portfolio construction'!J163 -> 29.5 | L17: ='C1 Portfolio construction'!J198 -> 42.5 | N17: ='C2 Dashboard data'!B24 -> Project 9 | O17: ='C2 Dashboard data'!M24 -> Pavements | P17: ='C2 Dashboard data'!C24 -> 87.60994 | Q17: ='C2 Dashboard data'!D24 -> 36.179264 | R17: ='C2 Dashboard data'!E24 -> 72.353852 | S17: ='C2 Dashboard data'!F24 -> 46.891955 | T17: ='C2 Dashboard data'!G24 -> 4.543397 | U17: ='C2 Dashboard data'!H24 -> 6 | V17: ='C2 Dashboard data'!I24 -> 1 | W17: ='C2 Dashboard data'!O24 -> 800 | X17: ='C2 Dashboard data'!P24 -> 0.88 | Y17: ='C2 Dashboard data'!Q24 -> 0.93
G18: Net benefits ($m) | H18: =SUM('I1 Inputs'!G13:G42)/10^6 -> 428.8109996 | I18: ='C1 Portfolio construction'!D93/10^6 -> 429.4257836 | J18: ='C1 Portfolio construction'!D128/10^6 -> 209.3079598 | K18: ='C1 Portfolio construction'!D163/10^6 -> 377.2919136 | L18: ='C1 Portfolio construction'!D198/10^6 -> 201.7285276 | N18: ='C2 Dashboard data'!B25 -> Project 6 | O18: ='C2 Dashboard data'!M25 -> Pavements | P18: ='C2 Dashboard data'!C25 -> 84.13593185 | Q18: ='C2 Dashboard data'!D25 -> 35.66984741 | R18: ='C2 Dashboard data'!E25 -> 61.47490449 | S18: ='C2 Dashboard data'!F25 -> 54.43550339 | T18: ='C2 Dashboard data'!G25 -> 3.895371375 | U18: ='C2 Dashboard data'!H25 -> 8 | V18: ='C2 Dashboard data'!I25 -> 1.3 | W18: ='C2 Dashboard data'!O25 -> 400 | X18: ='C2 Dashboard data'!P25 -> 0.9 | Y18: ='C2 Dashboard data'!Q25 -> 0.97
G19: Total benefits ($m) | H19: =SUM('I1 Inputs'!I13:K42)/10^6 -> 759.7631687 | I19: =SUM('C1 Portfolio construction'!F93:H93)/10^6 -> 618.6155717 | J19: =SUM('C1 Portfolio construction'!F128:H128)/10^6 -> 307.9171375 | K19: =SUM('C1 Portfolio construction'!F163:H163)/10^6 -> 564.1013977 | L19: =SUM('C1 Portfolio construction'!F198:H198)/10^6 -> 390.9708787 | N19: ='C2 Dashboard data'!B26 -> Project 10 | O19: ='C2 Dashboard data'!M26 -> Pavements | P19: ='C2 Dashboard data'!C26 -> 80.506112 | Q19: ='C2 Dashboard data'!D26 -> 31.160641 | R19: ='C2 Dashboard data'!E26 -> 48.959368 | S19: ='C2 Dashboard data'!F26 -> 59.569752 | T19: ='C2 Dashboard data'!G26 -> 3.137633 | U19: ='C2 Dashboard data'!H26 -> 9 | V19: ='C2 Dashboard data'!I26 -> 1 | W19: ='C2 Dashboard data'!O26 -> 1100 | X19: ='C2 Dashboard data'!P26 -> 0.8 | Y19: ='C2 Dashboard data'!Q26 -> 0.9
G20: Capital cost ($m) | H20: =SUM('I1 Inputs'!H13:H42)/10^6 -> 330.9521691 | I20: ='C1 Portfolio construction'!E93/10^6 -> 189.1897881 | J20: ='C1 Portfolio construction'!E128/10^6 -> 98.6091777 | K20: ='C1 Portfolio construction'!E163/10^6 -> 186.8094841 | L20: ='C1 Portfolio construction'!E198/10^6 -> 189.2423511 | N20: ='C2 Dashboard data'!B27 -> Project 8 | O20: ='C2 Dashboard data'!M27 -> Pavements | P20: ='C2 Dashboard data'!C27 -> 73.149081 | Q20: ='C2 Dashboard data'!D27 -> 38.893698 | R20: ='C2 Dashboard data'!E27 -> 54.183073 | S20: ='C2 Dashboard data'!F27 -> 54.012382 | T20: ='C2 Dashboard data'!G27 -> 3.847324 | U20: ='C2 Dashboard data'!H27 -> 10 | V20: ='C2 Dashboard data'!I27 -> 1 | W20: ='C2 Dashboard data'!O27 -> 800 | X20: ='C2 Dashboard data'!P27 -> 0.94 | Y20: ='C2 Dashboard data'!Q27 -> 0.97
G21: Proportion of road in good condition (no investment) | H21: =SUMPRODUCT('C2 Dashboard data'!$D$110:$D$139,'C2 Dashboard data'!$F$110:$F$139) -> 0.8765714286 | I21: =SUMPRODUCT('C2 Dashboard data'!$D$110:$D$139,'C2 Dashboard data'!$F$110:$F$139) -> 0.8765714286 | J21: =SUMPRODUCT('C2 Dashboard data'!$D$110:$D$139,'C2 Dashboard data'!$F$110:$F$139) -> 0.8765714286 | K21: =SUMPRODUCT('C2 Dashboard data'!$D$110:$D$139,'C2 Dashboard data'!$F$110:$F$139) -> 0.8765714286 | L21: =SUMPRODUCT('C2 Dashboard data'!$D$110:$D$139,'C2 Dashboard data'!$F$110:$F$139) -> 0.8765714286 | N21: ='C2 Dashboard data'!B28 -> Project 25 | O21: ='C2 Dashboard data'!M28 -> Traffic facility | P21: ='C2 Dashboard data'!C28 -> 1.15262 | Q21: ='C2 Dashboard data'!D28 -> 0.112035 | R21: ='C2 Dashboard data'!E28 -> 0.022642 | S21: ='C2 Dashboard data'!F28 -> 0.093953 | T21: ='C2 Dashboard data'!G28 -> 1.14806 | U21: ='C2 Dashboard data'!H28 -> 1 | V21: ='C2 Dashboard data'!I28 -> 1 | W21: ='C2 Dashboard data'!O28 ->  | X21: ='C2 Dashboard data'!P28 ->  | Y21: ='C2 Dashboard data'!Q28 -> 
G22: Proportion of road in good condition (investment) | H22: =SUMPRODUCT('C2 Dashboard data'!J110:J139,'C2 Dashboard data'!L110:L139) -> 0.9377142857 | I22: ='C1 Portfolio construction'!Q93 -> 0.9377142857 | J22: ='C1 Portfolio construction'!Q128 -> 0.8914285714 | K22: ='C1 Portfolio construction'!Q163 -> 0.9308571429 | L22: ='C1 Portfolio construction'!Q198 -> 0.888 | N22: ='C2 Dashboard data'!B29 -> Project 29 | O22: ='C2 Dashboard data'!M29 -> Traffic facility | P22: ='C2 Dashboard data'!C29 -> 1.081725 | Q22: ='C2 Dashboard data'!D29 -> 0.111433 | R22: ='C2 Dashboard data'!E29 -> 0.022131 | S22: ='C2 Dashboard data'!F29 -> 0.095855 | T22: ='C2 Dashboard data'!G29 -> 1.075172 | U22: ='C2 Dashboard data'!H29 -> 1 | V22: ='C2 Dashboard data'!I29 -> 1 | W22: ='C2 Dashboard data'!O29 ->  | X22: ='C2 Dashboard data'!P29 ->  | Y22: ='C2 Dashboard data'!Q29 -> 
N23: ='C2 Dashboard data'!B30 -> Project 28 | O23: ='C2 Dashboard data'!M30 -> Traffic facility | P23: ='C2 Dashboard data'!C30 -> 1.066856 | Q23: ='C2 Dashboard data'!D30 -> 0.161622 | R23: ='C2 Dashboard data'!E30 -> 0.023334 | S23: ='C2 Dashboard data'!F30 -> 0.081416 | T23: ='C2 Dashboard data'!G30 -> 1.123728 | U23: ='C2 Dashboard data'!H30 -> 1 | V23: ='C2 Dashboard data'!I30 -> 1 | W23: ='C2 Dashboard data'!O30 ->  | X23: ='C2 Dashboard data'!P30 ->  | Y23: ='C2 Dashboard data'!Q30 -> 
N24: ='C2 Dashboard data'!B31 -> Project 30 | O24: ='C2 Dashboard data'!M31 -> Traffic facility | P24: ='C2 Dashboard data'!C31 -> 1.038671 | Q24: ='C2 Dashboard data'!D31 -> 0.162763 | R24: ='C2 Dashboard data'!E31 -> 0.014612 | S24: ='C2 Dashboard data'!F31 -> 0.088817 | T24: ='C2 Dashboard data'!G31 -> 1.098005 | U24: ='C2 Dashboard data'!H31 -> 1 | V24: ='C2 Dashboard data'!I31 -> 1 | W24: ='C2 Dashboard data'!O31 ->  | X24: ='C2 Dashboard data'!P31 ->  | Y24: ='C2 Dashboard data'!Q31 -> 
N25: ='C2 Dashboard data'!B32 -> Project 22 | O25: ='C2 Dashboard data'!M32 -> Traffic facility | P25: ='C2 Dashboard data'!C32 -> 0.91069 | Q25: ='C2 Dashboard data'!D32 -> 0.133117 | R25: ='C2 Dashboard data'!E32 -> 0.021547 | S25: ='C2 Dashboard data'!F32 -> 0.06899 | T25: ='C2 Dashboard data'!G32 -> 0.95327 | U25: ='C2 Dashboard data'!H32 -> 1 | V25: ='C2 Dashboard data'!I32 -> 1 | W25: ='C2 Dashboard data'!O32 ->  | X25: ='C2 Dashboard data'!P32 ->  | Y25: ='C2 Dashboard data'!Q32 -> 
N26: ='C2 Dashboard data'!B33 -> Project 21 | O26: ='C2 Dashboard data'!M33 -> Traffic facility | P26: ='C2 Dashboard data'!C33 -> 0.8803434421 | Q26: ='C2 Dashboard data'!D33 -> 0.139 | R26: ='C2 Dashboard data'!E33 -> 0.01868515758 | S26: ='C2 Dashboard data'!F33 -> 0.07899020152 | T26: ='C2 Dashboard data'!G33 -> 0.921668083 | U26: ='C2 Dashboard data'!H33 -> 0.01 | V26: ='C2 Dashboard data'!I33 -> 0.2 | W26: ='C2 Dashboard data'!O33 ->  | X26: ='C2 Dashboard data'!P33 ->  | Y26: ='C2 Dashboard data'!Q33 -> 
N27: ='C2 Dashboard data'!B34 -> Project 19 | O27: ='C2 Dashboard data'!M34 -> Structures | P27: ='C2 Dashboard data'!C34 -> 0.845977 | Q27: ='C2 Dashboard data'!D34 -> 0.310281 | R27: ='C2 Dashboard data'!E34 -> 0 | S27: ='C2 Dashboard data'!F34 -> 1.156258 | T27: ='C2 Dashboard data'!G34 -> 0 | U27: ='C2 Dashboard data'!H34 -> 0 | V27: ='C2 Dashboard data'!I34 -> 0 | W27: ='C2 Dashboard data'!O34 ->  | X27: ='C2 Dashboard data'!P34 ->  | Y27: ='C2 Dashboard data'!Q34 -> 
N28: ='C2 Dashboard data'!B35 -> Project 27 | O28: ='C2 Dashboard data'!M35 -> Traffic facility | P28: ='C2 Dashboard data'!C35 -> 0.81999 | Q28: ='C2 Dashboard data'!D35 -> 0.132448 | R28: ='C2 Dashboard data'!E35 -> 0.014058 | S28: ='C2 Dashboard data'!F35 -> 0.093471 | T28: ='C2 Dashboard data'!G35 -> 0.844909 | U28: ='C2 Dashboard data'!H35 -> 1 | V28: ='C2 Dashboard data'!I35 -> 1 | W28: ='C2 Dashboard data'!O35 ->  | X28: ='C2 Dashboard data'!P35 ->  | Y28: ='C2 Dashboard data'!Q35 -> 
N29: ='C2 Dashboard data'!B36 -> Project 14 | O29: ='C2 Dashboard data'!M36 -> Structures | P29: ='C2 Dashboard data'!C36 -> 0.814308 | Q29: ='C2 Dashboard data'!D36 -> 0.27218 | R29: ='C2 Dashboard data'!E36 -> 0 | S29: ='C2 Dashboard data'!F36 -> 1.086488 | T29: ='C2 Dashboard data'!G36 -> 0 | U29: ='C2 Dashboard data'!H36 -> 0 | V29: ='C2 Dashboard data'!I36 -> 0 | W29: ='C2 Dashboard data'!O36 ->  | X29: ='C2 Dashboard data'!P36 ->  | Y29: ='C2 Dashboard data'!Q36 -> 
N30: ='C2 Dashboard data'!B37 -> Project 23 | O30: ='C2 Dashboard data'!M37 -> Traffic facility | P30: ='C2 Dashboard data'!C37 -> 0.813737 | Q30: ='C2 Dashboard data'!D37 -> 0.122117 | R30: ='C2 Dashboard data'!E37 -> 0.014475 | S30: ='C2 Dashboard data'!F37 -> 0.074959 | T30: ='C2 Dashboard data'!G37 -> 0.84642 | U30: ='C2 Dashboard data'!H37 -> 1 | V30: ='C2 Dashboard data'!I37 -> 1 | W30: ='C2 Dashboard data'!O37 ->  | X30: ='C2 Dashboard data'!P37 ->  | Y30: ='C2 Dashboard data'!Q37 -> 
N31: ='C2 Dashboard data'!B38 -> Project 24 | O31: ='C2 Dashboard data'!M38 -> Traffic facility | P31: ='C2 Dashboard data'!C38 -> 0.78007 | Q31: ='C2 Dashboard data'!D38 -> 0.107198 | R31: ='C2 Dashboard data'!E38 -> 0.01444 | S31: ='C2 Dashboard data'!F38 -> 0.097917 | T31: ='C2 Dashboard data'!G38 -> 0.774911 | U31: ='C2 Dashboard data'!H38 -> 1 | V31: ='C2 Dashboard data'!I38 -> 1 | W31: ='C2 Dashboard data'!O38 ->  | X31: ='C2 Dashboard data'!P38 ->  | Y31: ='C2 Dashboard data'!Q38 -> 
N32: ='C2 Dashboard data'!B39 -> Project 15 | O32: ='C2 Dashboard data'!M39 -> Structures | P32: ='C2 Dashboard data'!C39 -> 0.746978 | Q32: ='C2 Dashboard data'!D39 -> 0.232291 | R32: ='C2 Dashboard data'!E39 -> 0 | S32: ='C2 Dashboard data'!F39 -> 0.979269 | T32: ='C2 Dashboard data'!G39 -> 0 | U32: ='C2 Dashboard data'!H39 -> 0 | V32: ='C2 Dashboard data'!I39 -> 0 | W32: ='C2 Dashboard data'!O39 ->  | X32: ='C2 Dashboard data'!P39 ->  | Y32: ='C2 Dashboard data'!Q39 -> 
N33: ='C2 Dashboard data'!B40 -> Project 26 | O33: ='C2 Dashboard data'!M40 -> Traffic facility | P33: ='C2 Dashboard data'!C40 -> 0.743609 | Q33: ='C2 Dashboard data'!D40 -> 0.12047 | R33: ='C2 Dashboard data'!E40 -> 0.021651 | S33: ='C2 Dashboard data'!F40 -> 0.091781 | T33: ='C2 Dashboard data'!G40 -> 0.750647 | U33: ='C2 Dashboard data'!H40 -> 1 | V33: ='C2 Dashboard data'!I40 -> 1 | W33: ='C2 Dashboard data'!O40 ->  | X33: ='C2 Dashboard data'!P40 ->  | Y33: ='C2 Dashboard data'!Q40 -> 
N34: ='C2 Dashboard data'!B41 -> Project 13 | O34: ='C2 Dashboard data'!M41 -> Structures | P34: ='C2 Dashboard data'!C41 -> 0.739473 | Q34: ='C2 Dashboard data'!D41 -> 0.251494 | R34: ='C2 Dashboard data'!E41 -> 0 | S34: ='C2 Dashboard data'!F41 -> 0.990967 | T34: ='C2 Dashboard data'!G41 -> 0 | U34: ='C2 Dashboard data'!H41 -> 0 | V34: ='C2 Dashboard data'!I41 -> 0 | W34: ='C2 Dashboard data'!O41 ->  | X34: ='C2 Dashboard data'!P41 ->  | Y34: ='C2 Dashboard data'!Q41 -> 
N35: ='C2 Dashboard data'!B42 -> Project 20 | O35: ='C2 Dashboard data'!M42 -> Structures | P35: ='C2 Dashboard data'!C42 -> 0.692645 | Q35: ='C2 Dashboard data'!D42 -> 0.256936 | R35: ='C2 Dashboard data'!E42 -> 0 | S35: ='C2 Dashboard data'!F42 -> 0.949581 | T35: ='C2 Dashboard data'!G42 -> 0 | U35: ='C2 Dashboard data'!H42 -> 0 | V35: ='C2 Dashboard data'!I42 -> 0 | W35: ='C2 Dashboard data'!O42 ->  | X35: ='C2 Dashboard data'!P42 ->  | Y35: ='C2 Dashboard data'!Q42 -> 
N36: ='C2 Dashboard data'!B43 -> Project 16 | O36: ='C2 Dashboard data'!M43 -> Structures | P36: ='C2 Dashboard data'!C43 -> 0.691587 | Q36: ='C2 Dashboard data'!D43 -> 0.266974 | R36: ='C2 Dashboard data'!E43 -> 0 | S36: ='C2 Dashboard data'!F43 -> 0.958561 | T36: ='C2 Dashboard data'!G43 -> 0 | U36: ='C2 Dashboard data'!H43 -> 0 | V36: ='C2 Dashboard data'!I43 -> 0 | W36: ='C2 Dashboard data'!O43 ->  | X36: ='C2 Dashboard data'!P43 ->  | Y36: ='C2 Dashboard data'!Q43 -> 
N37: ='C2 Dashboard data'!B44 -> Project 17 | O37: ='C2 Dashboard data'!M44 -> Structures | P37: ='C2 Dashboard data'!C44 -> 0.685881 | Q37: ='C2 Dashboard data'!D44 -> 0.329273 | R37: ='C2 Dashboard data'!E44 -> 0 | S37: ='C2 Dashboard data'!F44 -> 1.015154 | T37: ='C2 Dashboard data'!G44 -> 0 | U37: ='C2 Dashboard data'!H44 -> 0 | V37: ='C2 Dashboard data'!I44 -> 0 | W37: ='C2 Dashboard data'!O44 ->  | X37: ='C2 Dashboard data'!P44 ->  | Y37: ='C2 Dashboard data'!Q44 -> 
N38: ='C2 Dashboard data'!B45 -> Project 11 | O38: ='C2 Dashboard data'!M45 -> Structures | P38: ='C2 Dashboard data'!C45 -> 0.6403793362 | Q38: ='C2 Dashboard data'!D45 -> 0.2967556968 | R38: ='C2 Dashboard data'!E45 -> 0 | S38: ='C2 Dashboard data'!F45 -> 0.937135033 | T38: ='C2 Dashboard data'!G45 -> 0 | U38: ='C2 Dashboard data'!H45 -> 0 | V38: ='C2 Dashboard data'!I45 -> 0 | W38: ='C2 Dashboard data'!O45 ->  | X38: ='C2 Dashboard data'!P45 ->  | Y38: ='C2 Dashboard data'!Q45 -> 
N39: ='C2 Dashboard data'!B46 -> Project 18 | O39: ='C2 Dashboard data'!M46 -> Structures | P39: ='C2 Dashboard data'!C46 -> 0.55788 | Q39: ='C2 Dashboard data'!D46 -> 0.261766 | R39: ='C2 Dashboard data'!E46 -> 0 | S39: ='C2 Dashboard data'!F46 -> 0.819646 | T39: ='C2 Dashboard data'!G46 -> 0 | U39: ='C2 Dashboard data'!H46 -> 0 | V39: ='C2 Dashboard data'!I46 -> 0 | W39: ='C2 Dashboard data'!O46 ->  | X39: ='C2 Dashboard data'!P46 ->  | Y39: ='C2 Dashboard data'!Q46 -> 
N40: ='C2 Dashboard data'!B47 -> Project 12 | O40: ='C2 Dashboard data'!M47 -> Structures | P40: ='C2 Dashboard data'!C47 -> 0.462208 | Q40: ='C2 Dashboard data'!D47 -> 0.284142 | R40: ='C2 Dashboard data'!E47 -> 0 | S40: ='C2 Dashboard data'!F47 -> 0.74635 | T40: ='C2 Dashboard data'!G47 -> 0 | U40: ='C2 Dashboard data'!H47 -> 0 | V40: ='C2 Dashboard data'!I47 -> 0 | W40: ='C2 Dashboard data'!O47 ->  | X40: ='C2 Dashboard data'!P47 ->  | Y40: ='C2 Dashboard data'!Q47 -> 
N41: ='C2 Dashboard data'!B48 ->  | O41: ='C2 Dashboard data'!M48 ->  | P41: ='C2 Dashboard data'!C48 ->  | Q41: ='C2 Dashboard data'!D48 ->  | R41: ='C2 Dashboard data'!E48 ->  | S41: ='C2 Dashboard data'!F48 ->  | T41: ='C2 Dashboard data'!G48 ->  | U41: ='C2 Dashboard data'!H48 ->  | V41: ='C2 Dashboard data'!I48 ->  | W41: ='C2 Dashboard data'!O48 ->  | X41: ='C2 Dashboard data'!P48 ->  | Y41: ='C2 Dashboard data'!Q48 -> 
N42: ='C2 Dashboard data'!B49 ->  | O42: ='C2 Dashboard data'!M49 ->  | P42: ='C2 Dashboard data'!C49 ->  | Q42: ='C2 Dashboard data'!D49 ->  | R42: ='C2 Dashboard data'!E49 ->  | S42: ='C2 Dashboard data'!F49 ->  | T42: ='C2 Dashboard data'!G49 ->  | U42: ='C2 Dashboard data'!H49 ->  | V42: ='C2 Dashboard data'!I49 ->  | W42: ='C2 Dashboard data'!O49 ->  | X42: ='C2 Dashboard data'!P49 ->  | Y42: ='C2 Dashboard data'!Q49 -> 
N43: ='C2 Dashboard data'!B50 ->  | O43: ='C2 Dashboard data'!M50 ->  | P43: ='C2 Dashboard data'!C50 ->  | Q43: ='C2 Dashboard data'!D50 ->  | R43: ='C2 Dashboard data'!E50 ->  | S43: ='C2 Dashboard data'!F50 ->  | T43: ='C2 Dashboard data'!G50 ->  | U43: ='C2 Dashboard data'!H50 ->  | V43: ='C2 Dashboard data'!I50 ->  | W43: ='C2 Dashboard data'!O50 ->  | X43: ='C2 Dashboard data'!P50 ->  | Y43: ='C2 Dashboard data'!Q50 -> 
N44: ='C2 Dashboard data'!B51 ->  | O44: ='C2 Dashboard data'!M51 ->  | P44: ='C2 Dashboard data'!C51 ->  | Q44: ='C2 Dashboard data'!D51 ->  | R44: ='C2 Dashboard data'!E51 ->  | S44: ='C2 Dashboard data'!F51 ->  | T44: ='C2 Dashboard data'!G51 ->  | U44: ='C2 Dashboard data'!H51 ->  | V44: ='C2 Dashboard data'!I51 ->  | W44: ='C2 Dashboard data'!O51 ->  | X44: ='C2 Dashboard data'!P51 ->  | Y44: ='C2 Dashboard data'!Q51 -> 
N45: ='C2 Dashboard data'!B52 ->  | O45: ='C2 Dashboard data'!M52 ->  | P45: ='C2 Dashboard data'!C52 ->  | Q45: ='C2 Dashboard data'!D52 ->  | R45: ='C2 Dashboard data'!E52 ->  | S45: ='C2 Dashboard data'!F52 ->  | T45: ='C2 Dashboard data'!G52 ->  | U45: ='C2 Dashboard data'!H52 ->  | V45: ='C2 Dashboard data'!I52 ->  | W45: ='C2 Dashboard data'!O52 ->  | X45: ='C2 Dashboard data'!P52 ->  | Y45: ='C2 Dashboard data'!Q52 -> 
B47: Breakdown of expenditure
B49: Service group | G49: Expenditure type | N49: Asset class | T49: Region
B74: Risk assessment
B76: Funding all investments | I76: Base case | P76: Investment case
B77: Consequence/likelihood | C77: Rare | D77: Unlikely | E77: Possible | F77: Likely | G77: Almost certain | I77: Consequence/likelihood | J77: Rare | K77: Unlikely | L77: Possible | M77: Likely | N77: Almost certain | P77: Consequence/likelihood | Q77: Rare | R77: Unlikely | S77: Possible | T77: Likely | U77: Almost certain
B78: Negligible | C78: =COUNTIFS('I1 Inputs'!$Q$13:$Q$42,'O2 Dashboard'!$B78,'I1 Inputs'!$R$13:$R$42,'O2 Dashboard'!C$77)*'I2 Definitions'!C$37 -> 0.03 | D78: =COUNTIFS('I1 Inputs'!$Q$13:$Q$42,'O2 Dashboard'!$B78,'I1 Inputs'!$R$13:$R$42,'O2 Dashboard'!D$77)*'I2 Definitions'!D$37 -> 0 | E78: =COUNTIFS('I1 Inputs'!$Q$13:$Q$42,'O2 Dashboard'!$B78,'I1 Inputs'!$R$13:$R$42,'O2 Dashboard'!E$77)*'I2 Definitions'!E$37 -> 0 | F78: =COUNTIFS('I1 Inputs'!$Q$13:$Q$42,'O2 Dashboard'!$B78,'I1 Inputs'!$R$13:$R$42,'O2 Dashboard'!F$77)*'I2 Definitions'!F$37 -> 0 | G78: =COUNTIFS('I1 Inputs'!$Q$13:$Q$42,'O2 Dashboard'!$B78,'I1 Inputs'!$R$13:$R$42,'O2 Dashboard'!G$77)*'I2 Definitions'!G$37 -> 0 | I78: Negligible | J78: =COUNTIFS('I1 Inputs'!$N$13:$N$42,'O2 Dashboard'!$I78,'I1 Inputs'!$O$13:$O$42,'O2 Dashboard'!J$77)*'I2 Definitions'!C$37 -> 0 | K78: =COUNTIFS('I1 Inputs'!$N$13:$N$42,'O2 Dashboard'!$I78,'I1 Inputs'!$O$13:$O$42,'O2 Dashboard'!K$77)*'I2 Definitions'!D$37 -> 0 | L78: =COUNTIFS('I1 Inputs'!$N$13:$N$42,'O2 Dashboard'!$I78,'I1 Inputs'!$O$13:$O$42,'O2 Dashboard'!L$77)*'I2 Definitions'!E$37 -> 0 | M78: =COUNTIFS('I1 Inputs'!$N$13:$N$42,'O2 Dashboard'!$I78,'I1 Inputs'!$O$13:$O$42,'O2 Dashboard'!M$77)*'I2 Definitions'!F$37 -> 0 | N78: =COUNTIFS('I1 Inputs'!$N$13:$N$42,'O2 Dashboard'!$I78,'I1 Inputs'!$O$13:$O$42,'O2 Dashboard'!N$77)*'I2 Definitions'!G$37 -> 0 | P78: Negligible | Q78: =COUNTIFS('C2 Dashboard data'!$D$75:$D$104,'O2 Dashboard'!$I78,'C2 Dashboard data'!$E$75:$E$104,'O2 Dashboard'!Q$77)*'I2 Definitions'!C$37 -> 0.03 | R78: =COUNTIFS('C2 Dashboard data'!$D$75:$D$104,'O2 Dashboard'!$I78,'C2 Dashboard data'!$E$75:$E$104,'O2 Dashboard'!R$77)*'I2 Definitions'!D$37 -> 0 | S78: =COUNTIFS('C2 Dashboard data'!$D$75:$D$104,'O2 Dashboard'!$I78,'C2 Dashboard data'!$E$75:$E$104,'O2 Dashboard'!S$77)*'I2 Definitions'!E$37 -> 0 | T78: =COUNTIFS('C2 Dashboard data'!$D$75:$D$104,'O2 Dashboard'!$I78,'C2 Dashboard data'!$E$75:$E$104,'O2 Dashboard'!T$77)*'I2 Definitions'!F$37 -> 0 | U78: =COUNTIFS('C2 Dashboard data'!$D$75:$D$104,'O2 Dashboard'!$I78,'C2 Dashboard data'!$E$75:$E$104,'O2 Dashboard'!U$77)*'I2 Definitions'!G$37 -> 0
B79: Marginal | C79: =COUNTIFS('I1 Inputs'!$Q$13:$Q$42,'O2 Dashboard'!$B79,'I1 Inputs'!$R$13:$R$42,'O2 Dashboard'!C$77)*'I2 Definitions'!C$37 -> 0.03 | D79: =COUNTIFS('I1 Inputs'!$Q$13:$Q$42,'O2 Dashboard'!$B79,'I1 Inputs'!$R$13:$R$42,'O2 Dashboard'!D$77)*'I2 Definitions'!D$37 -> 0 | E79: =COUNTIFS('I1 Inputs'!$Q$13:$Q$42,'O2 Dashboard'!$B79,'I1 Inputs'!$R$13:$R$42,'O2 Dashboard'!E$77)*'I2 Definitions'!E$37 -> 0.1 | F79: =COUNTIFS('I1 Inputs'!$Q$13:$Q$42,'O2 Dashboard'!$B79,'I1 Inputs'!$R$13:$R$42,'O2 Dashboard'!F$77)*'I2 Definitions'!F$37 -> 0.5 | G79: =COUNTIFS('I1 Inputs'!$Q$13:$Q$42,'O2 Dashboard'!$B79,'I1 Inputs'!$R$13:$R$42,'O2 Dashboard'!G$77)*'I2 Definitions'!G$37 -> 0 | I79: Marginal | J79: =COUNTIFS('I1 Inputs'!$N$13:$N$42,'O2 Dashboard'!$I79,'I1 Inputs'!$O$13:$O$42,'O2 Dashboard'!J$77)*'I2 Definitions'!C$37 -> 0.02 | K79: =COUNTIFS('I1 Inputs'!$N$13:$N$42,'O2 Dashboard'!$I79,'I1 Inputs'!$O$13:$O$42,'O2 Dashboard'!K$77)*'I2 Definitions'!D$37 -> 0 | L79: =COUNTIFS('I1 Inputs'!$N$13:$N$42,'O2 Dashboard'!$I79,'I1 Inputs'!$O$13:$O$42,'O2 Dashboard'!L$77)*'I2 Definitions'!E$37 -> 0 | M79: =COUNTIFS('I1 Inputs'!$N$13:$N$42,'O2 Dashboard'!$I79,'I1 Inputs'!$O$13:$O$42,'O2 Dashboard'!M$77)*'I2 Definitions'!F$37 -> 0 | N79: =COUNTIFS('I1 Inputs'!$N$13:$N$42,'O2 Dashboard'!$I79,'I1 Inputs'!$O$13:$O$42,'O2 Dashboard'!N$77)*'I2 Definitions'!G$37 -> 0 | P79: Marginal | Q79: =COUNTIFS('C2 Dashboard data'!$D$75:$D$104,'O2 Dashboard'!$I79,'C2 Dashboard data'!$E$75:$E$104,'O2 Dashboard'!Q$77)*'I2 Definitions'!C$37 -> 0.03 | R79: =COUNTIFS('C2 Dashboard data'!$D$75:$D$104,'O2 Dashboard'!$I79,'C2 Dashboard data'!$E$75:$E$104,'O2 Dashboard'!R$77)*'I2 Definitions'!D$37 -> 0 | S79: =COUNTIFS('C2 Dashboard data'!$D$75:$D$104,'O2 Dashboard'!$I79,'C2 Dashboard data'!$E$75:$E$104,'O2 Dashboard'!S$77)*'I2 Definitions'!E$37 -> 0 | T79: =COUNTIFS('C2 Dashboard data'!$D$75:$D$104,'O2 Dashboard'!$I79,'C2 Dashboard data'!$E$75:$E$104,'O2 Dashboard'!T$77)*'I2 Definitions'!F$37 -> 0 | U79: =COUNTIFS('C2 Dashboard data'!$D$75:$D$104,'O2 Dashboard'!$I79,'C2 Dashboard data'!$E$75:$E$104,'O2 Dashboard'!U$77)*'I2 Definitions'!G$37 -> 0
B80: Serious | C80: =COUNTIFS('I1 Inputs'!$Q$13:$Q$42,'O2 Dashboard'!$B80,'I1 Inputs'!$R$13:$R$42,'O2 Dashboard'!C$77)*'I2 Definitions'!C$37 -> 0.03 | D80: =COUNTIFS('I1 Inputs'!$Q$13:$Q$42,'O2 Dashboard'!$B80,'I1 Inputs'!$R$13:$R$42,'O2 Dashboard'!D$77)*'I2 Definitions'!D$37 -> 0.03 | E80: =COUNTIFS('I1 Inputs'!$Q$13:$Q$42,'O2 Dashboard'!$B80,'I1 Inputs'!$R$13:$R$42,'O2 Dashboard'!E$77)*'I2 Definitions'!E$37 -> 0 | F80: =COUNTIFS('I1 Inputs'!$Q$13:$Q$42,'O2 Dashboard'!$B80,'I1 Inputs'!$R$13:$R$42,'O2 Dashboard'!F$77)*'I2 Definitions'!F$37 -> 0 | G80: =COUNTIFS('I1 Inputs'!$Q$13:$Q$42,'O2 Dashboard'!$B80,'I1 Inputs'!$R$13:$R$42,'O2 Dashboard'!G$77)*'I2 Definitions'!G$37 -> 0 | I80: Serious | J80: =COUNTIFS('I1 Inputs'!$N$13:$N$42,'O2 Dashboard'!$I80,'I1 Inputs'!$O$13:$O$42,'O2 Dashboard'!J$77)*'I2 Definitions'!C$37 -> 0.02 | K80: =COUNTIFS('I1 Inputs'!$N$13:$N$42,'O2 Dashboard'!$I80,'I1 Inputs'!$O$13:$O$42,'O2 Dashboard'!K$77)*'I2 Definitions'!D$37 -> 0 | L80: =COUNTIFS('I1 Inputs'!$N$13:$N$42,'O2 Dashboard'!$I80,'I1 Inputs'!$O$13:$O$42,'O2 Dashboard'!L$77)*'I2 Definitions'!E$37 -> 0.1 | M80: =COUNTIFS('I1 Inputs'!$N$13:$N$42,'O2 Dashboard'!$I80,'I1 Inputs'!$O$13:$O$42,'O2 Dashboard'!M$77)*'I2 Definitions'!F$37 -> 0.5 | N80: =COUNTIFS('I1 Inputs'!$N$13:$N$42,'O2 Dashboard'!$I80,'I1 Inputs'!$O$13:$O$42,'O2 Dashboard'!N$77)*'I2 Definitions'!G$37 -> 1 | P80: Serious | Q80: =COUNTIFS('C2 Dashboard data'!$D$75:$D$104,'O2 Dashboard'!$I80,'C2 Dashboard data'!$E$75:$E$104,'O2 Dashboard'!Q$77)*'I2 Definitions'!C$37 -> 0.03 | R80: =COUNTIFS('C2 Dashboard data'!$D$75:$D$104,'O2 Dashboard'!$I80,'C2 Dashboard data'!$E$75:$E$104,'O2 Dashboard'!R$77)*'I2 Definitions'!D$37 -> 0 | S80: =COUNTIFS('C2 Dashboard data'!$D$75:$D$104,'O2 Dashboard'!$I80,'C2 Dashboard data'!$E$75:$E$104,'O2 Dashboard'!S$77)*'I2 Definitions'!E$37 -> 0 | T80: =COUNTIFS('C2 Dashboard data'!$D$75:$D$104,'O2 Dashboard'!$I80,'C2 Dashboard data'!$E$75:$E$104,'O2 Dashboard'!T$77)*'I2 Definitions'!F$37 -> 0.5 | U80: =COUNTIFS('C2 Dashboard data'!$D$75:$D$104,'O2 Dashboard'!$I80,'C2 Dashboard data'!$E$75:$E$104,'O2 Dashboard'!U$77)*'I2 Definitions'!G$37 -> 1
B81: Critical | C81: =COUNTIFS('I1 Inputs'!$Q$13:$Q$42,'O2 Dashboard'!$B81,'I1 Inputs'!$R$13:$R$42,'O2 Dashboard'!C$77)*'I2 Definitions'!C$37 -> 0.02 | D81: =COUNTIFS('I1 Inputs'!$Q$13:$Q$42,'O2 Dashboard'!$B81,'I1 Inputs'!$R$13:$R$42,'O2 Dashboard'!D$77)*'I2 Definitions'!D$37 -> 0.12 | E81: =COUNTIFS('I1 Inputs'!$Q$13:$Q$42,'O2 Dashboard'!$B81,'I1 Inputs'!$R$13:$R$42,'O2 Dashboard'!E$77)*'I2 Definitions'!E$37 -> 0.2 | F81: =COUNTIFS('I1 Inputs'!$Q$13:$Q$42,'O2 Dashboard'!$B81,'I1 Inputs'!$R$13:$R$42,'O2 Dashboard'!F$77)*'I2 Definitions'!F$37 -> 0 | G81: =COUNTIFS('I1 Inputs'!$Q$13:$Q$42,'O2 Dashboard'!$B81,'I1 Inputs'!$R$13:$R$42,'O2 Dashboard'!G$77)*'I2 Definitions'!G$37 -> 0 | I81: Critical | J81: =COUNTIFS('I1 Inputs'!$N$13:$N$42,'O2 Dashboard'!$I81,'I1 Inputs'!$O$13:$O$42,'O2 Dashboard'!J$77)*'I2 Definitions'!C$37 -> 0.03 | K81: =COUNTIFS('I1 Inputs'!$N$13:$N$42,'O2 Dashboard'!$I81,'I1 Inputs'!$O$13:$O$42,'O2 Dashboard'!K$77)*'I2 Definitions'!D$37 -> 0 | L81: =COUNTIFS('I1 Inputs'!$N$13:$N$42,'O2 Dashboard'!$I81,'I1 Inputs'!$O$13:$O$42,'O2 Dashboard'!L$77)*'I2 Definitions'!E$37 -> 0.3 | M81: =COUNTIFS('I1 Inputs'!$N$13:$N$42,'O2 Dashboard'!$I81,'I1 Inputs'!$O$13:$O$42,'O2 Dashboard'!M$77)*'I2 Definitions'!F$37 -> 1 | N81: =COUNTIFS('I1 Inputs'!$N$13:$N$42,'O2 Dashboard'!$I81,'I1 Inputs'!$O$13:$O$42,'O2 Dashboard'!N$77)*'I2 Definitions'!G$37 -> 1 | P81: Critical | Q81: =COUNTIFS('C2 Dashboard data'!$D$75:$D$104,'O2 Dashboard'!$I81,'C2 Dashboard data'!$E$75:$E$104,'O2 Dashboard'!Q$77)*'I2 Definitions'!C$37 -> 0.01 | R81: =COUNTIFS('C2 Dashboard data'!$D$75:$D$104,'O2 Dashboard'!$I81,'C2 Dashboard data'!$E$75:$E$104,'O2 Dashboard'!R$77)*'I2 Definitions'!D$37 -> 0.09 | S81: =COUNTIFS('C2 Dashboard data'!$D$75:$D$104,'O2 Dashboard'!$I81,'C2 Dashboard data'!$E$75:$E$104,'O2 Dashboard'!S$77)*'I2 Definitions'!E$37 -> 0.3 | T81: =COUNTIFS('C2 Dashboard data'!$D$75:$D$104,'O2 Dashboard'!$I81,'C2 Dashboard data'!$E$75:$E$104,'O2 Dashboard'!T$77)*'I2 Definitions'!F$37 -> 0 | U81: =COUNTIFS('C2 Dashboard data'!$D$75:$D$104,'O2 Dashboard'!$I81,'C2 Dashboard data'!$E$75:$E$104,'O2 Dashboard'!U$77)*'I2 Definitions'!G$37 -> 0
B82: Catastrophic | C82: =COUNTIFS('I1 Inputs'!$Q$13:$Q$42,'O2 Dashboard'!$B82,'I1 Inputs'!$R$13:$R$42,'O2 Dashboard'!C$77)*'I2 Definitions'!C$37 -> 0.03 | D82: =COUNTIFS('I1 Inputs'!$Q$13:$Q$42,'O2 Dashboard'!$B82,'I1 Inputs'!$R$13:$R$42,'O2 Dashboard'!D$77)*'I2 Definitions'!D$37 -> 0.06 | E82: =COUNTIFS('I1 Inputs'!$Q$13:$Q$42,'O2 Dashboard'!$B82,'I1 Inputs'!$R$13:$R$42,'O2 Dashboard'!E$77)*'I2 Definitions'!E$37 -> 0 | F82: =COUNTIFS('I1 Inputs'!$Q$13:$Q$42,'O2 Dashboard'!$B82,'I1 Inputs'!$R$13:$R$42,'O2 Dashboard'!F$77)*'I2 Definitions'!F$37 -> 0 | G82: =COUNTIFS('I1 Inputs'!$Q$13:$Q$42,'O2 Dashboard'!$B82,'I1 Inputs'!$R$13:$R$42,'O2 Dashboard'!G$77)*'I2 Definitions'!G$37 -> 0 | I82: Catastrophic | J82: =COUNTIFS('I1 Inputs'!$N$13:$N$42,'O2 Dashboard'!$I82,'I1 Inputs'!$O$13:$O$42,'O2 Dashboard'!J$77)*'I2 Definitions'!C$37 -> 0.03 | K82: =COUNTIFS('I1 Inputs'!$N$13:$N$42,'O2 Dashboard'!$I82,'I1 Inputs'!$O$13:$O$42,'O2 Dashboard'!K$77)*'I2 Definitions'!D$37 -> 0.03 | L82: =COUNTIFS('I1 Inputs'!$N$13:$N$42,'O2 Dashboard'!$I82,'I1 Inputs'!$O$13:$O$42,'O2 Dashboard'!L$77)*'I2 Definitions'!E$37 -> 0.2 | M82: =COUNTIFS('I1 Inputs'!$N$13:$N$42,'O2 Dashboard'!$I82,'I1 Inputs'!$O$13:$O$42,'O2 Dashboard'!M$77)*'I2 Definitions'!F$37 -> 1.5 | N82: =COUNTIFS('I1 Inputs'!$N$13:$N$42,'O2 Dashboard'!$I82,'I1 Inputs'!$O$13:$O$42,'O2 Dashboard'!N$77)*'I2 Definitions'!G$37 -> 0 | P82: Catastrophic | Q82: =COUNTIFS('C2 Dashboard data'!$D$75:$D$104,'O2 Dashboard'!$I82,'C2 Dashboard data'!$E$75:$E$104,'O2 Dashboard'!Q$77)*'I2 Definitions'!C$37 -> 0.04 | R82: =COUNTIFS('C2 Dashboard data'!$D$75:$D$104,'O2 Dashboard'!$I82,'C2 Dashboard data'!$E$75:$E$104,'O2 Dashboard'!R$77)*'I2 Definitions'!D$37 -> 0.06 | S82: =COUNTIFS('C2 Dashboard data'!$D$75:$D$104,'O2 Dashboard'!$I82,'C2 Dashboard data'!$E$75:$E$104,'O2 Dashboard'!S$77)*'I2 Definitions'!E$37 -> 0.1 | T82: =COUNTIFS('C2 Dashboard data'!$D$75:$D$104,'O2 Dashboard'!$I82,'C2 Dashboard data'!$E$75:$E$104,'O2 Dashboard'!T$77)*'I2 Definitions'!F$37 -> 0 | U82: =COUNTIFS('C2 Dashboard data'!$D$75:$D$104,'O2 Dashboard'!$I82,'C2 Dashboard data'!$E$75:$E$104,'O2 Dashboard'!U$77)*'I2 Definitions'!G$37 -> 0
B84: Pavement condition - all scenarios

Sheet Inputs =>
A1: =MID(CELL("filename",A2),FIND("]",CELL("filename",A2))+1,256) -> Inputs =>

Sheet I1 Inputs
A1: =MID(CELL("filename",A2),FIND("]",CELL("filename",A2))+1,256) -> I1 Inputs
B4: Inputs
B6: Description
B7: The purpose of this tab is for the user to input the necessary data to undertake the optimisation procedure. The inputs that are required cover areas such as project descriptors, outputs of CBA, performance measures, risk assessments and asset condition.
B9: Inputs table
C11: Project descriptors | G11: Cost benefit analysis (CBA) outputs | L11: Performance measures | N11: Risk assessment - base case | Q11: Risk assessment - investment case | T11: Pavement condition - base case | W11: Pavement condition - investment case
B12: Investment | C12: Service group | D12: Expenditure category | E12: Asset class | F12: Region | G12: NPV ($) (PV of benefits less PV of costs) | H12: PV of costs ($) | I12: PV of safety benefits ($) | J12: PV of user travel cost benefits ($) | K12: PV of other benefits ($) | L12: Lives saved over first 10 years | M12: Hours of travel time saved (millions) | N12: Consequence | O12: Likelihood | P12: Risk score | Q12: Consequence | R12: Likelihood | S12: Risk score | T12: Road length (km) | U12: Proportion in bad condition | V12: Proportion in good condition | W12: Road length (km) | X12: Proportion in bad condition | Y12: Proportion in good condition
B13: Project 1 | C13: Growth and improvement | D13: Capex | E13: Pavements | F13: Urban | G13: -11034738 | H13: 36229131 | I13: 11591347 | J13: 8747343 | K13: 4855703 | L13: 15 | M13: 10 | N13: Serious | O13: Likely | P13: =IFERROR(INDEX('I2 Definitions'!$C$28:$G$32,MATCH('I1 Inputs'!$N13,'I2 Definitions'!$B$28:$B$32,0),MATCH('I1 Inputs'!$O13,'I2 Definitions'!$C$27:$G$27,0)),0) -> 12 | Q13: Marginal | R13: Possible | S13: =IFERROR(INDEX('I2 Definitions'!$C$28:$G$32,MATCH('I1 Inputs'!Q13,'I2 Definitions'!$B$28:$B$32,0),MATCH('I1 Inputs'!R13,'I2 Definitions'!$C$27:$G$27,0)),0) -> 6
B14: Project 2 | C14: Growth and improvement | D14: Capex | E14: Pavements | F14: Urban | G14: 3587404 | H14: 33543641 | I14: 17532153 | J14: 15291099 | K14: 4307793 | L14: 15 | M14: 5 | N14: Critical | O14: Possible | P14: =IFERROR(INDEX('I2 Definitions'!$C$28:$G$32,MATCH('I1 Inputs'!$N14,'I2 Definitions'!$B$28:$B$32,0),MATCH('I1 Inputs'!$O14,'I2 Definitions'!$C$27:$G$27,0)),0) -> 12 | Q14: Serious | R14: Unlikely | S14: =IFERROR(INDEX('I2 Definitions'!$C$28:$G$32,MATCH('I1 Inputs'!Q14,'I2 Definitions'!$B$28:$B$32,0),MATCH('I1 Inputs'!R14,'I2 Definitions'!$C$27:$G$27,0)),0) -> 6
B15: Project 3 | C15: Growth and improvement | D15: Capex | E15: Pavements | F15: Urban | G15: 3341910 | H15: 21369818 | I15: 12470370 | J15: 8534573 | K15: 3706785 | L15: 17 | M15: 9 | N15: Catastrophic | O15: Possible | P15: =IFERROR(INDEX('I2 Definitions'!$C$28:$G$32,MATCH('I1 Inputs'!$N15,'I2 Definitions'!$B$28:$B$32,0),MATCH('I1 Inputs'!$O15,'I2 Definitions'!$C$27:$G$27,0)),0) -> 15 | Q15: Critical | R15: Unlikely | S15: =IFERROR(INDEX('I2 Definitions'!$C$28:$G$32,MATCH('I1 Inputs'!Q15,'I2 Definitions'!$B$28:$B$32,0),MATCH('I1 Inputs'!R15,'I2 Definitions'!$C$27:$G$27,0)),0) -> 8
B16: Project 4 | C16: Growth and improvement | D16: Capex | E16: Structures | F16: Urban | G16: 17673301 | H16: 15143576 | I16: 19308954 | J16: 10772708 | K16: 2735215 | L16: 20 | M16: 7 | N16: Serious | O16: Almost certain | P16: =IFERROR(INDEX('I2 Definitions'!$C$28:$G$32,MATCH('I1 Inputs'!$N16,'I2 Definitions'!$B$28:$B$32,0),MATCH('I1 Inputs'!$O16,'I2 Definitions'!$C$27:$G$27,0)),0) -> 15 | Q16: Marginal | R16: Likely | S16: =IFERROR(INDEX('I2 Definitions'!$C$28:$G$32,MATCH('I1 Inputs'!Q16,'I2 Definitions'!$B$28:$B$32,0),MATCH('I1 Inputs'!R16,'I2 Definitions'!$C$27:$G$27,0)),0) -> 8
B17: Project 5 | C17: Growth and improvement | D17: Capex | E17: Structures | F17: Urban | G17: -14182661 | H17: 35476215 | I17: 3981849 | J17: 10729572 | K17: 6582133 | L17: 14 | M17: 6 | N17: Catastrophic | O17: Rare | P17: =IFERROR(INDEX('I2 Definitions'!$C$28:$G$32,MATCH('I1 Inputs'!$N17,'I2 Definitions'!$B$28:$B$32,0),MATCH('I1 Inputs'!$O17,'I2 Definitions'!$C$27:$G$27,0)),0) -> 5 | Q17: Critical | R17: Rare | S17: =IFERROR(INDEX('I2 Definitions'!$C$28:$G$32,MATCH('I1 Inputs'!Q17,'I2 Definitions'!$B$28:$B$32,0),MATCH('I1 Inputs'!R17,'I2 Definitions'!$C$27:$G$27,0)),0) -> 4
B18: Project 6 | C18: Asset maintenance | D18: Opex | E18: Pavements | F18: Urban | G18: 84135931.85 | H18: 35669847.41 | I18: 61474904.49 | J18: 54435503.39 | K18: 3895371.375 | L18: 8 | M18: 1.3 | P18: =IFERROR(INDEX('I2 Definitions'!$C$28:$G$32,MATCH('I1 Inputs'!$N18,'I2 Definitions'!$B$28:$B$32,0),MATCH('I1 Inputs'!$O18,'I2 Definitions'!$C$27:$G$27,0)),0) -> 0 | S18: =IFERROR(INDEX('I2 Definitions'!$C$28:$G$32,MATCH('I1 Inputs'!Q18,'I2 Definitions'!$B$28:$B$32,0),MATCH('I1 Inputs'!R18,'I2 Definitions'!$C$27:$G$27,0)),0) -> 0 | T18: 400 | U18: 0.1 | V18: 0.9 | W18: 400 | X18: 0.03 | Y18: 0.97
B19: Project 7 | C19: Asset maintenance | D19: Opex | E19: Pavements | F19: Urban | G19: 87859091 | H19: 43222042 | I19: 73826636 | J19: 52824104 | K19: 4430393 | L19: 7 | M19: 1 | P19: =IFERROR(INDEX('I2 Definitions'!$C$28:$G$32,MATCH('I1 Inputs'!$N19,'I2 Definitions'!$B$28:$B$32,0),MATCH('I1 Inputs'!$O19,'I2 Definitions'!$C$27:$G$27,0)),0) -> 0 | S19: =IFERROR(INDEX('I2 Definitions'!$C$28:$G$32,MATCH('I1 Inputs'!Q19,'I2 Definitions'!$B$28:$B$32,0),MATCH('I1 Inputs'!R19,'I2 Definitions'!$C$27:$G$27,0)),0) -> 0 | T19: 400 | U19: 0.07 | V19: 0.93 | W19: 400 | X19: 0.04 | Y19: 0.96
B20: Project 8 | C20: Asset maintenance | D20: Opex | E20: Pavements | F20: Urban | G20: 73149081 | H20: 38893698 | I20: 54183073 | J20: 54012382 | K20: 3847324 | L20: 10 | M20: 1 | P20: =IFERROR(INDEX('I2 Definitions'!$C$28:$G$32,MATCH('I1 Inputs'!$N20,'I2 Definitions'!$B$28:$B$32,0),MATCH('I1 Inputs'!$O20,'I2 Definitions'!$C$27:$G$27,0)),0) -> 0 | S20: =IFERROR(INDEX('I2 Definitions'!$C$28:$G$32,MATCH('I1 Inputs'!Q20,'I2 Definitions'!$B$28:$B$32,0),MATCH('I1 Inputs'!R20,'I2 Definitions'!$C$27:$G$27,0)),0) -> 0 | T20: 800 | U20: 0.06 | V20: 0.94 | W20: 800 | X20: 0.03 | Y20: 0.97
B21: Project 9 | C21: Asset maintenance | D21: Opex | E21: Pavements | F21: Rural | G21: 87609940 | H21: 36179264 | I21: 72353852 | J21: 46891955 | K21: 4543397 | L21: 6 | M21: 1 | P21: =IFERROR(INDEX('I2 Definitions'!$C$28:$G$32,MATCH('I1 Inputs'!$N21,'I2 Definitions'!$B$28:$B$32,0),MATCH('I1 Inputs'!$O21,'I2 Definitions'!$C$27:$G$27,0)),0) -> 0 | S21: =IFERROR(INDEX('I2 Definitions'!$C$28:$G$32,MATCH('I1 Inputs'!Q21,'I2 Definitions'!$B$28:$B$32,0),MATCH('I1 Inputs'!R21,'I2 Definitions'!$C$27:$G$27,0)),0) -> 0 | T21: 800 | U21: 0.12 | V21: 0.88 | W21: 800 | X21: 0.07 | Y21: 0.93
B22: Project 10 | C22: Asset maintenance | D22: Opex | E22: Pavements | F22: Rural | G22: 80506112 | H22: 31160641 | I22: 48959368 | J22: 59569752 | K22: 3137633 | L22: 9 | M22: 1 | P22: =IFERROR(INDEX('I2 Definitions'!$C$28:$G$32,MATCH('I1 Inputs'!$N22,'I2 Definitions'!$B$28:$B$32,0),MATCH('I1 Inputs'!$O22,'I2 Definitions'!$C$27:$G$27,0)),0) -> 0 | S22: =IFERROR(INDEX('I2 Definitions'!$C$28:$G$32,MATCH('I1 Inputs'!Q22,'I2 Definitions'!$B$28:$B$32,0),MATCH('I1 Inputs'!R22,'I2 Definitions'!$C$27:$G$27,0)),0) -> 0 | T22: 1100 | U22: 0.2 | V22: 0.8 | W22: 1100 | X22: 0.1 | Y22: 0.9
B23: Project 11 | C23: Growth and improvement | D23: Capex | E23: Structures | F23: Urban | G23: 640379.3362 | H23: 296755.6968 | I23: 0 | J23: 937135.033 | K23: 0 | L23: 0 | M23: 0 | N23: Catastrophic | O23: Likely | P23: =IFERROR(INDEX('I2 Definitions'!$C$28:$G$32,MATCH('I1 Inputs'!$N23,'I2 Definitions'!$B$28:$B$32,0),MATCH('I1 Inputs'!$O23,'I2 Definitions'!$C$27:$G$27,0)),0) -> 20 | Q23: Catastrophic | R23: Rare | S23: =IFERROR(INDEX('I2 Definitions'!$C$28:$G$32,MATCH('I1 Inputs'!Q23,'I2 Definitions'!$B$28:$B$32,0),MATCH('I1 Inputs'!R23,'I2 Definitions'!$C$27:$G$27,0)),0) -> 5
B24: Project 12 | C24: Growth and improvement | D24: Capex | E24: Structures | F24: Urban | G24: 462208 | H24: 284142 | I24: 0 | J24: 746350 | K24: 0 | L24: 0 | M24: 0 | N24: Critical | O24: Possible | P24: =IFERROR(INDEX('I2 Definitions'!$C$28:$G$32,MATCH('I1 Inputs'!$N24,'I2 Definitions'!$B$28:$B$32,0),MATCH('I1 Inputs'!$O24,'I2 Definitions'!$C$27:$G$27,0)),0) -> 12 | Q24: Critical | R24: Unlikely | S24: =IFERROR(INDEX('I2 Definitions'!$C$28:$G$32,MATCH('I1 Inputs'!Q24,'I2 Definitions'!$B$28:$B$32,0),MATCH('I1 Inputs'!R24,'I2 Definitions'!$C$27:$G$27,0)),0) -> 8
B25: Project 13 | C25: Growth and improvement | D25: Capex | E25: Structures | F25: Urban | G25: 739473 | H25: 251494 | I25: 0 | J25: 990967 | K25: 0 | L25: 0 | M25: 0 | N25: Catastrophic | O25: Unlikely | P25: =IFERROR(INDEX('I2 Definitions'!$C$28:$G$32,MATCH('I1 Inputs'!$N25,'I2 Definitions'!$B$28:$B$32,0),MATCH('I1 Inputs'!$O25,'I2 Definitions'!$C$27:$G$27,0)),0) -> 10 | Q25: Catastrophic | R25: Rare | S25: =IFERROR(INDEX('I2 Definitions'!$C$28:$G$32,MATCH('I1 Inputs'!Q25,'I2 Definitions'!$B$28:$B$32,0),MATCH('I1 Inputs'!R25,'I2 Definitions'!$C$27:$G$27,0)),0) -> 5
B26: Project 14 | C26: Growth and improvement | D26: Capex | E26: Structures | F26: Urban | G26: 814308 | H26: 272180 | I26: 0 | J26: 1086488 | K26: 0 | L26: 0 | M26: 0 | N26: Critical | O26: Possible | P26: =IFERROR(INDEX('I2 Definitions'!$C$28:$G$32,MATCH('I1 Inputs'!$N26,'I2 Definitions'!$B$28:$B$32,0),MATCH('I1 Inputs'!$O26,'I2 Definitions'!$C$27:$G$27,0)),0) -> 12 | Q26: Critical | R26: Unlikely | S26: =IFERROR(INDEX('I2 Definitions'!$C$28:$G$32,MATCH('I1 Inputs'!Q26,'I2 Definitions'!$B$28:$B$32,0),MATCH('I1 Inputs'!R26,'I2 Definitions'!$C$27:$G$27,0)),0) -> 8
B27: Project 15 | C27: Growth and improvement | D27: Capex | E27: Structures | F27: Urban | G27: 746978 | H27: 232291 | I27: 0 | J27: 979269 | K27: 0 | L27: 0 | M27: 0 | N27: Critical | O27: Likely | P27: =IFERROR(INDEX('I2 Definitions'!$C$28:$G$32,MATCH('I1 Inputs'!$N27,'I2 Definitions'!$B$28:$B$32,0),MATCH('I1 Inputs'!$O27,'I2 Definitions'!$C$27:$G$27,0)),0) -> 16 | Q27: Critical | R27: Possible | S27: =IFERROR(INDEX('I2 Definitions'!$C$28:$G$32,MATCH('I1 Inputs'!Q27,'I2 Definitions'!$B$28:$B$32,0),MATCH('I1 Inputs'!R27,'I2 Definitions'!$C$27:$G$27,0)),0) -> 12
B28: Project 16 | C28: Growth and improvement | D28: Capex | E28: Structures | F28: Rural | G28: 691587 | H28: 266974 | I28: 0 | J28: 958561 | K28: 0 | L28: 0 | M28: 0 | N28: Critical | O28: Almost certain | P28: =IFERROR(INDEX('I2 Definitions'!$C$28:$G$32,MATCH('I1 Inputs'!$N28,'I2 Definitions'!$B$28:$B$32,0),MATCH('I1 Inputs'!$O28,'I2 Definitions'!$C$27:$G$27,0)),0) -> 20 | Q28: Critical | R28: Possible | S28: =IFERROR(INDEX('I2 Definitions'!$C$28:$G$32,MATCH('I1 Inputs'!Q28,'I2 Definitions'!$B$28:$B$32,0),MATCH('I1 Inputs'!R28,'I2 Definitions'!$C$27:$G$27,0)),0) -> 12
B29: Project 17 | C29: Growth and improvement | D29: Capex | E29: Structures | F29: Rural | G29: 685881 | H29: 329273 | I29: 0 | J29: 1015154 | K29: 0 | L29: 0 | M29: 0 | N29: Catastrophic | O29: Likely | P29: =IFERROR(INDEX('I2 Definitions'!$C$28:$G$32,MATCH('I1 Inputs'!$N29,'I2 Definitions'!$B$28:$B$32,0),MATCH('I1 Inputs'!$O29,'I2 Definitions'!$C$27:$G$27,0)),0) -> 20 | Q29: Catastrophic | R29: Unlikely | S29: =IFERROR(INDEX('I2 Definitions'!$C$28:$G$32,MATCH('I1 Inputs'!Q29,'I2 Definitions'!$B$28:$B$32,0),MATCH('I1 Inputs'!R29,'I2 Definitions'!$C$27:$G$27,0)),0) -> 10
B30: Project 18 | C30: Growth and improvement | D30: Capex | E30: Structures | F30: Rural | G30: 557880 | H30: 261766 | I30: 0 | J30: 819646 | K30: 0 | L30: 0 | M30: 0 | N30: Catastrophic | O30: Likely | P30: =IFERROR(INDEX('I2 Definitions'!$C$28:$G$32,MATCH('I1 Inputs'!$N30,'I2 Definitions'!$B$28:$B$32,0),MATCH('I1 Inputs'!$O30,'I2 Definitions'!$C$27:$G$27,0)),0) -> 20 | Q30: Catastrophic | R30: Rare | S30: =IFERROR(INDEX('I2 Definitions'!$C$28:$G$32,MATCH('I1 Inputs'!Q30,'I2 Definitions'!$B$28:$B$32,0),MATCH('I1 Inputs'!R30,'I2 Definitions'!$C$27:$G$27,0)),0) -> 5
B31: Project 19 | C31: Growth and improvement | D31: Capex | E31: Structures | F31: Rural | G31: 845977 | H31: 310281 | I31: 0 | J31: 1156258 | K31: 0 | L31: 0 | M31: 0 | N31: Critical | O31: Likely | P31: =IFERROR(INDEX('I2 Definitions'!$C$28:$G$32,MATCH('I1 Inputs'!$N31,'I2 Definitions'!$B$28:$B$32,0),MATCH('I1 Inputs'!$O31,'I2 Definitions'!$C$27:$G$27,0)),0) -> 16 | Q31: Critical | R31: Unlikely | S31: =IFERROR(INDEX('I2 Definitions'!$C$28:$G$32,MATCH('I1 Inputs'!Q31,'I2 Definitions'!$B$28:$B$32,0),MATCH('I1 Inputs'!R31,'I2 Definitions'!$C$27:$G$27,0)),0) -> 8
B32: Project 20 | C32: Growth and improvement | D32: Capex | E32: Structures | F32: Rural | G32: 692645 | H32: 256936 | I32: 0 | J32: 949581 | K32: 0 | L32: 0 | M32: 0 | N32: Catastrophic | O32: Possible | P32: =IFERROR(INDEX('I2 Definitions'!$C$28:$G$32,MATCH('I1 Inputs'!$N32,'I2 Definitions'!$B$28:$B$32,0),MATCH('I1 Inputs'!$O32,'I2 Definitions'!$C$27:$G$27,0)),0) -> 15 | Q32: Catastrophic | R32: Unlikely | S32: =IFERROR(INDEX('I2 Definitions'!$C$28:$G$32,MATCH('I1 Inputs'!Q32,'I2 Definitions'!$B$28:$B$32,0),MATCH('I1 Inputs'!R32,'I2 Definitions'!$C$27:$G$27,0)),0) -> 10
B33: Project 21 | C33: Services and operations | D33: Opex | E33: Traffic facility | F33: Urban | G33: 880343.4421 | H33: 139000 | I33: 18685.15758 | J33: 78990.20152 | K33: 921668.083 | L33: 0.01 | M33: 0.2 | N33: Serious | O33: Possible | P33: =IFERROR(INDEX('I2 Definitions'!$C$28:$G$32,MATCH('I1 Inputs'!$N33,'I2 Definitions'!$B$28:$B$32,0),MATCH('I1 Inputs'!$O33,'I2 Definitions'!$C$27:$G$27,0)),0) -> 9 | Q33: Marginal | R33: Rare | S33: =IFERROR(INDEX('I2 Definitions'!$C$28:$G$32,MATCH('I1 Inputs'!Q33,'I2 Definitions'!$B$28:$B$32,0),MATCH('I1 Inputs'!R33,'I2 Definitions'!$C$27:$G$27,0)),0) -> 2
B34: Project 22 | C34: Services and operations | D34: Opex | E34: Traffic facility | F34: Urban | G34: 910690 | H34: 133117 | I34: 21547 | J34: 68990 | K34: 953270 | L34: 1 | M34: 1 | N34: Critical | O34: Rare | P34: =IFERROR(INDEX('I2 Definitions'!$C$28:$G$32,MATCH('I1 Inputs'!$N34,'I2 Definitions'!$B$28:$B$32,0),MATCH('I1 Inputs'!$O34,'I2 Definitions'!$C$27:$G$27,0)),0) -> 4 | Q34: Serious | R34: Rare | S34: =IFERROR(INDEX('I2 Definitions'!$C$28:$G$32,MATCH('I1 Inputs'!Q34,'I2 Definitions'!$B$28:$B$32,0),MATCH('I1 Inputs'!R34,'I2 Definitions'!$C$27:$G$27,0)),0) -> 3
B35: Project 23 | C35: Services and operations | D35: Opex | E35: Traffic facility | F35: Urban | G35: 813737 | H35: 122117 | I35: 14475 | J35: 74959 | K35: 846420 | L35: 1 | M35: 1 | N35: Catastrophic | O35: Rare | P35: =IFERROR(INDEX('I2 Definitions'!$C$28:$G$32,MATCH('I1 Inputs'!$N35,'I2 Definitions'!$B$28:$B$32,0),MATCH('I1 Inputs'!$O35,'I2 Definitions'!$C$27:$G$27,0)),0) -> 5 | Q35: Critical | R35: Rare | S35: =IFERROR(INDEX('I2 Definitions'!$C$28:$G$32,MATCH('I1 Inputs'!Q35,'I2 Definitions'!$B$28:$B$32,0),MATCH('I1 Inputs'!R35,'I2 Definitions'!$C$27:$G$27,0)),0) -> 4
B36: Project 24 | C36: Services and operations | D36: Opex | E36: Traffic facility | F36: Urban | G36: 780070 | H36: 107198 | I36: 14440 | J36: 97917 | K36: 774911 | L36: 1 | M36: 1 | N36: Critical | O36: Rare | P36: =IFERROR(INDEX('I2 Definitions'!$C$28:$G$32,MATCH('I1 Inputs'!$N36,'I2 Definitions'!$B$28:$B$32,0),MATCH('I1 Inputs'!$O36,'I2 Definitions'!$C$27:$G$27,0)),0) -> 4 | Q36: Serious | R36: Rare | S36: =IFERROR(INDEX('I2 Definitions'!$C$28:$G$32,MATCH('I1 Inputs'!Q36,'I2 Definitions'!$B$28:$B$32,0),MATCH('I1 Inputs'!R36,'I2 Definitions'!$C$27:$G$27,0)),0) -> 3
B37: Project 25 | C37: Services and operations | D37: Opex | E37: Traffic facility | F37: Urban | G37: 1152620 | H37: 112035 | I37: 22642 | J37: 93953 | K37: 1148060 | L37: 1 | M37: 1 | N37: Serious | O37: Rare | P37: =IFERROR(INDEX('I2 Definitions'!$C$28:$G$32,MATCH('I1 Inputs'!$N37,'I2 Definitions'!$B$28:$B$32,0),MATCH('I1 Inputs'!$O37,'I2 Definitions'!$C$27:$G$27,0)),0) -> 3 | Q37: Marginal | R37: Rare | S37: =IFERROR(INDEX('I2 Definitions'!$C$28:$G$32,MATCH('I1 Inputs'!Q37,'I2 Definitions'!$B$28:$B$32,0),MATCH('I1 Inputs'!R37,'I2 Definitions'!$C$27:$G$27,0)),0) -> 2
B38: Project 26 | C38: Services and operations | D38: Opex | E38: Traffic facility | F38: Rural | G38: 743609 | H38: 120470 | I38: 21651 | J38: 91781 | K38: 750647 | L38: 1 | M38: 1 | N38: Serious | O38: Rare | P38: =IFERROR(INDEX('I2 Definitions'!$C$28:$G$32,MATCH('I1 Inputs'!$N38,'I2 Definitions'!$B$28:$B$32,0),MATCH('I1 Inputs'!$O38,'I2 Definitions'!$C$27:$G$27,0)),0) -> 3 | Q38: Negligible | R38: Rare | S38: =IFERROR(INDEX('I2 Definitions'!$C$28:$G$32,MATCH('I1 Inputs'!Q38,'I2 Definitions'!$B$28:$B$32,0),MATCH('I1 Inputs'!R38,'I2 Definitions'!$C$27:$G$27,0)),0) -> 1
B39: Project 27 | C39: Services and operations | D39: Opex | E39: Traffic facility | F39: Rural | G39: 819990 | H39: 132448 | I39: 14058 | J39: 93471 | K39: 844909 | L39: 1 | M39: 1 | N39: Critical | O39: Rare | P39: =IFERROR(INDEX('I2 Definitions'!$C$28:$G$32,MATCH('I1 Inputs'!$N39,'I2 Definitions'!$B$28:$B$32,0),MATCH('I1 Inputs'!$O39,'I2 Definitions'!$C$27:$G$27,0)),0) -> 4 | Q39: Serious | R39: Rare | S39: =IFERROR(INDEX('I2 Definitions'!$C$28:$G$32,MATCH('I1 Inputs'!Q39,'I2 Definitions'!$B$28:$B$32,0),MATCH('I1 Inputs'!R39,'I2 Definitions'!$C$27:$G$27,0)),0) -> 3
B40: Project 28 | C40: Services and operations | D40: Opex | E40: Traffic facility | F40: Rural | G40: 1066856 | H40: 161622 | I40: 23334 | J40: 81416 | K40: 1123728 | L40: 1 | M40: 1 | N40: Catastrophic | O40: Rare | P40: =IFERROR(INDEX('I2 Definitions'!$C$28:$G$32,MATCH('I1 Inputs'!$N40,'I2 Definitions'!$B$28:$B$32,0),MATCH('I1 Inputs'!$O40,'I2 Definitions'!$C$27:$G$27,0)),0) -> 5 | Q40: Marginal | R40: Rare | S40: =IFERROR(INDEX('I2 Definitions'!$C$28:$G$32,MATCH('I1 Inputs'!Q40,'I2 Definitions'!$B$28:$B$32,0),MATCH('I1 Inputs'!R40,'I2 Definitions'!$C$27:$G$27,0)),0) -> 2
B41: Project 29 | C41: Services and operations | D41: Opex | E41: Traffic facility | F41: Rural | G41: 1081725 | H41: 111433 | I41: 22131 | J41: 95855 | K41: 1075172 | L41: 1 | M41: 1 | N41: Marginal | O41: Rare | P41: =IFERROR(INDEX('I2 Definitions'!$C$28:$G$32,MATCH('I1 Inputs'!$N41,'I2 Definitions'!$B$28:$B$32,0),MATCH('I1 Inputs'!$O41,'I2 Definitions'!$C$27:$G$27,0)),0) -> 2 | Q41: Negligible | R41: Rare | S41: =IFERROR(INDEX('I2 Definitions'!$C$28:$G$32,MATCH('I1 Inputs'!Q41,'I2 Definitions'!$B$28:$B$32,0),MATCH('I1 Inputs'!R41,'I2 Definitions'!$C$27:$G$27,0)),0) -> 1
B42: Project 30 | C42: Services and operations | D42: Opex | E42: Traffic facility | F42: Rural | G42: 1038671 | H42: 162763 | I42: 14612 | J42: 88817 | K42: 1098005 | L42: 1 | M42: 1 | N42: Marginal | O42: Rare | P42: =IFERROR(INDEX('I2 Definitions'!$C$28:$G$32,MATCH('I1 Inputs'!$N42,'I2 Definitions'!$B$28:$B$32,0),MATCH('I1 Inputs'!$O42,'I2 Definitions'!$C$27:$G$27,0)),0) -> 2 | Q42: Negligible | R42: Rare | S42: =IFERROR(INDEX('I2 Definitions'!$C$28:$G$32,MATCH('I1 Inputs'!Q42,'I2 Definitions'!$B$28:$B$32,0),MATCH('I1 Inputs'!R42,'I2 Definitions'!$C$27:$G$27,0)),0) -> 1

Sheet I2 Definitions
A1: =MID(CELL("filename",A2),FIND("]",CELL("filename",A2))+1,256) -> I2 Definitions
B4: Definitions
B6: Description
B7: The purpose of this tab is for the user to populate the naming conventions used in the drop-down boxes used elsewhere in the tool. In other words, the user can adjust the default naming conventions to reflect their road authority's approach to descriptions regarding characteristics such as service groups.
B9: Scenario naming
B11: Scenarios
B12: Scenario 1
B13: Scenario 2
B14: Scenario 3
B15: Scenario 4
B17: Project descriptions
B19: Service groups | C19: Expenditure categories | D19: Asset class | E19: Region
B20: Asset maintenance | C20: Opex | D20: Pavements | E20: Urban
B21: Services and operations | C21: Capex | D21: Roadside | E21: Rural
B22: Growth and improvement | D22: Structures
D23: Traffic facility
B25: Road authority risk scoring
B27: Consequence/likelihood | C27: Rare | D27: Unlikely | E27: Possible | F27: Likely | G27: Almost certain
B28: Negligible | C28: 1 | D28: 2 | E28: 3 | F28: 4 | G28: 5
B29: Marginal | C29: 2 | D29: 4 | E29: 6 | F29: 8 | G29: 10
B30: Serious | C30: 3 | D30: 6 | E30: 9 | F30: 12 | G30: 15
B31: Critical | C31: 4 | D31: 8 | E31: 12 | F31: 16 | G31: 20
B32: Catastrophic | C32: 5 | D32: 10 | E32: 15 | F32: 20 | G32: 25
B34: Road authority probability weightings
B36: Likelihood | C36: Rare | D36: Unlikely | E36: Possible | F36: Likely | G36: Almost certain
B37: Probability | C37: 0.01 | D37: 0.03 | E37: 0.1 | F37: 0.5 | G37: 1

Sheet Calculations =>
A1: =MID(CELL("filename",A2),FIND("]",CELL("filename",A2))+1,256) -> Calculations =>

Sheet C1 Portfolio construction
A1: =MID(CELL("filename",A2),FIND("]",CELL("filename",A2))+1,256) -> C1 Portfolio construction
B4: Portfolio construction
B6: Description
B7: This tab contains the calculation of the optimal investment portfolio under each of the scenarios defined on the 'O1 User interface' tab. To commence the optimisation procedure, click the 'run optimisation procedure' button below. Clicking this button will trigger a macro that cycles through each of the defined scenarios, calculates the optimal investment portfolio and pastes the results in the relevant cells below.
B9: ="Optimisation parameters - " & active_scenario -> Optimisation parameters - Scenario 1
B11: Parameter | C11: Value
B12: Total funding required ($) | C12: =SUM('I1 Inputs'!H13:H42) -> 330952169.1
B13: Available funding ($) | C13: =CHOOSE('O2 Dashboard'!D6,'O1 User interface'!C14,'O1 User interface'!C15,'O1 User interface'!C16,'O1 User interface'!C17) -> 200000000
B14: Funding used ($) | C14: =SUM(E26:E55) -> 189242351.1
B15: Remaining funding ($) | C15: =C13-C14 -> 10757648.89
B16: NPV of funded projects ($) | C16: =SUM(D26:D55) -> 201728527.6
B17: Maximum risk score tolerance | C17: =CHOOSE('O2 Dashboard'!D6,'O1 User interface'!F14,'O1 User interface'!F15,'O1 User interface'!F16,'O1 User interface'!F17) -> 25
B18: Projects exceeded risk tolerance | C18: =SUM(L26:L55) -> 0
B19: Lives saved over 10 years target | C19: =CHOOSE('O2 Dashboard'!D6,'O1 User interface'!D14,'O1 User interface'!D15,'O1 User interface'!D16,'O1 User interface'!D17) -> 0
B20: Millions of hours of travel time saved | C20: =CHOOSE('O2 Dashboard'!$D$6,'O1 User interface'!E14,'O1 User interface'!E15,'O1 User interface'!E16,'O1 User interface'!E17) -> 0
B21: Weighted proportion of pavement in good condition | C21: =CHOOSE('O2 Dashboard'!$D$6,'O1 User interface'!G14,'O1 User interface'!G15,'O1 User interface'!G16,'O1 User interface'!G17) -> 0
B23: Linear programming to determine the optimal investment portfolio
B25: Project | C25: Funding indicator | D25: NPV ($) (PV of benefits less PV of costs) | E25: PV of costs ($) | F25: PV of safety benefits ($) | G25: PV of user travel cost benefits ($) | H25: PV of other benefits ($) | I25: Lives saved over first 10 years | J25: Hours of travel time saved (millions) | K25: Risk score | L25: Risk tolerance exceeded? | M25: Risk mitigated | N25: Road length weighted proportion in bad condition (base case) | O25: Road length weighted proportion in good condition (base case) | P25: Road length weighted proportion in bad condition (investment case) | Q25: Road length weighted proportion in good condition (investment case) | R25: Service group | S25: Expenditure category | T25: Asset class | U25: Region
B26: ='I1 Inputs'!B13 -> Project 1 | C26: 1 | D26: =$C26*'I1 Inputs'!G13 -> -11034738 | E26: =$C26*'I1 Inputs'!H13 -> 36229131 | F26: =$C26*'I1 Inputs'!I13 -> 11591347 | G26: =$C26*'I1 Inputs'!J13 -> 8747343 | H26: =$C26*'I1 Inputs'!K13 -> 4855703 | I26: =$C26*'I1 Inputs'!L13 -> 15 | J26: =$C26*'I1 Inputs'!M13 -> 10 | K26: ='I1 Inputs'!P13 -> 12 | L26: =IF(K26>=$C$17,1,0) -> 0 | M26: =SUMPRODUCT(L26,C26) -> 0 | N26: =('I1 Inputs'!$T13/SUM('I1 Inputs'!$T$13:$T$42))*'I1 Inputs'!U13 -> 0 | O26: =('I1 Inputs'!$T13/SUM('I1 Inputs'!$T$13:$T$42))*'I1 Inputs'!V13 -> 0 | P26: =IF($C26=1,('I1 Inputs'!$W13/SUM('I1 Inputs'!$W$13:$W$42))*'I1 Inputs'!X13,N26) -> 0 | Q26: =IF($C26=1,('I1 Inputs'!$W13/SUM('I1 Inputs'!$W$13:$W$42))*'I1 Inputs'!Y13,O26) -> 0 | R26: ='I1 Inputs'!C13 -> Growth and improvement | S26: ='I1 Inputs'!D13 -> Capex | T26: ='I1 Inputs'!E13 -> Pavements | U26: ='I1 Inputs'!F13 -> Urban
B27: ='I1 Inputs'!B14 -> Project 2 | C27: 1 | D27: =$C27*'I1 Inputs'!G14 -> 3587404 | E27: =$C27*'I1 Inputs'!H14 -> 33543641 | F27: =$C27*'I1 Inputs'!I14 -> 17532153 | G27: =$C27*'I1 Inputs'!J14 -> 15291099 | H27: =$C27*'I1 Inputs'!K14 -> 4307793 | I27: =$C27*'I1 Inputs'!L14 -> 15 | J27: =$C27*'I1 Inputs'!M14 -> 5 | K27: ='I1 Inputs'!P14 -> 12 | L27: =IF(K27>=$C$17,1,0) -> 0 | M27: 0 | N27: =('I1 Inputs'!$T14/SUM('I1 Inputs'!$T$13:$T$42))*'I1 Inputs'!U14 -> 0 | O27: =('I1 Inputs'!$T14/SUM('I1 Inputs'!$T$13:$T$42))*'I1 Inputs'!V14 -> 0 | P27: =IF($C27=1,('I1 Inputs'!$W14/SUM('I1 Inputs'!$W$13:$W$42))*'I1 Inputs'!X14,N27) -> 0 | Q27: =IF($C27=1,('I1 Inputs'!$W14/SUM('I1 Inputs'!$W$13:$W$42))*'I1 Inputs'!Y14,O27) -> 0 | R27: ='I1 Inputs'!C14 -> Growth and improvement | S27: ='I1 Inputs'!D14 -> Capex | T27: ='I1 Inputs'!E14 -> Pavements | U27: ='I1 Inputs'!F14 -> Urban
B28: ='I1 Inputs'!B15 -> Project 3 | C28: 1 | D28: =$C28*'I1 Inputs'!G15 -> 3341910 | E28: =$C28*'I1 Inputs'!H15 -> 21369818 | F28: =$C28*'I1 Inputs'!I15 -> 12470370 | G28: =$C28*'I1 Inputs'!J15 -> 8534573 | H28: =$C28*'I1 Inputs'!K15 -> 3706785 | I28: =$C28*'I1 Inputs'!L15 -> 17 | J28: =$C28*'I1 Inputs'!M15 -> 9 | K28: ='I1 Inputs'!P15 -> 15 | L28: 0 | M28: 0 | N28: =('I1 Inputs'!$T15/SUM('I1 Inputs'!$T$13:$T$42))*'I1 Inputs'!U15 -> 0 | O28: =('I1 Inputs'!$T15/SUM('I1 Inputs'!$T$13:$T$42))*'I1 Inputs'!V15 -> 0 | P28: =IF($C28=1,('I1 Inputs'!$W15/SUM('I1 Inputs'!$W$13:$W$42))*'I1 Inputs'!X15,N28) -> 0 | Q28: =IF($C28=1,('I1 Inputs'!$W15/SUM('I1 Inputs'!$W$13:$W$42))*'I1 Inputs'!Y15,O28) -> 0 | R28: ='I1 Inputs'!C15 -> Growth and improvement | S28: ='I1 Inputs'!D15 -> Capex | T28: ='I1 Inputs'!E15 -> Pavements | U28: ='I1 Inputs'!F15 -> Urban
B29: ='I1 Inputs'!B16 -> Project 4 | C29: 1 | D29: =$C29*'I1 Inputs'!G16 -> 17673301 | E29: =$C29*'I1 Inputs'!H16 -> 15143576 | F29: =$C29*'I1 Inputs'!I16 -> 19308954 | G29: =$C29*'I1 Inputs'!J16 -> 10772708 | H29: =$C29*'I1 Inputs'!K16 -> 2735215 | I29: =$C29*'I1 Inputs'!L16 -> 20 | J29: =$C29*'I1 Inputs'!M16 -> 7 | K29: ='I1 Inputs'!P16 -> 15 | L29: 0 | M29: 0 | N29: =('I1 Inputs'!$T16/SUM('I1 Inputs'!$T$13:$T$42))*'I1 Inputs'!U16 -> 0 | O29: =('I1 Inputs'!$T16/SUM('I1 Inputs'!$T$13:$T$42))*'I1 Inputs'!V16 -> 0 | P29: =IF($C29=1,('I1 Inputs'!$W16/SUM('I1 Inputs'!$W$13:$W$42))*'I1 Inputs'!X16,N29) -> 0 | Q29: =IF($C29=1,('I1 Inputs'!$W16/SUM('I1 Inputs'!$W$13:$W$42))*'I1 Inputs'!Y16,O29) -> 0 | R29: ='I1 Inputs'!C16 -> Growth and improvement | S29: ='I1 Inputs'!D16 -> Capex | T29: ='I1 Inputs'!E16 -> Structures | U29: ='I1 Inputs'!F16 -> Urban
B30: ='I1 Inputs'!B17 -> Project 5 | C30: 0 | D30: =$C30*'I1 Inputs'!G17 -> 0 | E30: =$C30*'I1 Inputs'!H17 -> 0 | F30: =$C30*'I1 Inputs'!I17 -> 0 | G30: =$C30*'I1 Inputs'!J17 -> 0 | H30: =$C30*'I1 Inputs'!K17 -> 0 | I30: =$C30*'I1 Inputs'!L17 -> 0 | J30: =$C30*'I1 Inputs'!M17 -> 0 | K30: ='I1 Inputs'!P17 -> 5 | L30: 0 | M30: 0 | N30: =('I1 Inputs'!$T17/SUM('I1 Inputs'!$T$13:$T$42))*'I1 Inputs'!U17 -> 0 | O30: =('I1 Inputs'!$T17/SUM('I1 Inputs'!$T$13:$T$42))*'I1 Inputs'!V17 -> 0 | P30: =IF($C30=1,('I1 Inputs'!$W17/SUM('I1 Inputs'!$W$13:$W$42))*'I1 Inputs'!X17,N30) -> 0 | Q30: =IF($C30=1,('I1 Inputs'!$W17/SUM('I1 Inputs'!$W$13:$W$42))*'I1 Inputs'!Y17,O30) -> 0 | R30: ='I1 Inputs'!C17 -> Growth and improvement | S30: ='I1 Inputs'!D17 -> Capex | T30: ='I1 Inputs'!E17 -> Structures | U30: ='I1 Inputs'!F17 -> Urban
B31: ='I1 Inputs'!B18 -> Project 6 | C31: 1 | D31: =$C31*'I1 Inputs'!G18 -> 84135931.85 | E31: =$C31*'I1 Inputs'!H18 -> 35669847.41 | F31: =$C31*'I1 Inputs'!I18 -> 61474904.49 | G31: =$C31*'I1 Inputs'!J18 -> 54435503.39 | H31: =$C31*'I1 Inputs'!K18 -> 3895371.375 | I31: =$C31*'I1 Inputs'!L18 -> 8 | J31: =$C31*'I1 Inputs'!M18 -> 1.3 | K31: ='I1 Inputs'!P18 -> 0 | L31: 0 | M31: 0 | N31: =('I1 Inputs'!$T18/SUM('I1 Inputs'!$T$13:$T$42))*'I1 Inputs'!U18 -> 0.01142857143 | O31: =('I1 Inputs'!$T18/SUM('I1 Inputs'!$T$13:$T$42))*'I1 Inputs'!V18 -> 0.1028571429 | P31: =IF($C31=1,('I1 Inputs'!$W18/SUM('I1 Inputs'!$W$13:$W$42))*'I1 Inputs'!X18,N31) -> 0.003428571429 | Q31: =IF($C31=1,('I1 Inputs'!$W18/SUM('I1 Inputs'!$W$13:$W$42))*'I1 Inputs'!Y18,O31) -> 0.1108571429 | R31: ='I1 Inputs'!C18 -> Asset maintenance | S31: ='I1 Inputs'!D18 -> Opex | T31: ='I1 Inputs'!E18 -> Pavements | U31: ='I1 Inputs'!F18 -> Urban
B32: ='I1 Inputs'!B19 -> Project 7 | C32: 1 | D32: =$C32*'I1 Inputs'!G19 -> 87859091 | E32: =$C32*'I1 Inputs'!H19 -> 43222042 | F32: =$C32*'I1 Inputs'!I19 -> 73826636 | G32: =$C32*'I1 Inputs'!J19 -> 52824104 | H32: =$C32*'I1 Inputs'!K19 -> 4430393 | I32: =$C32*'I1 Inputs'!L19 -> 7 | J32: =$C32*'I1 Inputs'!M19 -> 1 | K32: ='I1 Inputs'!P19 -> 0 | L32: 0 | M32: 0 | N32: =('I1 Inputs'!$T19/SUM('I1 Inputs'!$T$13:$T$42))*'I1 Inputs'!U19 -> 0.008 | O32: =('I1 Inputs'!$T19/SUM('I1 Inputs'!$T$13:$T$42))*'I1 Inputs'!V19 -> 0.1062857143 | P32: =IF($C32=1,('I1 Inputs'!$W19/SUM('I1 Inputs'!$W$13:$W$42))*'I1 Inputs'!X19,N32) -> 0.004571428571 | Q32: =IF($C32=1,('I1 Inputs'!$W19/SUM('I1 Inputs'!$W$13:$W$42))*'I1 Inputs'!Y19,O32) -> 0.1097142857 | R32: ='I1 Inputs'!C19 -> Asset maintenance | S32: ='I1 Inputs'!D19 -> Opex | T32: ='I1 Inputs'!E19 -> Pavements | U32: ='I1 Inputs'!F19 -> Urban
B33: ='I1 Inputs'!B20 -> Project 8 | C33: 0 | D33: =$C33*'I1 Inputs'!G20 -> 0 | E33: =$C33*'I1 Inputs'!H20 -> 0 | F33: =$C33*'I1 Inputs'!I20 -> 0 | G33: =$C33*'I1 Inputs'!J20 -> 0 | H33: =$C33*'I1 Inputs'!K20 -> 0 | I33: =$C33*'I1 Inputs'!L20 -> 0 | J33: =$C33*'I1 Inputs'!M20 -> 0 | K33: ='I1 Inputs'!P20 -> 0 | L33: 0 | M33: 0 | N33: =('I1 Inputs'!$T20/SUM('I1 Inputs'!$T$13:$T$42))*'I1 Inputs'!U20 -> 0.01371428571 | O33: =('I1 Inputs'!$T20/SUM('I1 Inputs'!$T$13:$T$42))*'I1 Inputs'!V20 -> 0.2148571429 | P33: =IF($C33=1,('I1 Inputs'!$W20/SUM('I1 Inputs'!$W$13:$W$42))*'I1 Inputs'!X20,N33) -> 0.01371428571 | Q33: =IF($C33=1,('I1 Inputs'!$W20/SUM('I1 Inputs'!$W$13:$W$42))*'I1 Inputs'!Y20,O33) -> 0.2148571429 | R33: ='I1 Inputs'!C20 -> Asset maintenance | S33: ='I1 Inputs'!D20 -> Opex | T33: ='I1 Inputs'!E20 -> Pavements | U33: ='I1 Inputs'!F20 -> Urban
B34: ='I1 Inputs'!B21 -> Project 9 | C34: 0 | D34: =$C34*'I1 Inputs'!G21 -> 0 | E34: =$C34*'I1 Inputs'!H21 -> 0 | F34: =$C34*'I1 Inputs'!I21 -> 0 | G34: =$C34*'I1 Inputs'!J21 -> 0 | H34: =$C34*'I1 Inputs'!K21 -> 0 | I34: =$C34*'I1 Inputs'!L21 -> 0 | J34: =$C34*'I1 Inputs'!M21 -> 0 | K34: ='I1 Inputs'!P21 -> 0 | L34: 0 | M34: 0 | N34: =('I1 Inputs'!$T21/SUM('I1 Inputs'!$T$13:$T$42))*'I1 Inputs'!U21 -> 0.02742857143 | O34: =('I1 Inputs'!$T21/SUM('I1 Inputs'!$T$13:$T$42))*'I1 Inputs'!V21 -> 0.2011428571 | P34: =IF($C34=1,('I1 Inputs'!$W21/SUM('I1 Inputs'!$W$13:$W$42))*'I1 Inputs'!X21,N34) -> 0.02742857143 | Q34: =IF($C34=1,('I1 Inputs'!$W21/SUM('I1 Inputs'!$W$13:$W$42))*'I1 Inputs'!Y21,O34) -> 0.2011428571 | R34: ='I1 Inputs'!C21 -> Asset maintenance | S34: ='I1 Inputs'!D21 -> Opex | T34: ='I1 Inputs'!E21 -> Pavements | U34: ='I1 Inputs'!F21 -> Rural
B35: ='I1 Inputs'!B22 -> Project 10 | C35: 0 | D35: =$C35*'I1 Inputs'!G22 -> 0 | E35: =$C35*'I1 Inputs'!H22 -> 0 | F35: =$C35*'I1 Inputs'!I22 -> 0 | G35: =$C35*'I1 Inputs'!J22 -> 0 | H35: =$C35*'I1 Inputs'!K22 -> 0 | I35: =$C35*'I1 Inputs'!L22 -> 0 | J35: =$C35*'I1 Inputs'!M22 -> 0 | K35: ='I1 Inputs'!P22 -> 0 | L35: 0 | M35: 0 | N35: =('I1 Inputs'!$T22/SUM('I1 Inputs'!$T$13:$T$42))*'I1 Inputs'!U22 -> 0.06285714286 | O35: =('I1 Inputs'!$T22/SUM('I1 Inputs'!$T$13:$T$42))*'I1 Inputs'!V22 -> 0.2514285714 | P35: =IF($C35=1,('I1 Inputs'!$W22/SUM('I1 Inputs'!$W$13:$W$42))*'I1 Inputs'!X22,N35) -> 0.06285714286 | Q35: =IF($C35=1,('I1 Inputs'!$W22/SUM('I1 Inputs'!$W$13:$W$42))*'I1 Inputs'!Y22,O35) -> 0.2514285714 | R35: ='I1 Inputs'!C22 -> Asset maintenance | S35: ='I1 Inputs'!D22 -> Opex | T35: ='I1 Inputs'!E22 -> Pavements | U35: ='I1 Inputs'!F22 -> Rural
B36: ='I1 Inputs'!B23 -> Project 11 | C36: 1 | D36: =$C36*'I1 Inputs'!G23 -> 640379.3362 | E36: =$C36*'I1 Inputs'!H23 -> 296755.6968 | F36: =$C36*'I1 Inputs'!I23 -> 0 | G36: =$C36*'I1 Inputs'!J23 -> 937135.033 | H36: =$C36*'I1 Inputs'!K23 -> 0 | I36: =$C36*'I1 Inputs'!L23 -> 0 | J36: =$C36*'I1 Inputs'!M23 -> 0 | K36: ='I1 Inputs'!P23 -> 20 | L36: 0 | M36: 0 | N36: =('I1 Inputs'!$T23/SUM('I1 Inputs'!$T$13:$T$42))*'I1 Inputs'!U23 -> 0 | O36: =('I1 Inputs'!$T23/SUM('I1 Inputs'!$T$13:$T$42))*'I1 Inputs'!V23 -> 0 | P36: =IF($C36=1,('I1 Inputs'!$W23/SUM('I1 Inputs'!$W$13:$W$42))*'I1 Inputs'!X23,N36) -> 0 | Q36: =IF($C36=1,('I1 Inputs'!$W23/SUM('I1 Inputs'!$W$13:$W$42))*'I1 Inputs'!Y23,O36) -> 0 | R36: ='I1 Inputs'!C23 -> Growth and improvement | S36: ='I1 Inputs'!D23 -> Capex | T36: ='I1 Inputs'!E23 -> Structures | U36: ='I1 Inputs'!F23 -> Urban
B37: ='I1 Inputs'!B24 -> Project 12 | C37: 1 | D37: =$C37*'I1 Inputs'!G24 -> 462208 | E37: =$C37*'I1 Inputs'!H24 -> 284142 | F37: =$C37*'I1 Inputs'!I24 -> 0 | G37: =$C37*'I1 Inputs'!J24 -> 746350 | H37: =$C37*'I1 Inputs'!K24 -> 0 | I37: =$C37*'I1 Inputs'!L24 -> 0 | J37: =$C37*'I1 Inputs'!M24 -> 0 | K37: ='I1 Inputs'!P24 -> 12 | L37: 0 | M37: 0 | N37: =('I1 Inputs'!$T24/SUM('I1 Inputs'!$T$13:$T$42))*'I1 Inputs'!U24 -> 0 | O37: =('I1 Inputs'!$T24/SUM('I1 Inputs'!$T$13:$T$42))*'I1 Inputs'!V24 -> 0 | P37: =IF($C37=1,('I1 Inputs'!$W24/SUM('I1 Inputs'!$W$13:$W$42))*'I1 Inputs'!X24,N37) -> 0 | Q37: =IF($C37=1,('I1 Inputs'!$W24/SUM('I1 Inputs'!$W$13:$W$42))*'I1 Inputs'!Y24,O37) -> 0 | R37: ='I1 Inputs'!C24 -> Growth and improvement | S37: ='I1 Inputs'!D24 -> Capex | T37: ='I1 Inputs'!E24 -> Structures | U37: ='I1 Inputs'!F24 -> Urban
B38: ='I1 Inputs'!B25 -> Project 13 | C38: 1 | D38: =$C38*'I1 Inputs'!G25 -> 739473 | E38: =$C38*'I1 Inputs'!H25 -> 251494 | F38: =$C38*'I1 Inputs'!I25 -> 0 | G38: =$C38*'I1 Inputs'!J25 -> 990967 | H38: =$C38*'I1 Inputs'!K25 -> 0 | I38: =$C38*'I1 Inputs'!L25 -> 0 | J38: =$C38*'I1 Inputs'!M25 -> 0 | K38: ='I1 Inputs'!P25 -> 10 | L38: 0 | M38: 0 | N38: =('I1 Inputs'!$T25/SUM('I1 Inputs'!$T$13:$T$42))*'I1 Inputs'!U25 -> 0 | O38: =('I1 Inputs'!$T25/SUM('I1 Inputs'!$T$13:$T$42))*'I1 Inputs'!V25 -> 0 | P38: =IF($C38=1,('I1 Inputs'!$W25/SUM('I1 Inputs'!$W$13:$W$42))*'I1 Inputs'!X25,N38) -> 0 | Q38: =IF($C38=1,('I1 Inputs'!$W25/SUM('I1 Inputs'!$W$13:$W$42))*'I1 Inputs'!Y25,O38) -> 0 | R38: ='I1 Inputs'!C25 -> Growth and improvement | S38: ='I1 Inputs'!D25 -> Capex | T38: ='I1 Inputs'!E25 -> Structures | U38: ='I1 Inputs'!F25 -> Urban
B39: ='I1 Inputs'!B26 -> Project 14 | C39: 1 | D39: =$C39*'I1 Inputs'!G26 -> 814308 | E39: =$C39*'I1 Inputs'!H26 -> 272180 | F39: =$C39*'I1 Inputs'!I26 -> 0 | G39: =$C39*'I1 Inputs'!J26 -> 1086488 | H39: =$C39*'I1 Inputs'!K26 -> 0 | I39: =$C39*'I1 Inputs'!L26 -> 0 | J39: =$C39*'I1 Inputs'!M26 -> 0 | K39: ='I1 Inputs'!P26 -> 12 | L39: 0 | M39: 0 | N39: =('I1 Inputs'!$T26/SUM('I1 Inputs'!$T$13:$T$42))*'I1 Inputs'!U26 -> 0 | O39: =('I1 Inputs'!$T26/SUM('I1 Inputs'!$T$13:$T$42))*'I1 Inputs'!V26 -> 0 | P39: =IF($C39=1,('I1 Inputs'!$W26/SUM('I1 Inputs'!$W$13:$W$42))*'I1 Inputs'!X26,N39) -> 0 | Q39: =IF($C39=1,('I1 Inputs'!$W26/SUM('I1 Inputs'!$W$13:$W$42))*'I1 Inputs'!Y26,O39) -> 0 | R39: ='I1 Inputs'!C26 -> Growth and improvement | S39: ='I1 Inputs'!D26 -> Capex | T39: ='I1 Inputs'!E26 -> Structures | U39: ='I1 Inputs'!F26 -> Urban
B40: ='I1 Inputs'!B27 -> Project 15 | C40: 1 | D40: =$C40*'I1 Inputs'!G27 -> 746978 | E40: =$C40*'I1 Inputs'!H27 -> 232291 | F40: =$C40*'I1 Inputs'!I27 -> 0 | G40: =$C40*'I1 Inputs'!J27 -> 979269 | H40: =$C40*'I1 Inputs'!K27 -> 0 | I40: =$C40*'I1 Inputs'!L27 -> 0 | J40: =$C40*'I1 Inputs'!M27 -> 0 | K40: ='I1 Inputs'!P27 -> 16 | L40: 0 | M40: 0 | N40: =('I1 Inputs'!$T27/SUM('I1 Inputs'!$T$13:$T$42))*'I1 Inputs'!U27 -> 0 | O40: =('I1 Inputs'!$T27/SUM('I1 Inputs'!$T$13:$T$42))*'I1 Inputs'!V27 -> 0 | P40: =IF($C40=1,('I1 Inputs'!$W27/SUM('I1 Inputs'!$W$13:$W$42))*'I1 Inputs'!X27,N40) -> 0 | Q40: =IF($C40=1,('I1 Inputs'!$W27/SUM('I1 Inputs'!$W$13:$W$42))*'I1 Inputs'!Y27,O40) -> 0 | R40: ='I1 Inputs'!C27 -> Growth and improvement | S40: ='I1 Inputs'!D27 -> Capex | T40: ='I1 Inputs'!E27 -> Structures | U40: ='I1 Inputs'!F27 -> Urban
B41: ='I1 Inputs'!B28 -> Project 16 | C41: 1 | D41: =$C41*'I1 Inputs'!G28 -> 691587 | E41: =$C41*'I1 Inputs'!H28 -> 266974 | F41: =$C41*'I1 Inputs'!I28 -> 0 | G41: =$C41*'I1 Inputs'!J28 -> 958561 | H41: =$C41*'I1 Inputs'!K28 -> 0 | I41: =$C41*'I1 Inputs'!L28 -> 0 | J41: =$C41*'I1 Inputs'!M28 -> 0 | K41: ='I1 Inputs'!P28 -> 20 | L41: 0 | M41: 0 | N41: =('I1 Inputs'!$T28/SUM('I1 Inputs'!$T$13:$T$42))*'I1 Inputs'!U28 -> 0 | O41: =('I1 Inputs'!$T28/SUM('I1 Inputs'!$T$13:$T$42))*'I1 Inputs'!V28 -> 0 | P41: =IF($C41=1,('I1 Inputs'!$W28/SUM('I1 Inputs'!$W$13:$W$42))*'I1 Inputs'!X28,N41) -> 0 | Q41: =IF($C41=1,('I1 Inputs'!$W28/SUM('I1 Inputs'!$W$13:$W$42))*'I1 Inputs'!Y28,O41) -> 0 | R41: ='I1 Inputs'!C28 -> Growth and improvement | S41: ='I1 Inputs'!D28 -> Capex | T41: ='I1 Inputs'!E28 -> Structures | U41: ='I1 Inputs'!F28 -> Rural
B42: ='I1 Inputs'!B29 -> Project 17 | C42: 1 | D42: =$C42*'I1 Inputs'!G29 -> 685881 | E42: =$C42*'I1 Inputs'!H29 -> 329273 | F42: =$C42*'I1 Inputs'!I29 -> 0 | G42: =$C42*'I1 Inputs'!J29 -> 1015154 | H42: =$C42*'I1 Inputs'!K29 -> 0 | I42: =$C42*'I1 Inputs'!L29 -> 0 | J42: =$C42*'I1 Inputs'!M29 -> 0 | K42: ='I1 Inputs'!P29 -> 20 | L42: 0 | M42: 0 | N42: =('I1 Inputs'!$T29/SUM('I1 Inputs'!$T$13:$T$42))*'I1 Inputs'!U29 -> 0 | O42: =('I1 Inputs'!$T29/SUM('I1 Inputs'!$T$13:$T$42))*'I1 Inputs'!V29 -> 0 | P42: =IF($C42=1,('I1 Inputs'!$W29/SUM('I1 Inputs'!$W$13:$W$42))*'I1 Inputs'!X29,N42) -> 0 | Q42: =IF($C42=1,('I1 Inputs'!$W29/SUM('I1 Inputs'!$W$13:$W$42))*'I1 Inputs'!Y29,O42) -> 0 | R42: ='I1 Inputs'!C29 -> Growth and improvement | S42: ='I1 Inputs'!D29 -> Capex | T42: ='I1 Inputs'!E29 -> Structures | U42: ='I1 Inputs'!F29 -> Rural
B43: ='I1 Inputs'!B30 -> Project 18 | C43: 1 | D43: =$C43*'I1 Inputs'!G30 -> 557880 | E43: =$C43*'I1 Inputs'!H30 -> 261766 | F43: =$C43*'I1 Inputs'!I30 -> 0 | G43: =$C43*'I1 Inputs'!J30 -> 819646 | H43: =$C43*'I1 Inputs'!K30 -> 0 | I43: =$C43*'I1 Inputs'!L30 -> 0 | J43: =$C43*'I1 Inputs'!M30 -> 0 | K43: ='I1 Inputs'!P30 -> 20 | L43: 0 | M43: 0 | N43: =('I1 Inputs'!$T30/SUM('I1 Inputs'!$T$13:$T$42))*'I1 Inputs'!U30 -> 0 | O43: =('I1 Inputs'!$T30/SUM('I1 Inputs'!$T$13:$T$42))*'I1 Inputs'!V30 -> 0 | P43: =IF($C43=1,('I1 Inputs'!$W30/SUM('I1 Inputs'!$W$13:$W$42))*'I1 Inputs'!X30,N43) -> 0 | Q43: =IF($C43=1,('I1 Inputs'!$W30/SUM('I1 Inputs'!$W$13:$W$42))*'I1 Inputs'!Y30,O43) -> 0 | R43: ='I1 Inputs'!C30 -> Growth and improvement | S43: ='I1 Inputs'!D30 -> Capex | T43: ='I1 Inputs'!E30 -> Structures | U43: ='I1 Inputs'!F30 -> Rural
B44: ='I1 Inputs'!B31 -> Project 19 | C44: 1 | D44: =$C44*'I1 Inputs'!G31 -> 845977 | E44: =$C44*'I1 Inputs'!H31 -> 310281 | F44: =$C44*'I1 Inputs'!I31 -> 0 | G44: =$C44*'I1 Inputs'!J31 -> 1156258 | H44: =$C44*'I1 Inputs'!K31 -> 0 | I44: =$C44*'I1 Inputs'!L31 -> 0 | J44: =$C44*'I1 Inputs'!M31 -> 0 | K44: ='I1 Inputs'!P31 -> 16 | L44: 0 | M44: 0 | N44: =('I1 Inputs'!$T31/SUM('I1 Inputs'!$T$13:$T$42))*'I1 Inputs'!U31 -> 0 | O44: =('I1 Inputs'!$T31/SUM('I1 Inputs'!$T$13:$T$42))*'I1 Inputs'!V31 -> 0 | P44: =IF($C44=1,('I1 Inputs'!$W31/SUM('I1 Inputs'!$W$13:$W$42))*'I1 Inputs'!X31,N44) -> 0 | Q44: =IF($C44=1,('I1 Inputs'!$W31/SUM('I1 Inputs'!$W$13:$W$42))*'I1 Inputs'!Y31,O44) -> 0 | R44: ='I1 Inputs'!C31 -> Growth and improvement | S44: ='I1 Inputs'!D31 -> Capex | T44: ='I1 Inputs'!E31 -> Structures | U44: ='I1 Inputs'!F31 -> Rural
B45: ='I1 Inputs'!B32 -> Project 20 | C45: 1 | D45: =$C45*'I1 Inputs'!G32 -> 692645 | E45: =$C45*'I1 Inputs'!H32 -> 256936 | F45: =$C45*'I1 Inputs'!I32 -> 0 | G45: =$C45*'I1 Inputs'!J32 -> 949581 | H45: =$C45*'I1 Inputs'!K32 -> 0 | I45: =$C45*'I1 Inputs'!L32 -> 0 | J45: =$C45*'I1 Inputs'!M32 -> 0 | K45: ='I1 Inputs'!P32 -> 15 | L45: 0 | M45: 0 | N45: =('I1 Inputs'!$T32/SUM('I1 Inputs'!$T$13:$T$42))*'I1 Inputs'!U32 -> 0 | O45: =('I1 Inputs'!$T32/SUM('I1 Inputs'!$T$13:$T$42))*'I1 Inputs'!V32 -> 0 | P45: =IF($C45=1,('I1 Inputs'!$W32/SUM('I1 Inputs'!$W$13:$W$42))*'I1 Inputs'!X32,N45) -> 0 | Q45: =IF($C45=1,('I1 Inputs'!$W32/SUM('I1 Inputs'!$W$13:$W$42))*'I1 Inputs'!Y32,O45) -> 0 | R45: ='I1 Inputs'!C32 -> Growth and improvement | S45: ='I1 Inputs'!D32 -> Capex | T45: ='I1 Inputs'!E32 -> Structures | U45: ='I1 Inputs'!F32 -> Rural
B46: ='I1 Inputs'!B33 -> Project 21 | C46: 1 | D46: =$C46*'I1 Inputs'!G33 -> 880343.4421 | E46: =$C46*'I1 Inputs'!H33 -> 139000 | F46: =$C46*'I1 Inputs'!I33 -> 18685.15758 | G46: =$C46*'I1 Inputs'!J33 -> 78990.20152 | H46: =$C46*'I1 Inputs'!K33 -> 921668.083 | I46: =$C46*'I1 Inputs'!L33 -> 0.01 | J46: =$C46*'I1 Inputs'!M33 -> 0.2 | K46: ='I1 Inputs'!P33 -> 9 | L46: 0 | M46: 0 | N46: =('I1 Inputs'!$T33/SUM('I1 Inputs'!$T$13:$T$42))*'I1 Inputs'!U33 -> 0 | O46: =('I1 Inputs'!$T33/SUM('I1 Inputs'!$T$13:$T$42))*'I1 Inputs'!V33 -> 0 | P46: =IF($C46=1,('I1 Inputs'!$W33/SUM('I1 Inputs'!$W$13:$W$42))*'I1 Inputs'!X33,N46) -> 0 | Q46: =IF($C46=1,('I1 Inputs'!$W33/SUM('I1 Inputs'!$W$13:$W$42))*'I1 Inputs'!Y33,O46) -> 0 | R46: ='I1 Inputs'!C33 -> Services and operations | S46: ='I1 Inputs'!D33 -> Opex | T46: ='I1 Inputs'!E33 -> Traffic facility | U46: ='I1 Inputs'!F33 -> Urban
B47: ='I1 Inputs'!B34 -> Project 22 | C47: 1 | D47: =$C47*'I1 Inputs'!G34 -> 910690 | E47: =$C47*'I1 Inputs'!H34 -> 133117 | F47: =$C47*'I1 Inputs'!I34 -> 21547 | G47: =$C47*'I1 Inputs'!J34 -> 68990 | H47: =$C47*'I1 Inputs'!K34 -> 953270 | I47: =$C47*'I1 Inputs'!L34 -> 1 | J47: =$C47*'I1 Inputs'!M34 -> 1 | K47: ='I1 Inputs'!P34 -> 4 | L47: 0 | M47: 0 | N47: =('I1 Inputs'!$T34/SUM('I1 Inputs'!$T$13:$T$42))*'I1 Inputs'!U34 -> 0 | O47: =('I1 Inputs'!$T34/SUM('I1 Inputs'!$T$13:$T$42))*'I1 Inputs'!V34 -> 0 | P47: =IF($C47=1,('I1 Inputs'!$W34/SUM('I1 Inputs'!$W$13:$W$42))*'I1 Inputs'!X34,N47) -> 0 | Q47: =IF($C47=1,('I1 Inputs'!$W34/SUM('I1 Inputs'!$W$13:$W$42))*'I1 Inputs'!Y34,O47) -> 0 | R47: ='I1 Inputs'!C34 -> Services and operations | S47: ='I1 Inputs'!D34 -> Opex | T47: ='I1 Inputs'!E34 -> Traffic facility | U47: ='I1 Inputs'!F34 -> Urban
B48: ='I1 Inputs'!B35 -> Project 23 | C48: 1 | D48: =$C48*'I1 Inputs'!G35 -> 813737 | E48: =$C48*'I1 Inputs'!H35 -> 122117 | F48: =$C48*'I1 Inputs'!I35 -> 14475 | G48: =$C48*'I1 Inputs'!J35 -> 74959 | H48: =$C48*'I1 Inputs'!K35 -> 846420 | I48: =$C48*'I1 Inputs'!L35 -> 1 | J48: =$C48*'I1 Inputs'!M35 -> 1 | K48: ='I1 Inputs'!P35 -> 5 | L48: 0 | M48: 0 | N48: =('I1 Inputs'!$T35/SUM('I1 Inputs'!$T$13:$T$42))*'I1 Inputs'!U35 -> 0 | O48: =('I1 Inputs'!$T35/SUM('I1 Inputs'!$T$13:$T$42))*'I1 Inputs'!V35 -> 0 | P48: =IF($C48=1,('I1 Inputs'!$W35/SUM('I1 Inputs'!$W$13:$W$42))*'I1 Inputs'!X35,N48) -> 0 | Q48: =IF($C48=1,('I1 Inputs'!$W35/SUM('I1 Inputs'!$W$13:$W$42))*'I1 Inputs'!Y35,O48) -> 0 | R48: ='I1 Inputs'!C35 -> Services and operations | S48: ='I1 Inputs'!D35 -> Opex | T48: ='I1 Inputs'!E35 -> Traffic facility | U48: ='I1 Inputs'!F35 -> Urban
B49: ='I1 Inputs'!B36 -> Project 24 | C49: 1 | D49: =$C49*'I1 Inputs'!G36 -> 780070 | E49: =$C49*'I1 Inputs'!H36 -> 107198 | F49: =$C49*'I1 Inputs'!I36 -> 14440 | G49: =$C49*'I1 Inputs'!J36 -> 97917 | H49: =$C49*'I1 Inputs'!K36 -> 774911 | I49: =$C49*'I1 Inputs'!L36 -> 1 | J49: =$C49*'I1 Inputs'!M36 -> 1 | K49: ='I1 Inputs'!P36 -> 4 | L49: 0 | M49: 0 | N49: =('I1 Inputs'!$T36/SUM('I1 Inputs'!$T$13:$T$42))*'I1 Inputs'!U36 -> 0 | O49: =('I1 Inputs'!$T36/SUM('I1 Inputs'!$T$13:$T$42))*'I1 Inputs'!V36 -> 0 | P49: =IF($C49=1,('I1 Inputs'!$W36/SUM('I1 Inputs'!$W$13:$W$42))*'I1 Inputs'!X36,N49) -> 0 | Q49: =IF($C49=1,('I1 Inputs'!$W36/SUM('I1 Inputs'!$W$13:$W$42))*'I1 Inputs'!Y36,O49) -> 0 | R49: ='I1 Inputs'!C36 -> Services and operations | S49: ='I1 Inputs'!D36 -> Opex | T49: ='I1 Inputs'!E36 -> Traffic facility | U49: ='I1 Inputs'!F36 -> Urban
B50: ='I1 Inputs'!B37 -> Project 25 | C50: 1 | D50: =$C50*'I1 Inputs'!G37 -> 1152620 | E50: =$C50*'I1 Inputs'!H37 -> 112035 | F50: =$C50*'I1 Inputs'!I37 -> 22642 | G50: =$C50*'I1 Inputs'!J37 -> 93953 | H50: =$C50*'I1 Inputs'!K37 -> 1148060 | I50: =$C50*'I1 Inputs'!L37 -> 1 | J50: =$C50*'I1 Inputs'!M37 -> 1 | K50: ='I1 Inputs'!P37 -> 3 | L50: 0 | M50: 0 | N50: =('I1 Inputs'!$T37/SUM('I1 Inputs'!$T$13:$T$42))*'I1 Inputs'!U37 -> 0 | O50: =('I1 Inputs'!$T37/SUM('I1 Inputs'!$T$13:$T$42))*'I1 Inputs'!V37 -> 0 | P50: =IF($C50=1,('I1 Inputs'!$W37/SUM('I1 Inputs'!$W$13:$W$42))*'I1 Inputs'!X37,N50) -> 0 | Q50: =IF($C50=1,('I1 Inputs'!$W37/SUM('I1 Inputs'!$W$13:$W$42))*'I1 Inputs'!Y37,O50) -> 0 | R50: ='I1 Inputs'!C37 -> Services and operations | S50: ='I1 Inputs'!D37 -> Opex | T50: ='I1 Inputs'!E37 -> Traffic facility | U50: ='I1 Inputs'!F37 -> Urban
B51: ='I1 Inputs'!B38 -> Project 26 | C51: 1 | D51: =$C51*'I1 Inputs'!G38 -> 743609 | E51: =$C51*'I1 Inputs'!H38 -> 120470 | F51: =$C51*'I1 Inputs'!I38 -> 21651 | G51: =$C51*'I1 Inputs'!J38 -> 91781 | H51: =$C51*'I1 Inputs'!K38 -> 750647 | I51: =$C51*'I1 Inputs'!L38 -> 1 | J51: =$C51*'I1 Inputs'!M38 -> 1 | K51: ='I1 Inputs'!P38 -> 3 | L51: 0 | M51: 0 | N51: =('I1 Inputs'!$T38/SUM('I1 Inputs'!$T$13:$T$42))*'I1 Inputs'!U38 -> 0 | O51: =('I1 Inputs'!$T38/SUM('I1 Inputs'!$T$13:$T$42))*'I1 Inputs'!V38 -> 0 | P51: =IF($C51=1,('I1 Inputs'!$W38/SUM('I1 Inputs'!$W$13:$W$42))*'I1 Inputs'!X38,N51) -> 0 | Q51: =IF($C51=1,('I1 Inputs'!$W38/SUM('I1 Inputs'!$W$13:$W$42))*'I1 Inputs'!Y38,O51) -> 0 | R51: ='I1 Inputs'!C38 -> Services and operations | S51: ='I1 Inputs'!D38 -> Opex | T51: ='I1 Inputs'!E38 -> Traffic facility | U51: ='I1 Inputs'!F38 -> Rural
B52: ='I1 Inputs'!B39 -> Project 27 | C52: 1 | D52: =$C52*'I1 Inputs'!G39 -> 819990 | E52: =$C52*'I1 Inputs'!H39 -> 132448 | F52: =$C52*'I1 Inputs'!I39 -> 14058 | G52: =$C52*'I1 Inputs'!J39 -> 93471 | H52: =$C52*'I1 Inputs'!K39 -> 844909 | I52: =$C52*'I1 Inputs'!L39 -> 1 | J52: =$C52*'I1 Inputs'!M39 -> 1 | K52: ='I1 Inputs'!P39 -> 4 | L52: 0 | M52: 0 | N52: =('I1 Inputs'!$T39/SUM('I1 Inputs'!$T$13:$T$42))*'I1 Inputs'!U39 -> 0 | O52: =('I1 Inputs'!$T39/SUM('I1 Inputs'!$T$13:$T$42))*'I1 Inputs'!V39 -> 0 | P52: =IF($C52=1,('I1 Inputs'!$W39/SUM('I1 Inputs'!$W$13:$W$42))*'I1 Inputs'!X39,N52) -> 0 | Q52: =IF($C52=1,('I1 Inputs'!$W39/SUM('I1 Inputs'!$W$13:$W$42))*'I1 Inputs'!Y39,O52) -> 0 | R52: ='I1 Inputs'!C39 -> Services and operations | S52: ='I1 Inputs'!D39 -> Opex | T52: ='I1 Inputs'!E39 -> Traffic facility | U52: ='I1 Inputs'!F39 -> Rural
B53: ='I1 Inputs'!B40 -> Project 28 | C53: 1 | D53: =$C53*'I1 Inputs'!G40 -> 1066856 | E53: =$C53*'I1 Inputs'!H40 -> 161622 | F53: =$C53*'I1 Inputs'!I40 -> 23334 | G53: =$C53*'I1 Inputs'!J40 -> 81416 | H53: =$C53*'I1 Inputs'!K40 -> 1123728 | I53: =$C53*'I1 Inputs'!L40 -> 1 | J53: =$C53*'I1 Inputs'!M40 -> 1 | K53: ='I1 Inputs'!P40 -> 5 | L53: 0 | M53: 0 | N53: =('I1 Inputs'!$T40/SUM('I1 Inputs'!$T$13:$T$42))*'I1 Inputs'!U40 -> 0 | O53: =('I1 Inputs'!$T40/SUM('I1 Inputs'!$T$13:$T$42))*'I1 Inputs'!V40 -> 0 | P53: =IF($C53=1,('I1 Inputs'!$W40/SUM('I1 Inputs'!$W$13:$W$42))*'I1 Inputs'!X40,N53) -> 0 | Q53: =IF($C53=1,('I1 Inputs'!$W40/SUM('I1 Inputs'!$W$13:$W$42))*'I1 Inputs'!Y40,O53) -> 0 | R53: ='I1 Inputs'!C40 -> Services and operations | S53: ='I1 Inputs'!D40 -> Opex | T53: ='I1 Inputs'!E40 -> Traffic facility | U53: ='I1 Inputs'!F40 -> Rural
B54: ='I1 Inputs'!B41 -> Project 29 | C54: 1 | D54: =$C54*'I1 Inputs'!G41 -> 1081725 | E54: =$C54*'I1 Inputs'!H41 -> 111433 | F54: =$C54*'I1 Inputs'!I41 -> 22131 | G54: =$C54*'I1 Inputs'!J41 -> 95855 | H54: =$C54*'I1 Inputs'!K41 -> 1075172 | I54: =$C54*'I1 Inputs'!L41 -> 1 | J54: =$C54*'I1 Inputs'!M41 -> 1 | K54: ='I1 Inputs'!P41 -> 2 | L54: 0 | M54: 0 | N54: =('I1 Inputs'!$T41/SUM('I1 Inputs'!$T$13:$T$42))*'I1 Inputs'!U41 -> 0 | O54: =('I1 Inputs'!$T41/SUM('I1 Inputs'!$T$13:$T$42))*'I1 Inputs'!V41 -> 0 | P54: =IF($C54=1,('I1 Inputs'!$W41/SUM('I1 Inputs'!$W$13:$W$42))*'I1 Inputs'!X41,N54) -> 0 | Q54: =IF($C54=1,('I1 Inputs'!$W41/SUM('I1 Inputs'!$W$13:$W$42))*'I1 Inputs'!Y41,O54) -> 0 | R54: ='I1 Inputs'!C41 -> Services and operations | S54: ='I1 Inputs'!D41 -> Opex | T54: ='I1 Inputs'!E41 -> Traffic facility | U54: ='I1 Inputs'!F41 -> Rural
B55: ='I1 Inputs'!B42 -> Project 30 | C55: 1 | D55: =$C55*'I1 Inputs'!G42 -> 1038671 | E55: =$C55*'I1 Inputs'!H42 -> 162763 | F55: =$C55*'I1 Inputs'!I42 -> 14612 | G55: =$C55*'I1 Inputs'!J42 -> 88817 | H55: =$C55*'I1 Inputs'!K42 -> 1098005 | I55: =$C55*'I1 Inputs'!L42 -> 1 | J55: =$C55*'I1 Inputs'!M42 -> 1 | K55: ='I1 Inputs'!P42 -> 2 | L55: 0 | M55: 0 | N55: =('I1 Inputs'!$T42/SUM('I1 Inputs'!$T$13:$T$42))*'I1 Inputs'!U42 -> 0 | O55: =('I1 Inputs'!$T42/SUM('I1 Inputs'!$T$13:$T$42))*'I1 Inputs'!V42 -> 0 | P55: =IF($C55=1,('I1 Inputs'!$W42/SUM('I1 Inputs'!$W$13:$W$42))*'I1 Inputs'!X42,N55) -> 0 | Q55: =IF($C55=1,('I1 Inputs'!$W42/SUM('I1 Inputs'!$W$13:$W$42))*'I1 Inputs'!Y42,O55) -> 0 | R55: ='I1 Inputs'!C42 -> Services and operations | S55: ='I1 Inputs'!D42 -> Opex | T55: ='I1 Inputs'!E42 -> Traffic facility | U55: ='I1 Inputs'!F42 -> Rural
B56: Total | C56: =SUM(C26:C55) -> 26 | D56: =SUM(D26:D55) -> 201728527.6 | E56: 189242351.1 | F56: =SUM(F26:F55) -> 196391939.7 | G56: =SUM(G26:G55) -> 161110888.6 | H56: =SUM(H26:H55) -> 33468050.46 | I56: =SUM(I26:I55) -> 91.01 | J56: =SUM(J26:J55) -> 42.5 | L56: =SUM(L26:L55) -> 0 | M56: =SUM(M26:M55) -> 0 | N56: 0.1234285714 | O56: 0.8765714286 | P56: 0.112 | Q56: 0.888
B58: Optimisation outputs | W58: Re-ordering for dashboard
B60: Scenario 1 results | W60: Scenario 1 results (dollar values now in millions)
B62: Project | C62: Funding indicator | D62: NPV ($) (PV of benefits less PV of costs) | E62: PV of costs ($) | F62: PV of safety benefits ($) | G62: PV of user travel cost benefits ($) | H62: PV of other benefits ($) | I62: Lives saved over first 10 years | J62: Hours of travel time saved (millions) | K62: Risk score | L62: Risk tolerance exceeded? | M62: Risk mitigated | N62: Road length weighted proportion in bad condition (base case) | O62: Road length weighted proportion in good condition (base case) | P62: Road length weighted proportion in bad condition (investment case) | Q62: Road length weighted proportion in good condition (investment case) | R62: Service group | S62: Expenditure category | T62: Asset class | U62: Region | W62: NPV rank | X62: NPV rank | Y62: Project | Z62: NPV ($) (PV of benefits less PV of costs) | AA62: PV of costs ($) | AB62: PV of safety benefits ($) | AC62: PV of user travel cost benefits ($) | AD62: PV of other benefits ($) | AE62: Lives saved over first 10 years | AF62: Hours of travel time saved (millions) | AG62: Risk score | AH62: Service group | AI62: Expenditure category | AJ62: Asset class | AK62: Region
B63: Project 1 | C63: 0 | D63: 0 | E63: 0 | F63: 0 | G63: 0 | H63: 0 | I63: 0 | J63: 0 | K63: 12 | L63: 0 | M63: 0 | N63: 0 | O63: 0 | P63: 0 | Q63: 0 | R63: Growth and improvement | S63: Capex | T63: Pavements | U63: Urban | W63: =IF(C63>0,RANK($D63,$D$63:$D$92),0) -> 0 | X63: 1 | Y63: =IFERROR(INDEX($B$63:$B$92,MATCH($X63,$W$63:$W$92,0)),"") -> Project 7 | Z63: =IFERROR(INDEX($C$63:$U$93,MATCH($Y63,$B$63:$B$93,0),MATCH(Z$62,$C$62:$U$62,0))/10^6,"") -> 87.859091 | AA63: 43.222042 | AB63: 73.826636 | AC63: 52.824104 | AD63: 4.430393 | AE63: =IFERROR(INDEX($C$63:$U$93,MATCH($Y63,$B$63:$B$93,0),MATCH(AE$62,$C$62:$U$62,0)),"") -> 7 | AF63: 1 | AG63: =IFERROR(INDEX($C$63:$U$93,MATCH($Y63,$B$63:$B$93,0),MATCH(AG$62,$C$62:$U$62,0)),"") -> 0 | AH63: =IFERROR(INDEX($C$63:$U$93,MATCH($Y63,$B$63:$B$93,0),MATCH(AH$62,$C$62:$U$62,0)),"") -> Asset maintenance | AI63: Opex | AJ63: Pavements | AK63: Urban
B64: Project 2 | C64: 0 | D64: 0 | E64: 0 | F64: 0 | G64: 0 | H64: 0 | I64: 0 | J64: 0 | K64: 12 | L64: 0 | M64: 0 | N64: 0 | O64: 0 | P64: 0 | Q64: 0 | R64: Growth and improvement | S64: Capex | T64: Pavements | U64: Urban | W64: 0 | X64: =X63+1 -> 2 | Y64: Project 9 | Z64: 87.60994 | AA64: 36.179264 | AB64: 72.353852 | AC64: 46.891955 | AD64: 4.543397 | AE64: 6 | AF64: 1 | AG64: 0 | AH64: Asset maintenance | AI64: Opex | AJ64: Pavements | AK64: Rural
B65: Project 3 | C65: 0 | D65: 0 | E65: 0 | F65: 0 | G65: 0 | H65: 0 | I65: 0 | J65: 0 | K65: 15 | L65: 0 | M65: 0 | N65: 0 | O65: 0 | P65: 0 | Q65: 0 | R65: Growth and improvement | S65: Capex | T65: Pavements | U65: Urban | W65: 0 | X65: =X64+1 -> 3 | Y65: Project 6 | Z65: 84.13593185 | AA65: 35.66984741 | AB65: 61.47490449 | AC65: 54.43550339 | AD65: 3.895371375 | AE65: 8 | AF65: 1.3 | AG65: 0 | AH65: Asset maintenance | AI65: Opex | AJ65: Pavements | AK65: Urban
B66: Project 4 | C66: 0 | D66: 0 | E66: 0 | F66: 0 | G66: 0 | H66: 0 | I66: 0 | J66: 0 | K66: 15 | L66: 0 | M66: 0 | N66: 0 | O66: 0 | P66: 0 | Q66: 0 | R66: Growth and improvement | S66: Capex | T66: Structures | U66: Urban | W66: 0 | X66: 4 | Y66: Project 10 | Z66: 80.506112 | AA66: 31.160641 | AB66: 48.959368 | AC66: 59.569752 | AD66: 3.137633 | AE66: 9 | AF66: 1 | AG66: 0 | AH66: Asset maintenance | AI66: Opex | AJ66: Pavements | AK66: Rural
B67: Project 5 | C67: 0 | D67: 0 | E67: 0 | F67: 0 | G67: 0 | H67: 0 | I67: 0 | J67: 0 | K67: 5 | L67: 0 | M67: 0 | N67: 0 | O67: 0 | P67: 0 | Q67: 0 | R67: Growth and improvement | S67: Capex | T67: Structures | U67: Urban | W67: 0 | X67: 5 | Y67: Project 8 | Z67: 73.149081 | AA67: 38.893698 | AB67: 54.183073 | AC67: 54.012382 | AD67: 3.847324 | AE67: 10 | AF67: 1 | AG67: 0 | AH67: Asset maintenance | AI67: Opex | AJ67: Pavements | AK67: Urban
B68: Project 6 | C68: 1 | D68: 84135931.85 | E68: 35669847.41 | F68: 61474904.49 | G68: 54435503.39 | H68: 3895371.375 | I68: 8 | J68: 1.3 | K68: 0 | L68: 0 | M68: 0 | N68: 0.01142857143 | O68: 0.1028571429 | P68: 0.003428571429 | Q68: 0.1108571429 | R68: Asset maintenance | S68: Opex | T68: Pavements | U68: Urban | W68: 3 | X68: 6 | Y68: Project 25 | Z68: 1.15262 | AA68: 0.112035 | AB68: 0.022642 | AC68: 0.093953 | AD68: 1.14806 | AE68: 1 | AF68: 1 | AG68: 3 | AH68: Services and operations | AI68: Opex | AJ68: Traffic facility | AK68: Urban
B69: Project 7 | C69: 1 | D69: 87859091 | E69: 43222042 | F69: 73826636 | G69: 52824104 | H69: 4430393 | I69: 7 | J69: 1 | K69: 0 | L69: 0 | M69: 0 | N69: 0.008 | O69: 0.1062857143 | P69: 0.004571428571 | Q69: 0.1097142857 | R69: Asset maintenance | S69: Opex | T69: Pavements | U69: Urban | W69: 1 | X69: 7 | Y69: Project 29 | Z69: 1.081725 | AA69: 0.111433 | AB69: 0.022131 | AC69: 0.095855 | AD69: 1.075172 | AE69: 1 | AF69: 1 | AG69: 2 | AH69: Services and operations | AI69: Opex | AJ69: Traffic facility | AK69: Rural
B70: Project 8 | C70: 1 | D70: 73149081 | E70: 38893698 | F70: 54183073 | G70: 54012382 | H70: 3847324 | I70: 10 | J70: 1 | K70: 0 | L70: 0 | M70: 0 | N70: 0.01371428571 | O70: 0.2148571429 | P70: 0.006857142857 | Q70: 0.2217142857 | R70: Asset maintenance | S70: Opex | T70: Pavements | U70: Urban | W70: 5 | X70: 8 | Y70: Project 28 | Z70: 1.066856 | AA70: 0.161622 | AB70: 0.023334 | AC70: 0.081416 | AD70: 1.123728 | AE70: 1 | AF70: 1 | AG70: 5 | AH70: Services and operations | AI70: Opex | AJ70: Traffic facility | AK70: Rural
B71: Project 9 | C71: 1 | D71: 87609940 | E71: 36179264 | F71: 72353852 | G71: 46891955 | H71: 4543397 | I71: 6 | J71: 1 | K71: 0 | L71: 0 | M71: 0 | N71: 0.02742857143 | O71: 0.2011428571 | P71: 0.016 | Q71: 0.2125714286 | R71: Asset maintenance | S71: Opex | T71: Pavements | U71: Rural | W71: 2 | X71: 9 | Y71: Project 30 | Z71: 1.038671 | AA71: 0.162763 | AB71: 0.014612 | AC71: 0.088817 | AD71: 1.098005 | AE71: 1 | AF71: 1 | AG71: 2 | AH71: Services and operations | AI71: Opex | AJ71: Traffic facility | AK71: Rural
B72: Project 10 | C72: 1 | D72: 80506112 | E72: 31160641 | F72: 48959368 | G72: 59569752 | H72: 3137633 | I72: 9 | J72: 1 | K72: 0 | L72: 0 | M72: 0 | N72: 0.06285714286 | O72: 0.2514285714 | P72: 0.03142857143 | Q72: 0.2828571429 | R72: Asset maintenance | S72: Opex | T72: Pavements | U72: Rural | W72: 4 | X72: 10 | Y72: Project 22 | Z72: 0.91069 | AA72: 0.133117 | AB72: 0.021547 | AC72: 0.06899 | AD72: 0.95327 | AE72: 1 | AF72: 1 | AG72: 4 | AH72: Services and operations | AI72: Opex | AJ72: Traffic facility | AK72: Urban
B73: Project 11 | C73: 1 | D73: 640379.3362 | E73: 296755.6968 | F73: 0 | G73: 937135.033 | H73: 0 | I73: 0 | J73: 0 | K73: 20 | L73: 0 | M73: 0 | N73: 0 | O73: 0 | P73: 0 | Q73: 0 | R73: Growth and improvement | S73: Capex | T73: Structures | U73: Urban | W73: 23 | X73: 11 | Y73: Project 21 | Z73: =IFERROR(INDEX($C$63:$U$93,MATCH($Y73,$B$63:$B$93,0),MATCH(Z$62,$C$62:$U$62,0))/10^6,"") -> 0.8803434421 | AA73: 0.139 | AB73: 0.01868515758 | AC73: 0.07899020152 | AD73: 0.921668083 | AE73: 0.01 | AF73: 0.2 | AG73: =IFERROR(INDEX($C$63:$U$93,MATCH($Y73,$B$63:$B$93,0),MATCH(AG$62,$C$62:$U$62,0)),"") -> 9 | AH73: Services and operations | AI73: Opex | AJ73: Traffic facility | AK73: Urban
B74: Project 12 | C74: 1 | D74: 462208 | E74: 284142 | F74: 0 | G74: 746350 | H74: 0 | I74: 0 | J74: 0 | K74: 12 | L74: 0 | M74: 0 | N74: 0 | O74: 0 | P74: 0 | Q74: 0 | R74: Growth and improvement | S74: Capex | T74: Structures | U74: Urban | W74: 25 | X74: 12 | Y74: Project 19 | Z74: 0.845977 | AA74: 0.310281 | AB74: 0 | AC74: 1.156258 | AD74: 0 | AE74: 0 | AF74: 0 | AG74: 16 | AH74: Growth and improvement | AI74: Capex | AJ74: Structures | AK74: Rural
B75: Project 13 | C75: 1 | D75: 739473 | E75: 251494 | F75: 0 | G75: 990967 | H75: 0 | I75: 0 | J75: 0 | K75: 10 | L75: 0 | M75: 0 | N75: 0 | O75: 0 | P75: 0 | Q75: 0 | R75: Growth and improvement | S75: Capex | T75: Structures | U75: Urban | W75: 19 | X75: 13 | Y75: Project 27 | Z75: 0.81999 | AA75: 0.132448 | AB75: 0.014058 | AC75: 0.093471 | AD75: 0.844909 | AE75: 1 | AF75: 1 | AG75: 4 | AH75: Services and operations | AI75: Opex | AJ75: Traffic facility | AK75: Rural
B76: Project 14 | C76: 1 | D76: 814308 | E76: 272180 | F76: 0 | G76: 1086488 | H76: 0 | I76: 0 | J76: 0 | K76: 12 | L76: 0 | M76: 0 | N76: 0 | O76: 0 | P76: 0 | Q76: 0 | R76: Growth and improvement | S76: Capex | T76: Structures | U76: Urban | W76: 14 | X76: 14 | Y76: Project 14 | Z76: 0.814308 | AA76: 0.27218 | AB76: 0 | AC76: 1.086488 | AD76: 0 | AE76: 0 | AF76: 0 | AG76: 12 | AH76: Growth and improvement | AI76: Capex | AJ76: Structures | AK76: Urban
B77: Project 15 | C77: 1 | D77: 746978 | E77: 232291 | F77: 0 | G77: 979269 | H77: 0 | I77: 0 | J77: 0 | K77: 16 | L77: 0 | M77: 0 | N77: 0 | O77: 0 | P77: 0 | Q77: 0 | R77: Growth and improvement | S77: Capex | T77: Structures | U77: Urban | W77: 17 | X77: 15 | Y77: Project 23 | Z77: 0.813737 | AA77: 0.122117 | AB77: 0.014475 | AC77: 0.074959 | AD77: 0.84642 | AE77: 1 | AF77: 1 | AG77: 5 | AH77: Services and operations | AI77: Opex | AJ77: Traffic facility | AK77: Urban
B78: Project 16 | C78: 1 | D78: 691587 | E78: 266974 | F78: 0 | G78: 958561 | H78: 0 | I78: 0 | J78: 0 | K78: 20 | L78: 0 | M78: 0 | N78: 0 | O78: 0 | P78: 0 | Q78: 0 | R78: Growth and improvement | S78: Capex | T78: Structures | U78: Rural | W78: 21 | X78: 16 | Y78: Project 24 | Z78: 0.78007 | AA78: 0.107198 | AB78: 0.01444 | AC78: 0.097917 | AD78: 0.774911 | AE78: 1 | AF78: 1 | AG78: 4 | AH78: Services and operations | AI78: Opex | AJ78: Traffic facility | AK78: Urban
B79: Project 17 | C79: 1 | D79: 685881 | E79: 329273 | F79: 0 | G79: 1015154 | H79: 0 | I79: 0 | J79: 0 | K79: 20 | L79: 0 | M79: 0 | N79: 0 | O79: 0 | P79: 0 | Q79: 0 | R79: Growth and improvement | S79: Capex | T79: Structures | U79: Rural | W79: 22 | X79: 17 | Y79: Project 15 | Z79: 0.746978 | AA79: 0.232291 | AB79: 0 | AC79: 0.979269 | AD79: 0 | AE79: 0 | AF79: 0 | AG79: 16 | AH79: Growth and improvement | AI79: Capex | AJ79: Structures | AK79: Urban
B80: Project 18 | C80: 1 | D80: 557880 | E80: 261766 | F80: 0 | G80: 819646 | H80: 0 | I80: 0 | J80: 0 | K80: 20 | L80: 0 | M80: 0 | N80: 0 | O80: 0 | P80: 0 | Q80: 0 | R80: Growth and improvement | S80: Capex | T80: Structures | U80: Rural | W80: 24 | X80: 18 | Y80: Project 26 | Z80: 0.743609 | AA80: 0.12047 | AB80: 0.021651 | AC80: 0.091781 | AD80: 0.750647 | AE80: 1 | AF80: 1 | AG80: 3 | AH80: Services and operations | AI80: Opex | AJ80: Traffic facility | AK80: Rural
B81: Project 19 | C81: 1 | D81: 845977 | E81: 310281 | F81: 0 | G81: 1156258 | H81: 0 | I81: 0 | J81: 0 | K81: 16 | L81: 0 | M81: 0 | N81: 0 | O81: 0 | P81: 0 | Q81: 0 | R81: Growth and improvement | S81: Capex | T81: Structures | U81: Rural | W81: 12 | X81: 19 | Y81: Project 13 | Z81: 0.739473 | AA81: 0.251494 | AB81: 0 | AC81: 0.990967 | AD81: 0 | AE81: 0 | AF81: 0 | AG81: 10 | AH81: Growth and improvement | AI81: Capex | AJ81: Structures | AK81: Urban
B82: Project 20 | C82: 1 | D82: 692645 | E82: 256936 | F82: 0 | G82: 949581 | H82: 0 | I82: 0 | J82: 0 | K82: 15 | L82: 0 | M82: 0 | N82: 0 | O82: 0 | P82: 0 | Q82: 0 | R82: Growth and improvement | S82: Capex | T82: Structures | U82: Rural | W82: 20 | X82: 20 | Y82: Project 20 | Z82: 0.692645 | AA82: 0.256936 | AB82: 0 | AC82: 0.949581 | AD82: 0 | AE82: 0 | AF82: 0 | AG82: 15 | AH82: Growth and improvement | AI82: Capex | AJ82: Structures | AK82: Rural
B83: Project 21 | C83: 1 | D83: 880343.4421 | E83: 139000 | F83: 18685.15758 | G83: 78990.20152 | H83: 921668.083 | I83: 0.01 | J83: 0.2 | K83: 9 | L83: 0 | M83: 0 | N83: 0 | O83: 0 | P83: 0 | Q83: 0 | R83: Services and operations | S83: Opex | T83: Traffic facility | U83: Urban | W83: 11 | X83: 21 | Y83: Project 16 | Z83: =IFERROR(INDEX($C$63:$U$93,MATCH($Y83,$B$63:$B$93,0),MATCH(Z$62,$C$62:$U$62,0))/10^6,"") -> 0.691587 | AA83: 0.266974 | AB83: 0 | AC83: 0.958561 | AD83: 0 | AE83: 0 | AF83: 0 | AG83: =IFERROR(INDEX($C$63:$U$93,MATCH($Y83,$B$63:$B$93,0),MATCH(AG$62,$C$62:$U$62,0)),"") -> 20 | AH83: Growth and improvement | AI83: Capex | AJ83: Structures | AK83: Rural
B84: Project 22 | C84: 1 | D84: 910690 | E84: 133117 | F84: 21547 | G84: 68990 | H84: 953270 | I84: 1 | J84: 1 | K84: 4 | L84: 0 | M84: 0 | N84: 0 | O84: 0 | P84: 0 | Q84: 0 | R84: Services and operations | S84: Opex | T84: Traffic facility | U84: Urban | W84: 10 | X84: 22 | Y84: Project 17 | Z84: 0.685881 | AA84: 0.329273 | AB84: 0 | AC84: 1.015154 | AD84: 0 | AE84: 0 | AF84: 0 | AG84: 20 | AH84: Growth and improvement | AI84: Capex | AJ84: Structures | AK84: Rural
B85: Project 23 | C85: 1 | D85: 813737 | E85: 122117 | F85: 14475 | G85: 74959 | H85: 846420 | I85: 1 | J85: 1 | K85: 5 | L85: 0 | M85: 0 | N85: 0 | O85: 0 | P85: 0 | Q85: 0 | R85: Services and operations | S85: Opex | T85: Traffic facility | U85: Urban | W85: 15 | X85: 23 | Y85: Project 11 | Z85: 0.6403793362 | AA85: 0.2967556968 | AB85: 0 | AC85: 0.937135033 | AD85: 0 | AE85: 0 | AF85: 0 | AG85: 20 | AH85: Growth and improvement | AI85: Capex | AJ85: Structures | AK85: Urban
B86: Project 24 | C86: 1 | D86: 780070 | E86: 107198 | F86: 14440 | G86: 97917 | H86: 774911 | I86: 1 | J86: 1 | K86: 4 | L86: 0 | M86: 0 | N86: 0 | O86: 0 | P86: 0 | Q86: 0 | R86: Services and operations | S86: Opex | T86: Traffic facility | U86: Urban | W86: 16 | X86: 24 | Y86: Project 18 | Z86: 0.55788 | AA86: 0.261766 | AB86: 0 | AC86: 0.819646 | AD86: 0 | AE86: 0 | AF86: 0 | AG86: 20 | AH86: Growth and improvement | AI86: Capex | AJ86: Structures | AK86: Rural
B87: Project 25 | C87: 1 | D87: 1152620 | E87: 112035 | F87: 22642 | G87: 93953 | H87: 1148060 | I87: 1 | J87: 1 | K87: 3 | L87: 0 | M87: 0 | N87: 0 | O87: 0 | P87: 0 | Q87: 0 | R87: Services and operations | S87: Opex | T87: Traffic facility | U87: Urban | W87: 6 | X87: 25 | Y87: Project 12 | Z87: 0.462208 | AA87: 0.284142 | AB87: 0 | AC87: 0.74635 | AD87: 0 | AE87: 0 | AF87: 0 | AG87: 12 | AH87: Growth and improvement | AI87: Capex | AJ87: Structures | AK87: Urban
B88: Project 26 | C88: 1 | D88: 743609 | E88: 120470 | F88: 21651 | G88: 91781 | H88: 750647 | I88: 1 | J88: 1 | K88: 3 | L88: 0 | M88: 0 | N88: 0 | O88: 0 | P88: 0 | Q88: 0 | R88: Services and operations | S88: Opex | T88: Traffic facility | U88: Rural | W88: 18 | X88: 26
B89: Project 27 | C89: 1 | D89: 819990 | E89: 132448 | F89: 14058 | G89: 93471 | H89: 844909 | I89: 1 | J89: 1 | K89: 4 | L89: 0 | M89: 0 | N89: 0 | O89: 0 | P89: 0 | Q89: 0 | R89: Services and operations | S89: Opex | T89: Traffic facility | U89: Rural | W89: 13 | X89: 27
B90: Project 28 | C90: 1 | D90: 1066856 | E90: 161622 | F90: 23334 | G90: 81416 | H90: 1123728 | I90: 1 | J90: 1 | K90: 5 | L90: 0 | M90: 0 | N90: 0 | O90: 0 | P90: 0 | Q90: 0 | R90: Services and operations | S90: Opex | T90: Traffic facility | U90: Rural | W90: 8 | X90: 28
B91: Project 29 | C91: 1 | D91: 1081725 | E91: 111433 | F91: 22131 | G91: 95855 | H91: 1075172 | I91: 1 | J91: 1 | K91: 2 | L91: 0 | M91: 0 | N91: 0 | O91: 0 | P91: 0 | Q91: 0 | R91: Services and operations | S91: Opex | T91: Traffic facility | U91: Rural | W91: 7 | X91: 29
B92: Project 30 | C92: 1 | D92: 1038671 | E92: 162763 | F92: 14612 | G92: 88817 | H92: 1098005 | I92: 1 | J92: 1 | K92: 2 | L92: 0 | M92: 0 | N92: 0 | O92: 0 | P92: 0 | Q92: 0 | R92: Services and operations | S92: Opex | T92: Traffic facility | U92: Rural | W92: 9 | X92: 30
B93: Total | C93: 25 | D93: 429425783.6 | E93: 189189788.1 | F93: 310985408.7 | G93: 278239254.6 | H93: 29390908.46 | I93: 49.01 | J93: 14.5 | L93: 0 | M93: 0 | N93: 0.1234285714 | O93: 0.8765714286 | P93: 0.06228571429 | Q93: 0.9377142857
B95: Scenario 2 results | W95: Scenario 2 results (dollar values now in millions)
B97: Project | C97: Funding indicator | D97: NPV ($) (PV of benefits less PV of costs) | E97: PV of costs ($) | F97: PV of safety benefits ($) | G97: PV of user travel cost benefits ($) | H97: PV of other benefits ($) | I97: Lives saved over first 10 years | J97: Hours of travel time saved (millions) | K97: Risk score | L97: Risk tolerance exceeded? | M97: Risk mitigated | N97: Road length weighted proportion in bad condition (base case) | O97: Road length weighted proportion in good condition (base case) | P97: Road length weighted proportion in bad condition (investment case) | Q97: Road length weighted proportion in good condition (investment case) | R97: Service group | S97: Expenditure category | T97: Asset class | U97: Region | W97: NPV rank | X97: NPV rank | Y97: Project | Z97: NPV ($) (PV of benefits less PV of costs) | AA97: PV of costs ($) | AB97: PV of safety benefits ($) | AC97: PV of user travel cost benefits ($) | AD97: PV of other benefits ($) | AE97: Lives saved over first 10 years | AF97: Hours of travel time saved (millions) | AG97: Risk score | AH97: Service group | AI97: Expenditure category | AJ97: Asset class | AK97: Region
B98: Project 1 | C98: 0 | D98: 0 | E98: 0 | F98: 0 | G98: 0 | H98: 0 | I98: 0 | J98: 0 | K98: 12 | L98: 0 | M98: 0 | N98: 0 | O98: 0 | P98: 0 | Q98: 0 | R98: Growth and improvement | S98: Capex | T98: Pavements | U98: Urban | W98: =IF(C98>0,RANK($D98,$D$98:$D$127),0) -> 0 | X98: 1 | Y98: =IFERROR(INDEX($B$98:$B$127,MATCH($X98,$W$98:$W$127,0)),"") -> Project 7 | Z98: =IFERROR(INDEX($C$98:$U$128,MATCH($Y98,$B$98:$B$128,0),MATCH(Z$97,$C$97:$U$97,0))/10^6,"") -> 87.859091 | AA98: 43.222042 | AB98: 73.826636 | AC98: 52.824104 | AD98: 4.430393 | AE98: =IFERROR(INDEX($C$98:$U$128,MATCH($Y98,$B$98:$B$128,0),MATCH(AE$97,$C$97:$U$97,0)),"") -> 7 | AF98: 1 | AG98: 0 | AH98: Asset maintenance | AI98: Opex | AJ98: Pavements | AK98: Urban
B99: Project 2 | C99: 0 | D99: 0 | E99: 0 | F99: 0 | G99: 0 | H99: 0 | I99: 0 | J99: 0 | K99: 12 | L99: 0 | M99: 0 | N99: 0 | O99: 0 | P99: 0 | Q99: 0 | R99: Growth and improvement | S99: Capex | T99: Pavements | U99: Urban | W99: 0 | X99: =X98+1 -> 2 | Y99: Project 9 | Z99: 87.60994 | AA99: 36.179264 | AB99: 72.353852 | AC99: 46.891955 | AD99: 4.543397 | AE99: 6 | AF99: 1 | AG99: 0 | AH99: Asset maintenance | AI99: Opex | AJ99: Pavements | AK99: Rural
B100: Project 3 | C100: 0 | D100: 0 | E100: 0 | F100: 0 | G100: 0 | H100: 0 | I100: 0 | J100: 0 | K100: 15 | L100: 0 | M100: 0 | N100: 0 | O100: 0 | P100: 0 | Q100: 0 | R100: Growth and improvement | S100: Capex | T100: Pavements | U100: Urban | W100: 0 | X100: =X99+1 -> 3 | Y100: Project 4 | Z100: 17.673301 | AA100: 15.143576 | AB100: 19.308954 | AC100: 10.772708 | AD100: 2.735215 | AE100: 20 | AF100: 7 | AG100: 15 | AH100: Growth and improvement | AI100: Capex | AJ100: Structures | AK100: Urban
B101: Project 4 | C101: 1 | D101: 17673301 | E101: 15143576 | F101: 19308954 | G101: 10772708 | H101: 2735215 | I101: 20 | J101: 7 | K101: 15 | L101: 0 | M101: 0 | N101: 0 | O101: 0 | P101: 0 | Q101: 0 | R101: Growth and improvement | S101: Capex | T101: Structures | U101: Urban | W101: 3 | X101: 4 | Y101: Project 25 | Z101: 1.15262 | AA101: 0.112035 | AB101: 0.022642 | AC101: 0.093953 | AD101: 1.14806 | AE101: 1 | AF101: 1 | AG101: 3 | AH101: Services and operations | AI101: Opex | AJ101: Traffic facility | AK101: Urban
B102: Project 5 | C102: 0 | D102: 0 | E102: 0 | F102: 0 | G102: 0 | H102: 0 | I102: 0 | J102: 0 | K102: 5 | L102: 0 | M102: 0 | N102: 0 | O102: 0 | P102: 0 | Q102: 0 | R102: Growth and improvement | S102: Capex | T102: Structures | U102: Urban | W102: 0 | X102: 5 | Y102: Project 29 | Z102: 1.081725 | AA102: 0.111433 | AB102: 0.022131 | AC102: 0.095855 | AD102: 1.075172 | AE102: 1 | AF102: 1 | AG102: 2 | AH102: Services and operations | AI102: Opex | AJ102: Traffic facility | AK102: Rural
B103: Project 6 | C103: 0 | D103: 0 | E103: 0 | F103: 0 | G103: 0 | H103: 0 | I103: 0 | J103: 0 | K103: 0 | L103: 0 | M103: 0 | N103: 0.01142857143 | O103: 0.1028571429 | P103: 0.01142857143 | Q103: 0.1028571429 | R103: Asset maintenance | S103: Opex | T103: Pavements | U103: Urban | W103: 0 | X103: 6 | Y103: Project 28 | Z103: 1.066856 | AA103: 0.161622 | AB103: 0.023334 | AC103: 0.081416 | AD103: 1.123728 | AE103: 1 | AF103: 1 | AG103: 5 | AH103: Services and operations | AI103: Opex | AJ103: Traffic facility | AK103: Rural
B104: Project 7 | C104: 1 | D104: 87859091 | E104: 43222042 | F104: 73826636 | G104: 52824104 | H104: 4430393 | I104: 7 | J104: 1 | K104: 0 | L104: 0 | M104: 0 | N104: 0.008 | O104: 0.1062857143 | P104: 0.004571428571 | Q104: 0.1097142857 | R104: Asset maintenance | S104: Opex | T104: Pavements | U104: Urban | W104: 1 | X104: 7 | Y104: Project 30 | Z104: 1.038671 | AA104: 0.162763 | AB104: 0.014612 | AC104: 0.088817 | AD104: 1.098005 | AE104: 1 | AF104: 1 | AG104: 2 | AH104: Services and operations | AI104: Opex | AJ104: Traffic facility | AK104: Rural
B105: Project 8 | C105: 0 | D105: 0 | E105: 0 | F105: 0 | G105: 0 | H105: 0 | I105: 0 | J105: 0 | K105: 0 | L105: 0 | M105: 0 | N105: 0.01371428571 | O105: 0.2148571429 | P105: 0.01371428571 | Q105: 0.2148571429 | R105: Asset maintenance | S105: Opex | T105: Pavements | U105: Urban | W105: 0 | X105: 8 | Y105: Project 22 | Z105: 0.91069 | AA105: 0.133117 | AB105: 0.021547 | AC105: 0.06899 | AD105: 0.95327 | AE105: 1 | AF105: 1 | AG105: 4 | AH105: Services and operations | AI105: Opex | AJ105: Traffic facility | AK105: Urban
B106: Project 9 | C106: 1 | D106: 87609940 | E106: 36179264 | F106: 72353852 | G106: 46891955 | H106: 4543397 | I106: 6 | J106: 1 | K106: 0 | L106: 0 | M106: 0 | N106: 0.02742857143 | O106: 0.2011428571 | P106: 0.016 | Q106: 0.2125714286 | R106: Asset maintenance | S106: Opex | T106: Pavements | U106: Rural | W106: 2 | X106: 9 | Y106: Project 21 | Z106: 0.8803434421 | AA106: 0.139 | AB106: 0.01868515758 | AC106: 0.07899020152 | AD106: 0.921668083 | AE106: 0.01 | AF106: 0.2 | AG106: 9 | AH106: Services and operations | AI106: Opex | AJ106: Traffic facility | AK106: Urban
B107: Project 10 | C107: 0 | D107: 0 | E107: 0 | F107: 0 | G107: 0 | H107: 0 | I107: 0 | J107: 0 | K107: 0 | L107: 0 | M107: 0 | N107: 0.06285714286 | O107: 0.2514285714 | P107: 0.06285714286 | Q107: 0.2514285714 | R107: Asset maintenance | S107: Opex | T107: Pavements | U107: Rural | W107: 0 | X107: 10 | Y107: Project 19 | Z107: 0.845977 | AA107: 0.310281 | AB107: 0 | AC107: 1.156258 | AD107: 0 | AE107: 0 | AF107: 0 | AG107: 16 | AH107: Growth and improvement | AI107: Capex | AJ107: Structures | AK107: Rural
B108: Project 11 | C108: 1 | D108: 640379.3362 | E108: 296755.6968 | F108: 0 | G108: 937135.033 | H108: 0 | I108: 0 | J108: 0 | K108: 20 | L108: 0 | M108: 0 | N108: 0 | O108: 0 | P108: 0 | Q108: 0 | R108: Growth and improvement | S108: Capex | T108: Structures | U108: Urban | W108: 21 | X108: 11 | Y108: Project 27 | Z108: =IFERROR(INDEX($C$98:$U$128,MATCH($Y108,$B$98:$B$128,0),MATCH(Z$97,$C$97:$U$97,0))/10^6,"") -> 0.81999 | AA108: 0.132448 | AB108: 0.014058 | AC108: 0.093471 | AD108: 0.844909 | AE108: =IFERROR(INDEX($C$98:$U$128,MATCH($Y108,$B$98:$B$128,0),MATCH(AE$97,$C$97:$U$97,0)),"") -> 1 | AF108: 1 | AG108: 4 | AH108: Services and operations | AI108: Opex | AJ108: Traffic facility | AK108: Rural
B109: Project 12 | C109: 1 | D109: 462208 | E109: 284142 | F109: 0 | G109: 746350 | H109: 0 | I109: 0 | J109: 0 | K109: 12 | L109: 0 | M109: 0 | N109: 0 | O109: 0 | P109: 0 | Q109: 0 | R109: Growth and improvement | S109: Capex | T109: Structures | U109: Urban | W109: 23 | X109: 12 | Y109: Project 14 | Z109: 0.814308 | AA109: 0.27218 | AB109: 0 | AC109: 1.086488 | AD109: 0 | AE109: 0 | AF109: 0 | AG109: 12 | AH109: Growth and improvement | AI109: Capex | AJ109: Structures | AK109: Urban
B110: Project 13 | C110: 1 | D110: 739473 | E110: 251494 | F110: 0 | G110: 990967 | H110: 0 | I110: 0 | J110: 0 | K110: 10 | L110: 0 | M110: 0 | N110: 0 | O110: 0 | P110: 0 | Q110: 0 | R110: Growth and improvement | S110: Capex | T110: Structures | U110: Urban | W110: 17 | X110: 13 | Y110: Project 23 | Z110: 0.813737 | AA110: 0.122117 | AB110: 0.014475 | AC110: 0.074959 | AD110: 0.84642 | AE110: 1 | AF110: 1 | AG110: 5 | AH110: Services and operations | AI110: Opex | AJ110: Traffic facility | AK110: Urban
B111: Project 14 | C111: 1 | D111: 814308 | E111: 272180 | F111: 0 | G111: 1086488 | H111: 0 | I111: 0 | J111: 0 | K111: 12 | L111: 0 | M111: 0 | N111: 0 | O111: 0 | P111: 0 | Q111: 0 | R111: Growth and improvement | S111: Capex | T111: Structures | U111: Urban | W111: 12 | X111: 14 | Y111: Project 24 | Z111: 0.78007 | AA111: 0.107198 | AB111: 0.01444 | AC111: 0.097917 | AD111: 0.774911 | AE111: 1 | AF111: 1 | AG111: 4 | AH111: Services and operations | AI111: Opex | AJ111: Traffic facility | AK111: Urban
B112: Project 15 | C112: 1 | D112: 746978 | E112: 232291 | F112: 0 | G112: 979269 | H112: 0 | I112: 0 | J112: 0 | K112: 16 | L112: 0 | M112: 0 | N112: 0 | O112: 0 | P112: 0 | Q112: 0 | R112: Growth and improvement | S112: Capex | T112: Structures | U112: Urban | W112: 15 | X112: 15 | Y112: Project 15 | Z112: 0.746978 | AA112: 0.232291 | AB112: 0 | AC112: 0.979269 | AD112: 0 | AE112: 0 | AF112: 0 | AG112: 16 | AH112: Growth and improvement | AI112: Capex | AJ112: Structures | AK112: Urban
B113: Project 16 | C113: 1 | D113: 691587 | E113: 266974 | F113: 0 | G113: 958561 | H113: 0 | I113: 0 | J113: 0 | K113: 20 | L113: 0 | M113: 0 | N113: 0 | O113: 0 | P113: 0 | Q113: 0 | R113: Growth and improvement | S113: Capex | T113: Structures | U113: Rural | W113: 19 | X113: 16 | Y113: Project 26 | Z113: 0.743609 | AA113: 0.12047 | AB113: 0.021651 | AC113: 0.091781 | AD113: 0.750647 | AE113: 1 | AF113: 1 | AG113: 3 | AH113: Services and operations | AI113: Opex | AJ113: Traffic facility | AK113: Rural
B114: Project 17 | C114: 1 | D114: 685881 | E114: 329273 | F114: 0 | G114: 1015154 | H114: 0 | I114: 0 | J114: 0 | K114: 20 | L114: 0 | M114: 0 | N114: 0 | O114: 0 | P114: 0 | Q114: 0 | R114: Growth and improvement | S114: Capex | T114: Structures | U114: Rural | W114: 20 | X114: 17 | Y114: Project 13 | Z114: 0.739473 | AA114: 0.251494 | AB114: 0 | AC114: 0.990967 | AD114: 0 | AE114: 0 | AF114: 0 | AG114: 10 | AH114: Growth and improvement | AI114: Capex | AJ114: Structures | AK114: Urban
B115: Project 18 | C115: 1 | D115: 557880 | E115: 261766 | F115: 0 | G115: 819646 | H115: 0 | I115: 0 | J115: 0 | K115: 20 | L115: 0 | M115: 0 | N115: 0 | O115: 0 | P115: 0 | Q115: 0 | R115: Growth and improvement | S115: Capex | T115: Structures | U115: Rural | W115: 22 | X115: 18 | Y115: Project 20 | Z115: 0.692645 | AA115: 0.256936 | AB115: 0 | AC115: 0.949581 | AD115: 0 | AE115: 0 | AF115: 0 | AG115: 15 | AH115: Growth and improvement | AI115: Capex | AJ115: Structures | AK115: Rural
B116: Project 19 | C116: 1 | D116: 845977 | E116: 310281 | F116: 0 | G116: 1156258 | H116: 0 | I116: 0 | J116: 0 | K116: 16 | L116: 0 | M116: 0 | N116: 0 | O116: 0 | P116: 0 | Q116: 0 | R116: Growth and improvement | S116: Capex | T116: Structures | U116: Rural | W116: 10 | X116: 19 | Y116: Project 16 | Z116: 0.691587 | AA116: 0.266974 | AB116: 0 | AC116: 0.958561 | AD116: 0 | AE116: 0 | AF116: 0 | AG116: 20 | AH116: Growth and improvement | AI116: Capex | AJ116: Structures | AK116: Rural
B117: Project 20 | C117: 1 | D117: 692645 | E117: 256936 | F117: 0 | G117: 949581 | H117: 0 | I117: 0 | J117: 0 | K117: 15 | L117: 0 | M117: 0 | N117: 0 | O117: 0 | P117: 0 | Q117: 0 | R117: Growth and improvement | S117: Capex | T117: Structures | U117: Rural | W117: 18 | X117: 20 | Y117: Project 17 | Z117: 0.685881 | AA117: 0.329273 | AB117: 0 | AC117: 1.015154 | AD117: 0 | AE117: 0 | AF117: 0 | AG117: 20 | AH117: Growth and improvement | AI117: Capex | AJ117: Structures | AK117: Rural
B118: Project 21 | C118: 1 | D118: 880343.4421 | E118: 139000 | F118: 18685.15758 | G118: 78990.20152 | H118: 921668.083 | I118: 0.01 | J118: 0.2 | K118: 9 | L118: 0 | M118: 0 | N118: 0 | O118: 0 | P118: 0 | Q118: 0 | R118: Services and operations | S118: Opex | T118: Traffic facility | U118: Urban | W118: 9 | X118: 21 | Y118: Project 11 | Z118: =IFERROR(INDEX($C$98:$U$128,MATCH($Y118,$B$98:$B$128,0),MATCH(Z$97,$C$97:$U$97,0))/10^6,"") -> 0.6403793362 | AA118: 0.2967556968 | AB118: 0 | AC118: 0.937135033 | AD118: 0 | AE118: =IFERROR(INDEX($C$98:$U$128,MATCH($Y118,$B$98:$B$128,0),MATCH(AE$97,$C$97:$U$97,0)),"") -> 0 | AF118: 0 | AG118: 20 | AH118: Growth and improvement | AI118: Capex | AJ118: Structures | AK118: Urban
B119: Project 22 | C119: 1 | D119: 910690 | E119: 133117 | F119: 21547 | G119: 68990 | H119: 953270 | I119: 1 | J119: 1 | K119: 4 | L119: 0 | M119: 0 | N119: 0 | O119: 0 | P119: 0 | Q119: 0 | R119: Services and operations | S119: Opex | T119: Traffic facility | U119: Urban | W119: 8 | X119: 22 | Y119: Project 18 | Z119: 0.55788 | AA119: 0.261766 | AB119: 0 | AC119: 0.819646 | AD119: 0 | AE119: 0 | AF119: 0 | AG119: 20 | AH119: Growth and improvement | AI119: Capex | AJ119: Structures | AK119: Rural
B120: Project 23 | C120: 1 | D120: 813737 | E120: 122117 | F120: 14475 | G120: 74959 | H120: 846420 | I120: 1 | J120: 1 | K120: 5 | L120: 0 | M120: 0 | N120: 0 | O120: 0 | P120: 0 | Q120: 0 | R120: Services and operations | S120: Opex | T120: Traffic facility | U120: Urban | W120: 13 | X120: 23 | Y120: Project 12 | Z120: 0.462208 | AA120: 0.284142 | AB120: 0 | AC120: 0.74635 | AD120: 0 | AE120: 0 | AF120: 0 | AG120: 12 | AH120: Growth and improvement | AI120: Capex | AJ120: Structures | AK120: Urban
B121: Project 24 | C121: 1 | D121: 780070 | E121: 107198 | F121: 14440 | G121: 97917 | H121: 774911 | I121: 1 | J121: 1 | K121: 4 | L121: 0 | M121: 0 | N121: 0 | O121: 0 | P121: 0 | Q121: 0 | R121: Services and operations | S121: Opex | T121: Traffic facility | U121: Urban | W121: 14 | X121: 24
B122: Project 25 | C122: 1 | D122: 1152620 | E122: 112035 | F122: 22642 | G122: 93953 | H122: 1148060 | I122: 1 | J122: 1 | K122: 3 | L122: 0 | M122: 0 | N122: 0 | O122: 0 | P122: 0 | Q122: 0 | R122: Services and operations | S122: Opex | T122: Traffic facility | U122: Urban | W122: 4 | X122: 25
B123: Project 26 | C123: 1 | D123: 743609 | E123: 120470 | F123: 21651 | G123: 91781 | H123: 750647 | I123: 1 | J123: 1 | K123: 3 | L123: 0 | M123: 0 | N123: 0 | O123: 0 | P123: 0 | Q123: 0 | R123: Services and operations | S123: Opex | T123: Traffic facility | U123: Rural | W123: 16 | X123: 26
B124: Project 27 | C124: 1 | D124: 819990 | E124: 132448 | F124: 14058 | G124: 93471 | H124: 844909 | I124: 1 | J124: 1 | K124: 4 | L124: 0 | M124: 0 | N124: 0 | O124: 0 | P124: 0 | Q124: 0 | R124: Services and operations | S124: Opex | T124: Traffic facility | U124: Rural | W124: 11 | X124: 27
B125: Project 28 | C125: 1 | D125: 1066856 | E125: 161622 | F125: 23334 | G125: 81416 | H125: 1123728 | I125: 1 | J125: 1 | K125: 5 | L125: 0 | M125: 0 | N125: 0 | O125: 0 | P125: 0 | Q125: 0 | R125: Services and operations | S125: Opex | T125: Traffic facility | U125: Rural | W125: 6 | X125: 28
B126: Project 29 | C126: 1 | D126: 1081725 | E126: 111433 | F126: 22131 | G126: 95855 | H126: 1075172 | I126: 1 | J126: 1 | K126: 2 | L126: 0 | M126: 0 | N126: 0 | O126: 0 | P126: 0 | Q126: 0 | R126: Services and operations | S126: Opex | T126: Traffic facility | U126: Rural | W126: 5 | X126: 29
B127: Project 30 | C127: 1 | D127: 1038671 | E127: 162763 | F127: 14612 | G127: 88817 | H127: 1098005 | I127: 1 | J127: 1 | K127: 2 | L127: 0 | M127: 0 | N127: 0 | O127: 0 | P127: 0 | Q127: 0 | R127: Services and operations | S127: Opex | T127: Traffic facility | U127: Rural | W127: 7 | X127: 30
B128: Total | C128: 23 | D128: 209307959.8 | E128: 98609177.7 | F128: 165677017.2 | G128: 120994325.2 | H128: 21245795.08 | I128: 42.01 | J128: 18.2 | L128: 0 | M128: 0 | N128: 0.1234285714 | O128: 0.8765714286 | P128: 0.1085714286 | Q128: 0.8914285714
B130: Scenario 3 results | W130: Scenario 3 results (dollar values now in millions)
B132: Project | C132: Funding indicator | D132: NPV ($) (PV of benefits less PV of costs) | E132: PV of costs ($) | F132: PV of safety benefits ($) | G132: PV of user travel cost benefits ($) | H132: PV of other benefits ($) | I132: Lives saved over first 10 years | J132: Hours of travel time saved (millions) | K132: Risk score | L132: Risk tolerance exceeded? | M132: Risk mitigated | N132: Road length weighted proportion in bad condition (base case) | O132: Road length weighted proportion in good condition (base case) | P132: Road length weighted proportion in bad condition (investment case) | Q132: Road length weighted proportion in good condition (investment case) | R132: Service group | S132: Expenditure category | T132: Asset class | U132: Region | W132: NPV rank | X132: NPV rank | Y132: Project | Z132: NPV ($) (PV of benefits less PV of costs) | AA132: PV of costs ($) | AB132: PV of safety benefits ($) | AC132: PV of user travel cost benefits ($) | AD132: PV of other benefits ($) | AE132: Lives saved over first 10 years | AF132: Hours of travel time saved (millions) | AG132: Risk score | AH132: Service group | AI132: Expenditure category | AJ132: Asset class | AK132: Region
B133: Project 1 | C133: 0 | D133: 0 | E133: 0 | F133: 0 | G133: 0 | H133: 0 | I133: 0 | J133: 0 | K133: 12 | L133: 0 | M133: 0 | N133: 0 | O133: 0 | P133: 0 | Q133: 0 | R133: Growth and improvement | S133: Capex | T133: Pavements | U133: Urban | W133: =IF(C133>0,RANK($D133,$D$133:$D$162),0) -> 0 | X133: 1 | Y133: =IFERROR(INDEX($B$133:$B$162,MATCH($X133,$W$133:$W$162,0)),"") -> Project 7 | Z133: =IFERROR(INDEX($C$133:$U$163,MATCH($Y133,$B$133:$B$163,0),MATCH(Z$132,$C$132:$U$132,0))/10^6,"") -> 87.859091 | AA133: 43.222042 | AB133: 73.826636 | AC133: 52.824104 | AD133: 4.430393 | AE133: =IFERROR(INDEX($C$133:$U$163,MATCH($Y133,$B$133:$B$163,0),MATCH(AE$132,$C$132:$U$132,0)),"") -> 7 | AF133: 1 | AG133: 0 | AH133: Asset maintenance | AI133: Opex | AJ133: Pavements | AK133: Urban
B134: Project 2 | C134: 0 | D134: 0 | E134: 0 | F134: 0 | G134: 0 | H134: 0 | I134: 0 | J134: 0 | K134: 12 | L134: 0 | M134: 0 | N134: 0 | O134: 0 | P134: 0 | Q134: 0 | R134: Growth and improvement | S134: Capex | T134: Pavements | U134: Urban | W134: 0 | X134: =X133+1 -> 2 | Y134: Project 9 | Z134: 87.60994 | AA134: 36.179264 | AB134: 72.353852 | AC134: 46.891955 | AD134: 4.543397 | AE134: 6 | AF134: 1 | AG134: 0 | AH134: Asset maintenance | AI134: Opex | AJ134: Pavements | AK134: Rural
B135: Project 3 | C135: 1 | D135: 3341910 | E135: 21369818 | F135: 12470370 | G135: 8534573 | H135: 3706785 | I135: 17 | J135: 9 | K135: 15 | L135: 1 | M135: 1 | N135: 0 | O135: 0 | P135: 0 | Q135: 0 | R135: Growth and improvement | S135: Capex | T135: Pavements | U135: Urban | W135: 6 | X135: =X134+1 -> 3 | Y135: Project 6 | Z135: 84.13593185 | AA135: 35.66984741 | AB135: 61.47490449 | AC135: 54.43550339 | AD135: 3.895371375 | AE135: 8 | AF135: 1.3 | AG135: 0 | AH135: Asset maintenance | AI135: Opex | AJ135: Pavements | AK135: Urban
B136: Project 4 | C136: 1 | D136: 17673301 | E136: 15143576 | F136: 19308954 | G136: 10772708 | H136: 2735215 | I136: 20 | J136: 7 | K136: 15 | L136: 1 | M136: 1 | N136: 0 | O136: 0 | P136: 0 | Q136: 0 | R136: Growth and improvement | S136: Capex | T136: Structures | U136: Urban | W136: 5 | X136: 4 | Y136: Project 10 | Z136: 80.506112 | AA136: 31.160641 | AB136: 48.959368 | AC136: 59.569752 | AD136: 3.137633 | AE136: 9 | AF136: 1 | AG136: 0 | AH136: Asset maintenance | AI136: Opex | AJ136: Pavements | AK136: Rural
B137: Project 5 | C137: 0 | D137: 0 | E137: 0 | F137: 0 | G137: 0 | H137: 0 | I137: 0 | J137: 0 | K137: 5 | L137: 0 | M137: 0 | N137: 0 | O137: 0 | P137: 0 | Q137: 0 | R137: Growth and improvement | S137: Capex | T137: Structures | U137: Urban | W137: 0 | X137: 5 | Y137: Project 4 | Z137: 17.673301 | AA137: 15.143576 | AB137: 19.308954 | AC137: 10.772708 | AD137: 2.735215 | AE137: 20 | AF137: 7 | AG137: 15 | AH137: Growth and improvement | AI137: Capex | AJ137: Structures | AK137: Urban
B138: Project 6 | C138: 1 | D138: 84135931.85 | E138: 35669847.41 | F138: 61474904.49 | G138: 54435503.39 | H138: 3895371.375 | I138: 8 | J138: 1.3 | K138: 0 | L138: 0 | M138: 0 | N138: 0.01142857143 | O138: 0.1028571429 | P138: 0.003428571429 | Q138: 0.1108571429 | R138: Asset maintenance | S138: Opex | T138: Pavements | U138: Urban | W138: 3 | X138: 6 | Y138: Project 3 | Z138: 3.34191 | AA138: 21.369818 | AB138: 12.47037 | AC138: 8.534573 | AD138: 3.706785 | AE138: 17 | AF138: 9 | AG138: 15 | AH138: Growth and improvement | AI138: Capex | AJ138: Pavements | AK138: Urban
B139: Project 7 | C139: 1 | D139: 87859091 | E139: 43222042 | F139: 73826636 | G139: 52824104 | H139: 4430393 | I139: 7 | J139: 1 | K139: 0 | L139: 0 | M139: 0 | N139: 0.008 | O139: 0.1062857143 | P139: 0.004571428571 | Q139: 0.1097142857 | R139: Asset maintenance | S139: Opex | T139: Pavements | U139: Urban | W139: 1 | X139: 7 | Y139: Project 25 | Z139: 1.15262 | AA139: 0.112035 | AB139: 0.022642 | AC139: 0.093953 | AD139: 1.14806 | AE139: 1 | AF139: 1 | AG139: 3 | AH139: Services and operations | AI139: Opex | AJ139: Traffic facility | AK139: Urban
B140: Project 8 | C140: 0 | D140: 0 | E140: 0 | F140: 0 | G140: 0 | H140: 0 | I140: 0 | J140: 0 | K140: 0 | L140: 0 | M140: 0 | N140: 0.01371428571 | O140: 0.2148571429 | P140: 0.01371428571 | Q140: 0.2148571429 | R140: Asset maintenance | S140: Opex | T140: Pavements | U140: Urban | W140: 0 | X140: 8 | Y140: Project 29 | Z140: 1.081725 | AA140: 0.111433 | AB140: 0.022131 | AC140: 0.095855 | AD140: 1.075172 | AE140: 1 | AF140: 1 | AG140: 2 | AH140: Services and operations | AI140: Opex | AJ140: Traffic facility | AK140: Rural
B141: Project 9 | C141: 1 | D141: 87609940 | E141: 36179264 | F141: 72353852 | G141: 46891955 | H141: 4543397 | I141: 6 | J141: 1 | K141: 0 | L141: 0 | M141: 0 | N141: 0.02742857143 | O141: 0.2011428571 | P141: 0.016 | Q141: 0.2125714286 | R141: Asset maintenance | S141: Opex | T141: Pavements | U141: Rural | W141: 2 | X141: 9 | Y141: Project 28 | Z141: 1.066856 | AA141: 0.161622 | AB141: 0.023334 | AC141: 0.081416 | AD141: 1.123728 | AE141: 1 | AF141: 1 | AG141: 5 | AH141: Services and operations | AI141: Opex | AJ141: Traffic facility | AK141: Rural
B142: Project 10 | C142: 1 | D142: 80506112 | E142: 31160641 | F142: 48959368 | G142: 59569752 | H142: 3137633 | I142: 9 | J142: 1 | K142: 0 | L142: 0 | M142: 0 | N142: 0.06285714286 | O142: 0.2514285714 | P142: 0.03142857143 | Q142: 0.2828571429 | R142: Asset maintenance | S142: Opex | T142: Pavements | U142: Rural | W142: 4 | X142: 10 | Y142: Project 30 | Z142: 1.038671 | AA142: 0.162763 | AB142: 0.014612 | AC142: 0.088817 | AD142: 1.098005 | AE142: 1 | AF142: 1 | AG142: 2 | AH142: Services and operations | AI142: Opex | AJ142: Traffic facility | AK142: Rural
B143: Project 11 | C143: 1 | D143: 640379.3362 | E143: 296755.6968 | F143: 0 | G143: 937135.033 | H143: 0 | I143: 0 | J143: 0 | K143: 20 | L143: 1 | M143: 1 | N143: 0 | O143: 0 | P143: 0 | Q143: 0 | R143: Growth and improvement | S143: Capex | T143: Structures | U143: Urban | W143: 24 | X143: 11 | Y143: Project 22 | Z143: =IFERROR(INDEX($C$133:$U$163,MATCH($Y143,$B$133:$B$163,0),MATCH(Z$132,$C$132:$U$132,0))/10^6,"") -> 0.91069 | AA143: 0.133117 | AB143: 0.021547 | AC143: 0.06899 | AD143: 0.95327 | AE143: =IFERROR(INDEX($C$133:$U$163,MATCH($Y143,$B$133:$B$163,0),MATCH(AE$132,$C$132:$U$132,0)),"") -> 1 | AF143: 1 | AG143: 4 | AH143: Services and operations | AI143: Opex | AJ143: Traffic facility | AK143: Urban
B144: Project 12 | C144: 1 | D144: 462208 | E144: 284142 | F144: 0 | G144: 746350 | H144: 0 | I144: 0 | J144: 0 | K144: 12 | L144: 0 | M144: 0 | N144: 0 | O144: 0 | P144: 0 | Q144: 0 | R144: Growth and improvement | S144: Capex | T144: Structures | U144: Urban | W144: 26 | X144: 12 | Y144: Project 21 | Z144: 0.8803434421 | AA144: 0.139 | AB144: 0.01868515758 | AC144: 0.07899020152 | AD144: 0.921668083 | AE144: 0.01 | AF144: 0.2 | AG144: 9 | AH144: Services and operations | AI144: Opex | AJ144: Traffic facility | AK144: Urban
B145: Project 13 | C145: 1 | D145: 739473 | E145: 251494 | F145: 0 | G145: 990967 | H145: 0 | I145: 0 | J145: 0 | K145: 10 | L145: 0 | M145: 0 | N145: 0 | O145: 0 | P145: 0 | Q145: 0 | R145: Growth and improvement | S145: Capex | T145: Structures | U145: Urban | W145: 20 | X145: 13 | Y145: Project 19 | Z145: 0.845977 | AA145: 0.310281 | AB145: 0 | AC145: 1.156258 | AD145: 0 | AE145: 0 | AF145: 0 | AG145: 16 | AH145: Growth and improvement | AI145: Capex | AJ145: Structures | AK145: Rural
B146: Project 14 | C146: 1 | D146: 814308 | E146: 272180 | F146: 0 | G146: 1086488 | H146: 0 | I146: 0 | J146: 0 | K146: 12 | L146: 0 | M146: 0 | N146: 0 | O146: 0 | P146: 0 | Q146: 0 | R146: Growth and improvement | S146: Capex | T146: Structures | U146: Urban | W146: 15 | X146: 14 | Y146: Project 27 | Z146: 0.81999 | AA146: 0.132448 | AB146: 0.014058 | AC146: 0.093471 | AD146: 0.844909 | AE146: 1 | AF146: 1 | AG146: 4 | AH146: Services and operations | AI146: Opex | AJ146: Traffic facility | AK146: Rural
B147: Project 15 | C147: 1 | D147: 746978 | E147: 232291 | F147: 0 | G147: 979269 | H147: 0 | I147: 0 | J147: 0 | K147: 16 | L147: 1 | M147: 1 | N147: 0 | O147: 0 | P147: 0 | Q147: 0 | R147: Growth and improvement | S147: Capex | T147: Structures | U147: Urban | W147: 18 | X147: 15 | Y147: Project 14 | Z147: 0.814308 | AA147: 0.27218 | AB147: 0 | AC147: 1.086488 | AD147: 0 | AE147: 0 | AF147: 0 | AG147: 12 | AH147: Growth and improvement | AI147: Capex | AJ147: Structures | AK147: Urban
B148: Project 16 | C148: 1 | D148: 691587 | E148: 266974 | F148: 0 | G148: 958561 | H148: 0 | I148: 0 | J148: 0 | K148: 20 | L148: 1 | M148: 1 | N148: 0 | O148: 0 | P148: 0 | Q148: 0 | R148: Growth and improvement | S148: Capex | T148: Structures | U148: Rural | W148: 22 | X148: 16 | Y148: Project 23 | Z148: 0.813737 | AA148: 0.122117 | AB148: 0.014475 | AC148: 0.074959 | AD148: 0.84642 | AE148: 1 | AF148: 1 | AG148: 5 | AH148: Services and operations | AI148: Opex | AJ148: Traffic facility | AK148: Urban
B149: Project 17 | C149: 1 | D149: 685881 | E149: 329273 | F149: 0 | G149: 1015154 | H149: 0 | I149: 0 | J149: 0 | K149: 20 | L149: 1 | M149: 1 | N149: 0 | O149: 0 | P149: 0 | Q149: 0 | R149: Growth and improvement | S149: Capex | T149: Structures | U149: Rural | W149: 23 | X149: 17 | Y149: Project 24 | Z149: 0.78007 | AA149: 0.107198 | AB149: 0.01444 | AC149: 0.097917 | AD149: 0.774911 | AE149: 1 | AF149: 1 | AG149: 4 | AH149: Services and operations | AI149: Opex | AJ149: Traffic facility | AK149: Urban
B150: Project 18 | C150: 1 | D150: 557880 | E150: 261766 | F150: 0 | G150: 819646 | H150: 0 | I150: 0 | J150: 0 | K150: 20 | L150: 1 | M150: 1 | N150: 0 | O150: 0 | P150: 0 | Q150: 0 | R150: Growth and improvement | S150: Capex | T150: Structures | U150: Rural | W150: 25 | X150: 18 | Y150: Project 15 | Z150: 0.746978 | AA150: 0.232291 | AB150: 0 | AC150: 0.979269 | AD150: 0 | AE150: 0 | AF150: 0 | AG150: 16 | AH150: Growth and improvement | AI150: Capex | AJ150: Structures | AK150: Urban
B151: Project 19 | C151: 1 | D151: 845977 | E151: 310281 | F151: 0 | G151: 1156258 | H151: 0 | I151: 0 | J151: 0 | K151: 16 | L151: 1 | M151: 1 | N151: 0 | O151: 0 | P151: 0 | Q151: 0 | R151: Growth and improvement | S151: Capex | T151: Structures | U151: Rural | W151: 13 | X151: 19 | Y151: Project 26 | Z151: 0.743609 | AA151: 0.12047 | AB151: 0.021651 | AC151: 0.091781 | AD151: 0.750647 | AE151: 1 | AF151: 1 | AG151: 3 | AH151: Services and operations | AI151: Opex | AJ151: Traffic facility | AK151: Rural
B152: Project 20 | C152: 1 | D152: 692645 | E152: 256936 | F152: 0 | G152: 949581 | H152: 0 | I152: 0 | J152: 0 | K152: 15 | L152: 1 | M152: 1 | N152: 0 | O152: 0 | P152: 0 | Q152: 0 | R152: Growth and improvement | S152: Capex | T152: Structures | U152: Rural | W152: 21 | X152: 20 | Y152: Project 13 | Z152: 0.739473 | AA152: 0.251494 | AB152: 0 | AC152: 0.990967 | AD152: 0 | AE152: 0 | AF152: 0 | AG152: 10 | AH152: Growth and improvement | AI152: Capex | AJ152: Structures | AK152: Urban
B153: Project 21 | C153: 1 | D153: 880343.4421 | E153: 139000 | F153: 18685.15758 | G153: 78990.20152 | H153: 921668.083 | I153: 0.01 | J153: 0.2 | K153: 9 | L153: 0 | M153: 0 | N153: 0 | O153: 0 | P153: 0 | Q153: 0 | R153: Services and operations | S153: Opex | T153: Traffic facility | U153: Urban | W153: 12 | X153: 21 | Y153: Project 20 | Z153: =IFERROR(INDEX($C$133:$U$163,MATCH($Y153,$B$133:$B$163,0),MATCH(Z$132,$C$132:$U$132,0))/10^6,"") -> 0.692645 | AA153: 0.256936 | AB153: 0 | AC153: 0.949581 | AD153: 0 | AE153: =IFERROR(INDEX($C$133:$U$163,MATCH($Y153,$B$133:$B$163,0),MATCH(AE$132,$C$132:$U$132,0)),"") -> 0 | AF153: 0 | AG153: 15 | AH153: Growth and improvement | AI153: Capex | AJ153: Structures | AK153: Rural
B154: Project 22 | C154: 1 | D154: 910690 | E154: 133117 | F154: 21547 | G154: 68990 | H154: 953270 | I154: 1 | J154: 1 | K154: 4 | L154: 0 | M154: 0 | N154: 0 | O154: 0 | P154: 0 | Q154: 0 | R154: Services and operations | S154: Opex | T154: Traffic facility | U154: Urban | W154: 11 | X154: 22 | Y154: Project 16 | Z154: 0.691587 | AA154: 0.266974 | AB154: 0 | AC154: 0.958561 | AD154: 0 | AE154: 0 | AF154: 0 | AG154: 20 | AH154: Growth and improvement | AI154: Capex | AJ154: Structures | AK154: Rural
B155: Project 23 | C155: 1 | D155: 813737 | E155: 122117 | F155: 14475 | G155: 74959 | H155: 846420 | I155: 1 | J155: 1 | K155: 5 | L155: 0 | M155: 0 | N155: 0 | O155: 0 | P155: 0 | Q155: 0 | R155: Services and operations | S155: Opex | T155: Traffic facility | U155: Urban | W155: 16 | X155: 23 | Y155: Project 17 | Z155: 0.685881 | AA155: 0.329273 | AB155: 0 | AC155: 1.015154 | AD155: 0 | AE155: 0 | AF155: 0 | AG155: 20 | AH155: Growth and improvement | AI155: Capex | AJ155: Structures | AK155: Rural
B156: Project 24 | C156: 1 | D156: 780070 | E156: 107198 | F156: 14440 | G156: 97917 | H156: 774911 | I156: 1 | J156: 1 | K156: 4 | L156: 0 | M156: 0 | N156: 0 | O156: 0 | P156: 0 | Q156: 0 | R156: Services and operations | S156: Opex | T156: Traffic facility | U156: Urban | W156: 17 | X156: 24 | Y156: Project 11 | Z156: 0.6403793362 | AA156: 0.2967556968 | AB156: 0 | AC156: 0.937135033 | AD156: 0 | AE156: 0 | AF156: 0 | AG156: 20 | AH156: Growth and improvement | AI156: Capex | AJ156: Structures | AK156: Urban
B157: Project 25 | C157: 1 | D157: 1152620 | E157: 112035 | F157: 22642 | G157: 93953 | H157: 1148060 | I157: 1 | J157: 1 | K157: 3 | L157: 0 | M157: 0 | N157: 0 | O157: 0 | P157: 0 | Q157: 0 | R157: Services and operations | S157: Opex | T157: Traffic facility | U157: Urban | W157: 7 | X157: 25 | Y157: Project 18 | Z157: 0.55788 | AA157: 0.261766 | AB157: 0 | AC157: 0.819646 | AD157: 0 | AE157: 0 | AF157: 0 | AG157: 20 | AH157: Growth and improvement | AI157: Capex | AJ157: Structures | AK157: Rural
B158: Project 26 | C158: 1 | D158: 743609 | E158: 120470 | F158: 21651 | G158: 91781 | H158: 750647 | I158: 1 | J158: 1 | K158: 3 | L158: 0 | M158: 0 | N158: 0 | O158: 0 | P158: 0 | Q158: 0 | R158: Services and operations | S158: Opex | T158: Traffic facility | U158: Rural | W158: 19 | X158: 26 | Y158: Project 12 | Z158: 0.462208 | AA158: 0.284142 | AB158: 0 | AC158: 0.74635 | AD158: 0 | AE158: 0 | AF158: 0 | AG158: 12 | AH158: Growth and improvement | AI158: Capex | AJ158: Structures | AK158: Urban
B159: Project 27 | C159: 1 | D159: 819990 | E159: 132448 | F159: 14058 | G159: 93471 | H159: 844909 | I159: 1 | J159: 1 | K159: 4 | L159: 0 | M159: 0 | N159: 0 | O159: 0 | P159: 0 | Q159: 0 | R159: Services and operations | S159: Opex | T159: Traffic facility | U159: Rural | W159: 14 | X159: 27
B160: Project 28 | C160: 1 | D160: 1066856 | E160: 161622 | F160: 23334 | G160: 81416 | H160: 1123728 | I160: 1 | J160: 1 | K160: 5 | L160: 0 | M160: 0 | N160: 0 | O160: 0 | P160: 0 | Q160: 0 | R160: Services and operations | S160: Opex | T160: Traffic facility | U160: Rural | W160: 9 | X160: 28
B161: Project 29 | C161: 1 | D161: 1081725 | E161: 111433 | F161: 22131 | G161: 95855 | H161: 1075172 | I161: 1 | J161: 1 | K161: 2 | L161: 0 | M161: 0 | N161: 0 | O161: 0 | P161: 0 | Q161: 0 | R161: Services and operations | S161: Opex | T161: Traffic facility | U161: Rural | W161: 8 | X161: 29
B162: Project 30 | C162: 1 | D162: 1038671 | E162: 162763 | F162: 14612 | G162: 88817 | H162: 1098005 | I162: 1 | J162: 1 | K162: 2 | L162: 0 | M162: 0 | N162: 0 | O162: 0 | P162: 0 | Q162: 0 | R162: Services and operations | S162: Opex | T162: Traffic facility | U162: Rural | W162: 10 | X162: 30
B163: Total | C163: 26 | D163: 377291913.6 | E163: 186809484.1 | F163: 288581659.7 | G163: 243534153.6 | H163: 31985584.46 | I163: 76.01 | J163: 29.5 | L163: 9 | M163: 9 | N163: 0.1234285714 | O163: 0.8765714286 | P163: 0.06914285714 | Q163: 0.9308571429
B165: Scenario 4 results | W165: Scenario 4 results (dollar values now in millions)
B167: Project | C167: Funding indicator | D167: NPV ($) (PV of benefits less PV of costs) | E167: PV of costs ($) | F167: PV of safety benefits ($) | G167: PV of user travel cost benefits ($) | H167: PV of other benefits ($) | I167: Lives saved over first 10 years | J167: Hours of travel time saved (millions) | K167: Risk score | L167: Risk tolerance exceeded? | M167: Risk mitigated | N167: Road length weighted proportion in bad condition (base case) | O167: Road length weighted proportion in good condition (base case) | P167: Road length weighted proportion in bad condition (investment case) | Q167: Road length weighted proportion in good condition (investment case) | R167: Service group | S167: Expenditure category | T167: Asset class | U167: Region | W167: NPV rank | X167: NPV rank | Y167: Project | Z167: NPV ($) (PV of benefits less PV of costs) | AA167: PV of costs ($) | AB167: PV of safety benefits ($) | AC167: PV of user travel cost benefits ($) | AD167: PV of other benefits ($) | AE167: Lives saved over first 10 years | AF167: Hours of travel time saved (millions) | AG167: Risk score | AH167: Service group | AI167: Expenditure category | AJ167: Asset class | AK167: Region
B168: Project 1 | C168: 1 | D168: -11034738 | E168: 36229131 | F168: 11591347 | G168: 8747343 | H168: 4855703 | I168: 15 | J168: 10 | K168: 12 | L168: 0 | M168: 0 | N168: 0 | O168: 0 | P168: 0 | Q168: 0 | R168: Growth and improvement | S168: Capex | T168: Pavements | U168: Urban | W168: =IF(C168>0,RANK($D168,$D$168:$D$197),0) -> 30 | X168: 1 | Y168: =IFERROR(INDEX($B$168:$B$197,MATCH($X168,$W$168:$W$197,0)),"") -> Project 7 | Z168: =IFERROR(INDEX($C$168:$U$198,MATCH($Y168,$B$168:$B$198,0),MATCH(Z$167,$C$167:$U$167,0))/10^6,"") -> 87.859091 | AA168: 43.222042 | AB168: 73.826636 | AC168: 52.824104 | AD168: 4.430393 | AE168: =IFERROR(INDEX($C$168:$U$198,MATCH($Y168,$B$168:$B$198,0),MATCH(AE$167,$C$167:$U$167,0)),"") -> 7 | AF168: 1 | AG168: 0 | AH168: Asset maintenance | AI168: Opex | AJ168: Pavements | AK168: Urban
B169: Project 2 | C169: 1 | D169: 3587404 | E169: 33543641 | F169: 17532153 | G169: 15291099 | H169: 4307793 | I169: 15 | J169: 5 | K169: 12 | L169: 0 | M169: 0 | N169: 0 | O169: 0 | P169: 0 | Q169: 0 | R169: Growth and improvement | S169: Capex | T169: Pavements | U169: Urban | W169: 4 | X169: =X168+1 -> 2 | Y169: Project 6 | Z169: 84.13593185 | AA169: 35.66984741 | AB169: 61.47490449 | AC169: 54.43550339 | AD169: 3.895371375 | AE169: 8 | AF169: 1.3 | AG169: 0 | AH169: Asset maintenance | AI169: Opex | AJ169: Pavements | AK169: Urban
B170: Project 3 | C170: 1 | D170: 3341910 | E170: 21369818 | F170: 12470370 | G170: 8534573 | H170: 3706785 | I170: 17 | J170: 9 | K170: 15 | L170: 1 | M170: 1 | N170: 0 | O170: 0 | P170: 0 | Q170: 0 | R170: Growth and improvement | S170: Capex | T170: Pavements | U170: Urban | W170: 5 | X170: =X169+1 -> 3 | Y170: Project 4 | Z170: 17.673301 | AA170: 15.143576 | AB170: 19.308954 | AC170: 10.772708 | AD170: 2.735215 | AE170: 20 | AF170: 7 | AG170: 15 | AH170: Growth and improvement | AI170: Capex | AJ170: Structures | AK170: Urban
B171: Project 4 | C171: 1 | D171: 17673301 | E171: 15143576 | F171: 19308954 | G171: 10772708 | H171: 2735215 | I171: 20 | J171: 7 | K171: 15 | L171: 1 | M171: 1 | N171: 0 | O171: 0 | P171: 0 | Q171: 0 | R171: Growth and improvement | S171: Capex | T171: Structures | U171: Urban | W171: 3 | X171: 4 | Y171: Project 2 | Z171: 3.587404 | AA171: 33.543641 | AB171: 17.532153 | AC171: 15.291099 | AD171: 4.307793 | AE171: 15 | AF171: 5 | AG171: 12 | AH171: Growth and improvement | AI171: Capex | AJ171: Pavements | AK171: Urban
B172: Project 5 | C172: 0 | D172: 0 | E172: 0 | F172: 0 | G172: 0 | H172: 0 | I172: 0 | J172: 0 | K172: 5 | L172: 0 | M172: 0 | N172: 0 | O172: 0 | P172: 0 | Q172: 0 | R172: Growth and improvement | S172: Capex | T172: Structures | U172: Urban | W172: 0 | X172: 5 | Y172: Project 3 | Z172: 3.34191 | AA172: 21.369818 | AB172: 12.47037 | AC172: 8.534573 | AD172: 3.706785 | AE172: 17 | AF172: 9 | AG172: 15 | AH172: Growth and improvement | AI172: Capex | AJ172: Pavements | AK172: Urban
B173: Project 6 | C173: 1 | D173: 84135931.85 | E173: 35669847.41 | F173: 61474904.49 | G173: 54435503.39 | H173: 3895371.375 | I173: 8 | J173: 1.3 | K173: 0 | L173: 0 | M173: 0 | N173: 0.01142857143 | O173: 0.1028571429 | P173: 0.003428571429 | Q173: 0.1108571429 | R173: Asset maintenance | S173: Opex | T173: Pavements | U173: Urban | W173: 2 | X173: 6 | Y173: Project 25 | Z173: 1.15262 | AA173: 0.112035 | AB173: 0.022642 | AC173: 0.093953 | AD173: 1.14806 | AE173: 1 | AF173: 1 | AG173: 3 | AH173: Services and operations | AI173: Opex | AJ173: Traffic facility | AK173: Urban
B174: Project 7 | C174: 1 | D174: 87859091 | E174: 43222042 | F174: 73826636 | G174: 52824104 | H174: 4430393 | I174: 7 | J174: 1 | K174: 0 | L174: 0 | M174: 0 | N174: 0.008 | O174: 0.1062857143 | P174: 0.004571428571 | Q174: 0.1097142857 | R174: Asset maintenance | S174: Opex | T174: Pavements | U174: Urban | W174: 1 | X174: 7 | Y174: Project 29 | Z174: 1.081725 | AA174: 0.111433 | AB174: 0.022131 | AC174: 0.095855 | AD174: 1.075172 | AE174: 1 | AF174: 1 | AG174: 2 | AH174: Services and operations | AI174: Opex | AJ174: Traffic facility | AK174: Rural
B175: Project 8 | C175: 0 | D175: 0 | E175: 0 | F175: 0 | G175: 0 | H175: 0 | I175: 0 | J175: 0 | K175: 0 | L175: 0 | M175: 0 | N175: 0.01371428571 | O175: 0.2148571429 | P175: 0.01371428571 | Q175: 0.2148571429 | R175: Asset maintenance | S175: Opex | T175: Pavements | U175: Urban | W175: 0 | X175: 8 | Y175: Project 28 | Z175: 1.066856 | AA175: 0.161622 | AB175: 0.023334 | AC175: 0.081416 | AD175: 1.123728 | AE175: 1 | AF175: 1 | AG175: 5 | AH175: Services and operations | AI175: Opex | AJ175: Traffic facility | AK175: Rural
B176: Project 9 | C176: 0 | D176: 0 | E176: 0 | F176: 0 | G176: 0 | H176: 0 | I176: 0 | J176: 0 | K176: 0 | L176: 0 | M176: 0 | N176: 0.02742857143 | O176: 0.2011428571 | P176: 0.02742857143 | Q176: 0.2011428571 | R176: Asset maintenance | S176: Opex | T176: Pavements | U176: Rural | W176: 0 | X176: 9 | Y176: Project 30 | Z176: 1.038671 | AA176: 0.162763 | AB176: 0.014612 | AC176: 0.088817 | AD176: 1.098005 | AE176: 1 | AF176: 1 | AG176: 2 | AH176: Services and operations | AI176: Opex | AJ176: Traffic facility | AK176: Rural
B177: Project 10 | C177: 0 | D177: 0 | E177: 0 | F177: 0 | G177: 0 | H177: 0 | I177: 0 | J177: 0 | K177: 0 | L177: 0 | M177: 0 | N177: 0.06285714286 | O177: 0.2514285714 | P177: 0.06285714286 | Q177: 0.2514285714 | R177: Asset maintenance | S177: Opex | T177: Pavements | U177: Rural | W177: 0 | X177: 10 | Y177: Project 22 | Z177: 0.91069 | AA177: 0.133117 | AB177: 0.021547 | AC177: 0.06899 | AD177: 0.95327 | AE177: 1 | AF177: 1 | AG177: 4 | AH177: Services and operations | AI177: Opex | AJ177: Traffic facility | AK177: Urban
B178: Project 11 | C178: 1 | D178: 640379.3362 | E178: 296755.6968 | F178: 0 | G178: 937135.033 | H178: 0 | I178: 0 | J178: 0 | K178: 20 | L178: 1 | M178: 1 | N178: 0 | O178: 0 | P178: 0 | Q178: 0 | R178: Growth and improvement | S178: Capex | T178: Structures | U178: Urban | W178: 23 | X178: 11 | Y178: Project 21 | Z178: =IFERROR(INDEX($C$168:$U$198,MATCH($Y178,$B$168:$B$198,0),MATCH(Z$167,$C$167:$U$167,0))/10^6,"") -> 0.8803434421 | AA178: 0.139 | AB178: 0.01868515758 | AC178: 0.07899020152 | AD178: 0.921668083 | AE178: =IFERROR(INDEX($C$168:$U$198,MATCH($Y178,$B$168:$B$198,0),MATCH(AE$167,$C$167:$U$167,0)),"") -> 0.01 | AF178: 0.2 | AG178: 9 | AH178: Services and operations | AI178: Opex | AJ178: Traffic facility | AK178: Urban
B179: Project 12 | C179: 1 | D179: 462208 | E179: 284142 | F179: 0 | G179: 746350 | H179: 0 | I179: 0 | J179: 0 | K179: 12 | L179: 0 | M179: 0 | N179: 0 | O179: 0 | P179: 0 | Q179: 0 | R179: Growth and improvement | S179: Capex | T179: Structures | U179: Urban | W179: 25 | X179: 12 | Y179: Project 19 | Z179: 0.845977 | AA179: 0.310281 | AB179: 0 | AC179: 1.156258 | AD179: 0 | AE179: 0 | AF179: 0 | AG179: 16 | AH179: Growth and improvement | AI179: Capex | AJ179: Structures | AK179: Rural
B180: Project 13 | C180: 1 | D180: 739473 | E180: 251494 | F180: 0 | G180: 990967 | H180: 0 | I180: 0 | J180: 0 | K180: 10 | L180: 0 | M180: 0 | N180: 0 | O180: 0 | P180: 0 | Q180: 0 | R180: Growth and improvement | S180: Capex | T180: Structures | U180: Urban | W180: 19 | X180: 13 | Y180: Project 27 | Z180: 0.81999 | AA180: 0.132448 | AB180: 0.014058 | AC180: 0.093471 | AD180: 0.844909 | AE180: 1 | AF180: 1 | AG180: 4 | AH180: Services and operations | AI180: Opex | AJ180: Traffic facility | AK180: Rural
B181: Project 14 | C181: 1 | D181: 814308 | E181: 272180 | F181: 0 | G181: 1086488 | H181: 0 | I181: 0 | J181: 0 | K181: 12 | L181: 0 | M181: 0 | N181: 0 | O181: 0 | P181: 0 | Q181: 0 | R181: Growth and improvement | S181: Capex | T181: Structures | U181: Urban | W181: 14 | X181: 14 | Y181: Project 14 | Z181: 0.814308 | AA181: 0.27218 | AB181: 0 | AC181: 1.086488 | AD181: 0 | AE181: 0 | AF181: 0 | AG181: 12 | AH181: Growth and improvement | AI181: Capex | AJ181: Structures | AK181: Urban
B182: Project 15 | C182: 1 | D182: 746978 | E182: 232291 | F182: 0 | G182: 979269 | H182: 0 | I182: 0 | J182: 0 | K182: 16 | L182: 1 | M182: 1 | N182: 0 | O182: 0 | P182: 0 | Q182: 0 | R182: Growth and improvement | S182: Capex | T182: Structures | U182: Urban | W182: 17 | X182: 15 | Y182: Project 23 | Z182: 0.813737 | AA182: 0.122117 | AB182: 0.014475 | AC182: 0.074959 | AD182: 0.84642 | AE182: 1 | AF182: 1 | AG182: 5 | AH182: Services and operations | AI182: Opex | AJ182: Traffic facility | AK182: Urban
B183: Project 16 | C183: 1 | D183: 691587 | E183: 266974 | F183: 0 | G183: 958561 | H183: 0 | I183: 0 | J183: 0 | K183: 20 | L183: 1 | M183: 1 | N183: 0 | O183: 0 | P183: 0 | Q183: 0 | R183: Growth and improvement | S183: Capex | T183: Structures | U183: Rural | W183: 21 | X183: 16 | Y183: Project 24 | Z183: 0.78007 | AA183: 0.107198 | AB183: 0.01444 | AC183: 0.097917 | AD183: 0.774911 | AE183: 1 | AF183: 1 | AG183: 4 | AH183: Services and operations | AI183: Opex | AJ183: Traffic facility | AK183: Urban
B184: Project 17 | C184: 1 | D184: 685881 | E184: 329273 | F184: 0 | G184: 1015154 | H184: 0 | I184: 0 | J184: 0 | K184: 20 | L184: 1 | M184: 1 | N184: 0 | O184: 0 | P184: 0 | Q184: 0 | R184: Growth and improvement | S184: Capex | T184: Structures | U184: Rural | W184: 22 | X184: 17 | Y184: Project 15 | Z184: 0.746978 | AA184: 0.232291 | AB184: 0 | AC184: 0.979269 | AD184: 0 | AE184: 0 | AF184: 0 | AG184: 16 | AH184: Growth and improvement | AI184: Capex | AJ184: Structures | AK184: Urban
B185: Project 18 | C185: 1 | D185: 557880 | E185: 261766 | F185: 0 | G185: 819646 | H185: 0 | I185: 0 | J185: 0 | K185: 20 | L185: 1 | M185: 1 | N185: 0 | O185: 0 | P185: 0 | Q185: 0 | R185: Growth and improvement | S185: Capex | T185: Structures | U185: Rural | W185: 24 | X185: 18 | Y185: Project 26 | Z185: 0.743609 | AA185: 0.12047 | AB185: 0.021651 | AC185: 0.091781 | AD185: 0.750647 | AE185: 1 | AF185: 1 | AG185: 3 | AH185: Services and operations | AI185: Opex | AJ185: Traffic facility | AK185: Rural
B186: Project 19 | C186: 1 | D186: 845977 | E186: 310281 | F186: 0 | G186: 1156258 | H186: 0 | I186: 0 | J186: 0 | K186: 16 | L186: 1 | M186: 1 | N186: 0 | O186: 0 | P186: 0 | Q186: 0 | R186: Growth and improvement | S186: Capex | T186: Structures | U186: Rural | W186: 12 | X186: 19 | Y186: Project 13 | Z186: 0.739473 | AA186: 0.251494 | AB186: 0 | AC186: 0.990967 | AD186: 0 | AE186: 0 | AF186: 0 | AG186: 10 | AH186: Growth and improvement | AI186: Capex | AJ186: Structures | AK186: Urban
B187: Project 20 | C187: 1 | D187: 692645 | E187: 256936 | F187: 0 | G187: 949581 | H187: 0 | I187: 0 | J187: 0 | K187: 15 | L187: 1 | M187: 1 | N187: 0 | O187: 0 | P187: 0 | Q187: 0 | R187: Growth and improvement | S187: Capex | T187: Structures | U187: Rural | W187: 20 | X187: 20 | Y187: Project 20 | Z187: 0.692645 | AA187: 0.256936 | AB187: 0 | AC187: 0.949581 | AD187: 0 | AE187: 0 | AF187: 0 | AG187: 15 | AH187: Growth and improvement | AI187: Capex | AJ187: Structures | AK187: Rural
B188: Project 21 | C188: 1 | D188: 880343.4421 | E188: 139000 | F188: 18685.15758 | G188: 78990.20152 | H188: 921668.083 | I188: 0.01 | J188: 0.2 | K188: 9 | L188: 0 | M188: 0 | N188: 0 | O188: 0 | P188: 0 | Q188: 0 | R188: Services and operations | S188: Opex | T188: Traffic facility | U188: Urban | W188: 11 | X188: 21 | Y188: Project 16 | Z188: =IFERROR(INDEX($C$168:$U$198,MATCH($Y188,$B$168:$B$198,0),MATCH(Z$167,$C$167:$U$167,0))/10^6,"") -> 0.691587 | AA188: 0.266974 | AB188: 0 | AC188: 0.958561 | AD188: 0 | AE188: =IFERROR(INDEX($C$168:$U$198,MATCH($Y188,$B$168:$B$198,0),MATCH(AE$167,$C$167:$U$167,0)),"") -> 0 | AF188: 0 | AG188: 20 | AH188: Growth and improvement | AI188: Capex | AJ188: Structures | AK188: Rural
B189: Project 22 | C189: 1 | D189: 910690 | E189: 133117 | F189: 21547 | G189: 68990 | H189: 953270 | I189: 1 | J189: 1 | K189: 4 | L189: 0 | M189: 0 | N189: 0 | O189: 0 | P189: 0 | Q189: 0 | R189: Services and operations | S189: Opex | T189: Traffic facility | U189: Urban | W189: 10 | X189: 22 | Y189: Project 17 | Z189: 0.685881 | AA189: 0.329273 | AB189: 0 | AC189: 1.015154 | AD189: 0 | AE189: 0 | AF189: 0 | AG189: 20 | AH189: Growth and improvement | AI189: Capex | AJ189: Structures | AK189: Rural
B190: Project 23 | C190: 1 | D190: 813737 | E190: 122117 | F190: 14475 | G190: 74959 | H190: 846420 | I190: 1 | J190: 1 | K190: 5 | L190: 0 | M190: 0 | N190: 0 | O190: 0 | P190: 0 | Q190: 0 | R190: Services and operations | S190: Opex | T190: Traffic facility | U190: Urban | W190: 15 | X190: 23 | Y190: Project 11 | Z190: 0.6403793362 | AA190: 0.2967556968 | AB190: 0 | AC190: 0.937135033 | AD190: 0 | AE190: 0 | AF190: 0 | AG190: 20 | AH190: Growth and improvement | AI190: Capex | AJ190: Structures | AK190: Urban
B191: Project 24 | C191: 1 | D191: 780070 | E191: 107198 | F191: 14440 | G191: 97917 | H191: 774911 | I191: 1 | J191: 1 | K191: 4 | L191: 0 | M191: 0 | N191: 0 | O191: 0 | P191: 0 | Q191: 0 | R191: Services and operations | S191: Opex | T191: Traffic facility | U191: Urban | W191: 16 | X191: 24 | Y191: Project 18 | Z191: 0.55788 | AA191: 0.261766 | AB191: 0 | AC191: 0.819646 | AD191: 0 | AE191: 0 | AF191: 0 | AG191: 20 | AH191: Growth and improvement | AI191: Capex | AJ191: Structures | AK191: Rural
B192: Project 25 | C192: 1 | D192: 1152620 | E192: 112035 | F192: 22642 | G192: 93953 | H192: 1148060 | I192: 1 | J192: 1 | K192: 3 | L192: 0 | M192: 0 | N192: 0 | O192: 0 | P192: 0 | Q192: 0 | R192: Services and operations | S192: Opex | T192: Traffic facility | U192: Urban | W192: 6 | X192: 25 | Y192: Project 12 | Z192: 0.462208 | AA192: 0.284142 | AB192: 0 | AC192: 0.74635 | AD192: 0 | AE192: 0 | AF192: 0 | AG192: 12 | AH192: Growth and improvement | AI192: Capex | AJ192: Structures | AK192: Urban
B193: Project 26 | C193: 1 | D193: 743609 | E193: 120470 | F193: 21651 | G193: 91781 | H193: 750647 | I193: 1 | J193: 1 | K193: 3 | L193: 0 | M193: 0 | N193: 0 | O193: 0 | P193: 0 | Q193: 0 | R193: Services and operations | S193: Opex | T193: Traffic facility | U193: Rural | W193: 18 | X193: 26
B194: Project 27 | C194: 1 | D194: 819990 | E194: 132448 | F194: 14058 | G194: 93471 | H194: 844909 | I194: 1 | J194: 1 | K194: 4 | L194: 0 | M194: 0 | N194: 0 | O194: 0 | P194: 0 | Q194: 0 | R194: Services and operations | S194: Opex | T194: Traffic facility | U194: Rural | W194: 13 | X194: 27
B195: Project 28 | C195: 1 | D195: 1066856 | E195: 161622 | F195: 23334 | G195: 81416 | H195: 1123728 | I195: 1 | J195: 1 | K195: 5 | L195: 0 | M195: 0 | N195: 0 | O195: 0 | P195: 0 | Q195: 0 | R195: Services and operations | S195: Opex | T195: Traffic facility | U195: Rural | W195: 8 | X195: 28
B196: Project 29 | C196: 1 | D196: 1081725 | E196: 111433 | F196: 22131 | G196: 95855 | H196: 1075172 | I196: 1 | J196: 1 | K196: 2 | L196: 0 | M196: 0 | N196: 0 | O196: 0 | P196: 0 | Q196: 0 | R196: Services and operations | S196: Opex | T196: Traffic facility | U196: Rural | W196: 7 | X196: 29
B197: Project 30 | C197: 1 | D197: 1038671 | E197: 162763 | F197: 14612 | G197: 88817 | H197: 1098005 | I197: 1 | J197: 1 | K197: 2 | L197: 0 | M197: 0 | N197: 0 | O197: 0 | P197: 0 | Q197: 0 | R197: Services and operations | S197: Opex | T197: Traffic facility | U197: Rural | W197: 9 | X197: 30 | Y197: Project 1 | Z197: -11.034738 | AA197: 36.229131 | AB197: 11.591347 | AC197: 8.747343 | AD197: 4.855703 | AE197: 15 | AF197: 10 | AG197: 12 | AH197: Growth and improvement | AI197: Capex | AJ197: Pavements | AK197: Urban
B198: Total | C198: 26 | D198: 201728527.6 | E198: 189242351.1 | F198: 196391939.7 | G198: 161110888.6 | H198: 33468050.46 | I198: 91.01 | J198: 42.5 | L198: 9 | M198: 9 | N198: 0.1234285714 | O198: 0.8765714286 | P198: 0.112 | Q198: 0.888

Sheet C2 Dashboard data
A1: =MID(CELL("filename",A2),FIND("]",CELL("filename",A2))+1,256) -> C2 Dashboard data
B4: Dashboard data
B6: Description
B7: This tab contains the calculations underpinning the charts presented on the 'O2 Dashboard' tab.
B9: Aggregate portfolio statistics
B11: ="Breakdown of net present value under " & active_scenario -> Breakdown of net present value under Scenario 1
B13: NPV component | C13: Value ($m)
B14: Capital cost | C14: =-CHOOSE('O2 Dashboard'!D6,'C1 Portfolio construction'!E93,'C1 Portfolio construction'!E128,'C1 Portfolio construction'!E163,'C1 Portfolio construction'!E198)/10^6 -> -189.1897881
B15: Safety | C15: =CHOOSE('O2 Dashboard'!D6,'C1 Portfolio construction'!F93,'C1 Portfolio construction'!F128,'C1 Portfolio construction'!F163,'C1 Portfolio construction'!F198)/10^6 -> 310.9854087
B16: User travel costs | C16: =CHOOSE('O2 Dashboard'!D6,'C1 Portfolio construction'!G93,'C1 Portfolio construction'!G128,'C1 Portfolio construction'!G163,'C1 Portfolio construction'!G198)/10^6 -> 278.2392546
B17: Other | C17: =CHOOSE('O2 Dashboard'!D6,'C1 Portfolio construction'!H93,'C1 Portfolio construction'!H128,'C1 Portfolio construction'!H163,'C1 Portfolio construction'!H198)/10^6 -> 29.39090846
B18: NPV | C18: =CHOOSE('O2 Dashboard'!D6,'C1 Portfolio construction'!D93,'C1 Portfolio construction'!D128,'C1 Portfolio construction'!D163,'C1 Portfolio construction'!D198)/10^6 -> 429.4257836
B20: ="Portfolio composition under " & active_scenario -> Portfolio composition under Scenario 1
B22: Project | C22: NPV ($m) | D22: Costs (PV $m) | E22: Safety benefits (PV $m) | F22: User travel costs (PV $m) | G22: Other benefits (PV $m) | H22: Lives saved over first 10 years | I22: Hours of travel time saved (millions) | J22: Risk score | K22: Service group | L22: Expenditure category | M22: Asset class | N22: Region | O22: Length of road (km) | P22: Proportion of road in good condition (without investment) | Q22: Proportion of road in good condition (with investment)
B23: =CHOOSE('O2 Dashboard'!$D$6,'C1 Portfolio construction'!Y63,'C1 Portfolio construction'!Y98,'C1 Portfolio construction'!Y133,'C1 Portfolio construction'!Y168) -> Project 7 | C23: =CHOOSE('O2 Dashboard'!$D$6,'C1 Portfolio construction'!Z63,'C1 Portfolio construction'!Z98,'C1 Portfolio construction'!Z133,'C1 Portfolio construction'!Z168) -> 87.859091 | D23: =CHOOSE('O2 Dashboard'!$D$6,'C1 Portfolio construction'!AA63,'C1 Portfolio construction'!AA98,'C1 Portfolio construction'!AA133,'C1 Portfolio construction'!AA168) -> 43.222042 | E23: =CHOOSE('O2 Dashboard'!$D$6,'C1 Portfolio construction'!AB63,'C1 Portfolio construction'!AB98,'C1 Portfolio construction'!AB133,'C1 Portfolio construction'!AB168) -> 73.826636 | F23: =CHOOSE('O2 Dashboard'!$D$6,'C1 Portfolio construction'!AC63,'C1 Portfolio construction'!AC98,'C1 Portfolio construction'!AC133,'C1 Portfolio construction'!AC168) -> 52.824104 | G23: =CHOOSE('O2 Dashboard'!$D$6,'C1 Portfolio construction'!AD63,'C1 Portfolio construction'!AD98,'C1 Portfolio construction'!AD133,'C1 Portfolio construction'!AD168) -> 4.430393 | H23: =CHOOSE('O2 Dashboard'!$D$6,'C1 Portfolio construction'!AE63,'C1 Portfolio construction'!AE98,'C1 Portfolio construction'!AE133,'C1 Portfolio construction'!AE168) -> 7 | I23: =CHOOSE('O2 Dashboard'!$D$6,'C1 Portfolio construction'!AF63,'C1 Portfolio construction'!AF98,'C1 Portfolio construction'!AF133,'C1 Portfolio construction'!AF168) -> 1 | J23: =CHOOSE('O2 Dashboard'!$D$6,'C1 Portfolio construction'!AG63,'C1 Portfolio construction'!AG98,'C1 Portfolio construction'!AG133,'C1 Portfolio construction'!AG168) -> 0 | K23: =CHOOSE('O2 Dashboard'!$D$6,'C1 Portfolio construction'!AH63,'C1 Portfolio construction'!AH98,'C1 Portfolio construction'!AH133,'C1 Portfolio construction'!AH168) -> Asset maintenance | L23: =CHOOSE('O2 Dashboard'!$D$6,'C1 Portfolio construction'!AI63,'C1 Portfolio construction'!AI98,'C1 Portfolio construction'!AI133,'C1 Portfolio construction'!AI168) -> Opex | M23: =CHOOSE('O2 Dashboard'!$D$6,'C1 Portfolio construction'!AJ63,'C1 Portfolio construction'!AJ98,'C1 Portfolio construction'!AJ133,'C1 Portfolio construction'!AJ168) -> Pavements | N23: =CHOOSE('O2 Dashboard'!$D$6,'C1 Portfolio construction'!AK63,'C1 Portfolio construction'!AK98,'C1 Portfolio construction'!AK133,'C1 Portfolio construction'!AK168) -> Urban | O23: =IFERROR(IF(INDEX('I1 Inputs'!$T$13:$T$42,MATCH('C2 Dashboard data'!$B23,'I1 Inputs'!$B$13:$B$42,0))>0,INDEX('I1 Inputs'!$T$13:$T$42,MATCH('C2 Dashboard data'!$B23,'I1 Inputs'!$B$13:$B$42,0)),""),"") -> 400 | P23: =IFERROR(IF(INDEX('I1 Inputs'!$V$13:$V$42,MATCH('C2 Dashboard data'!$B23,'I1 Inputs'!$B$13:$B$42,0))>0, INDEX('I1 Inputs'!$V$13:$V$42,MATCH('C2 Dashboard data'!$B23,'I1 Inputs'!$B$13:$B$42,0)), ""),"") -> 0.93 | Q23: =IFERROR(IF(INDEX('I1 Inputs'!$Y$13:$Y$42,MATCH('C2 Dashboard data'!$B23,'I1 Inputs'!$B$13:$B$42,0))>0,INDEX('I1 Inputs'!$Y$13:$Y$42,MATCH('C2 Dashboard data'!$B23,'I1 Inputs'!$B$13:$B$42,0)),""),"") -> 0.96
B24: =CHOOSE('O2 Dashboard'!$D$6,'C1 Portfolio construction'!Y64,'C1 Portfolio construction'!Y99,'C1 Portfolio construction'!Y134,'C1 Portfolio construction'!Y169) -> Project 9 | C24: =CHOOSE('O2 Dashboard'!$D$6,'C1 Portfolio construction'!Z64,'C1 Portfolio construction'!Z99,'C1 Portfolio construction'!Z134,'C1 Portfolio construction'!Z169) -> 87.60994 | D24: =CHOOSE('O2 Dashboard'!$D$6,'C1 Portfolio construction'!AA64,'C1 Portfolio construction'!AA99,'C1 Portfolio construction'!AA134,'C1 Portfolio construction'!AA169) -> 36.179264 | E24: =CHOOSE('O2 Dashboard'!$D$6,'C1 Portfolio construction'!AB64,'C1 Portfolio construction'!AB99,'C1 Portfolio construction'!AB134,'C1 Portfolio construction'!AB169) -> 72.353852 | F24: =CHOOSE('O2 Dashboard'!$D$6,'C1 Portfolio construction'!AC64,'C1 Portfolio construction'!AC99,'C1 Portfolio construction'!AC134,'C1 Portfolio construction'!AC169) -> 46.891955 | G24: =CHOOSE('O2 Dashboard'!$D$6,'C1 Portfolio construction'!AD64,'C1 Portfolio construction'!AD99,'C1 Portfolio construction'!AD134,'C1 Portfolio construction'!AD169) -> 4.543397 | H24: =CHOOSE('O2 Dashboard'!$D$6,'C1 Portfolio construction'!AE64,'C1 Portfolio construction'!AE99,'C1 Portfolio construction'!AE134,'C1 Portfolio construction'!AE169) -> 6 | I24: =CHOOSE('O2 Dashboard'!$D$6,'C1 Portfolio construction'!AF64,'C1 Portfolio construction'!AF99,'C1 Portfolio construction'!AF134,'C1 Portfolio construction'!AF169) -> 1 | J24: =CHOOSE('O2 Dashboard'!$D$6,'C1 Portfolio construction'!AG64,'C1 Portfolio construction'!AG99,'C1 Portfolio construction'!AG134,'C1 Portfolio construction'!AG169) -> 0 | K24: =CHOOSE('O2 Dashboard'!$D$6,'C1 Portfolio construction'!AH64,'C1 Portfolio construction'!AH99,'C1 Portfolio construction'!AH134,'C1 Portfolio construction'!AH169) -> Asset maintenance | L24: =CHOOSE('O2 Dashboard'!$D$6,'C1 Portfolio construction'!AI64,'C1 Portfolio construction'!AI99,'C1 Portfolio construction'!AI134,'C1 Portfolio construction'!AI169) -> Opex | M24: =CHOOSE('O2 Dashboard'!$D$6,'C1 Portfolio construction'!AJ64,'C1 Portfolio construction'!AJ99,'C1 Portfolio construction'!AJ134,'C1 Portfolio construction'!AJ169) -> Pavements | N24: =CHOOSE('O2 Dashboard'!$D$6,'C1 Portfolio construction'!AK64,'C1 Portfolio construction'!AK99,'C1 Portfolio construction'!AK134,'C1 Portfolio construction'!AK169) -> Rural | O24: =IFERROR(IF(INDEX('I1 Inputs'!$T$13:$T$42,MATCH('C2 Dashboard data'!$B24,'I1 Inputs'!$B$13:$B$42,0))>0,INDEX('I1 Inputs'!$T$13:$T$42,MATCH('C2 Dashboard data'!$B24,'I1 Inputs'!$B$13:$B$42,0)),""),"") -> 800 | P24: =IFERROR(IF(INDEX('I1 Inputs'!$V$13:$V$42,MATCH('C2 Dashboard data'!$B24,'I1 Inputs'!$B$13:$B$42,0))>0, INDEX('I1 Inputs'!$V$13:$V$42,MATCH('C2 Dashboard data'!$B24,'I1 Inputs'!$B$13:$B$42,0)), ""),"") -> 0.88 | Q24: =IFERROR(IF(INDEX('I1 Inputs'!$Y$13:$Y$42,MATCH('C2 Dashboard data'!$B24,'I1 Inputs'!$B$13:$B$42,0))>0,INDEX('I1 Inputs'!$Y$13:$Y$42,MATCH('C2 Dashboard data'!$B24,'I1 Inputs'!$B$13:$B$42,0)),""),"") -> 0.93
B25: =CHOOSE('O2 Dashboard'!$D$6,'C1 Portfolio construction'!Y65,'C1 Portfolio construction'!Y100,'C1 Portfolio construction'!Y135,'C1 Portfolio construction'!Y170) -> Project 6 | C25: =CHOOSE('O2 Dashboard'!$D$6,'C1 Portfolio construction'!Z65,'C1 Portfolio construction'!Z100,'C1 Portfolio construction'!Z135,'C1 Portfolio construction'!Z170) -> 84.13593185 | D25: =CHOOSE('O2 Dashboard'!$D$6,'C1 Portfolio construction'!AA65,'C1 Portfolio construction'!AA100,'C1 Portfolio construction'!AA135,'C1 Portfolio construction'!AA170) -> 35.66984741 | E25: =CHOOSE('O2 Dashboard'!$D$6,'C1 Portfolio construction'!AB65,'C1 Portfolio construction'!AB100,'C1 Portfolio construction'!AB135,'C1 Portfolio construction'!AB170) -> 61.47490449 | F25: =CHOOSE('O2 Dashboard'!$D$6,'C1 Portfolio construction'!AC65,'C1 Portfolio construction'!AC100,'C1 Portfolio construction'!AC135,'C1 Portfolio construction'!AC170) -> 54.43550339 | G25: =CHOOSE('O2 Dashboard'!$D$6,'C1 Portfolio construction'!AD65,'C1 Portfolio construction'!AD100,'C1 Portfolio construction'!AD135,'C1 Portfolio construction'!AD170) -> 3.895371375 | H25: =CHOOSE('O2 Dashboard'!$D$6,'C1 Portfolio construction'!AE65,'C1 Portfolio construction'!AE100,'C1 Portfolio construction'!AE135,'C1 Portfolio construction'!AE170) -> 8 | I25: =CHOOSE('O2 Dashboard'!$D$6,'C1 Portfolio construction'!AF65,'C1 Portfolio construction'!AF100,'C1 Portfolio construction'!AF135,'C1 Portfolio construction'!AF170) -> 1.3 | J25: =CHOOSE('O2 Dashboard'!$D$6,'C1 Portfolio construction'!AG65,'C1 Portfolio construction'!AG100,'C1 Portfolio construction'!AG135,'C1 Portfolio construction'!AG170) -> 0 | K25: =CHOOSE('O2 Dashboard'!$D$6,'C1 Portfolio construction'!AH65,'C1 Portfolio construction'!AH100,'C1 Portfolio construction'!AH135,'C1 Portfolio construction'!AH170) -> Asset maintenance | L25: =CHOOSE('O2 Dashboard'!$D$6,'C1 Portfolio construction'!AI65,'C1 Portfolio construction'!AI100,'C1 Portfolio construction'!AI135,'C1 Portfolio construction'!AI170) -> Opex | M25: =CHOOSE('O2 Dashboard'!$D$6,'C1 Portfolio construction'!AJ65,'C1 Portfolio construction'!AJ100,'C1 Portfolio construction'!AJ135,'C1 Portfolio construction'!AJ170) -> Pavements | N25: =CHOOSE('O2 Dashboard'!$D$6,'C1 Portfolio construction'!AK65,'C1 Portfolio construction'!AK100,'C1 Portfolio construction'!AK135,'C1 Portfolio construction'!AK170) -> Urban | O25: =IFERROR(IF(INDEX('I1 Inputs'!$T$13:$T$42,MATCH('C2 Dashboard data'!$B25,'I1 Inputs'!$B$13:$B$42,0))>0,INDEX('I1 Inputs'!$T$13:$T$42,MATCH('C2 Dashboard data'!$B25,'I1 Inputs'!$B$13:$B$42,0)),""),"") -> 400 | P25: =IFERROR(IF(INDEX('I1 Inputs'!$V$13:$V$42,MATCH('C2 Dashboard data'!$B25,'I1 Inputs'!$B$13:$B$42,0))>0, INDEX('I1 Inputs'!$V$13:$V$42,MATCH('C2 Dashboard data'!$B25,'I1 Inputs'!$B$13:$B$42,0)), ""),"") -> 0.9 | Q25: =IFERROR(IF(INDEX('I1 Inputs'!$Y$13:$Y$42,MATCH('C2 Dashboard data'!$B25,'I1 Inputs'!$B$13:$B$42,0))>0,INDEX('I1 Inputs'!$Y$13:$Y$42,MATCH('C2 Dashboard data'!$B25,'I1 Inputs'!$B$13:$B$42,0)),""),"") -> 0.97
B26: =CHOOSE('O2 Dashboard'!$D$6,'C1 Portfolio construction'!Y66,'C1 Portfolio construction'!Y101,'C1 Portfolio construction'!Y136,'C1 Portfolio construction'!Y171) -> Project 10 | C26: =CHOOSE('O2 Dashboard'!$D$6,'C1 Portfolio construction'!Z66,'C1 Portfolio construction'!Z101,'C1 Portfolio construction'!Z136,'C1 Portfolio construction'!Z171) -> 80.506112 | D26: =CHOOSE('O2 Dashboard'!$D$6,'C1 Portfolio construction'!AA66,'C1 Portfolio construction'!AA101,'C1 Portfolio construction'!AA136,'C1 Portfolio construction'!AA171) -> 31.160641 | E26: =CHOOSE('O2 Dashboard'!$D$6,'C1 Portfolio construction'!AB66,'C1 Portfolio construction'!AB101,'C1 Portfolio construction'!AB136,'C1 Portfolio construction'!AB171) -> 48.959368 | F26: =CHOOSE('O2 Dashboard'!$D$6,'C1 Portfolio construction'!AC66,'C1 Portfolio construction'!AC101,'C1 Portfolio construction'!AC136,'C1 Portfolio construction'!AC171) -> 59.569752 | G26: =CHOOSE('O2 Dashboard'!$D$6,'C1 Portfolio construction'!AD66,'C1 Portfolio construction'!AD101,'C1 Portfolio construction'!AD136,'C1 Portfolio construction'!AD171) -> 3.137633 | H26: =CHOOSE('O2 Dashboard'!$D$6,'C1 Portfolio construction'!AE66,'C1 Portfolio construction'!AE101,'C1 Portfolio construction'!AE136,'C1 Portfolio construction'!AE171) -> 9 | I26: =CHOOSE('O2 Dashboard'!$D$6,'C1 Portfolio construction'!AF66,'C1 Portfolio construction'!AF101,'C1 Portfolio construction'!AF136,'C1 Portfolio construction'!AF171) -> 1 | J26: =CHOOSE('O2 Dashboard'!$D$6,'C1 Portfolio construction'!AG66,'C1 Portfolio construction'!AG101,'C1 Portfolio construction'!AG136,'C1 Portfolio construction'!AG171) -> 0 | K26: =CHOOSE('O2 Dashboard'!$D$6,'C1 Portfolio construction'!AH66,'C1 Portfolio construction'!AH101,'C1 Portfolio construction'!AH136,'C1 Portfolio construction'!AH171) -> Asset maintenance | L26: =CHOOSE('O2 Dashboard'!$D$6,'C1 Portfolio construction'!AI66,'C1 Portfolio construction'!AI101,'C1 Portfolio construction'!AI136,'C1 Portfolio construction'!AI171) -> Opex | M26: =CHOOSE('O2 Dashboard'!$D$6,'C1 Portfolio construction'!AJ66,'C1 Portfolio construction'!AJ101,'C1 Portfolio construction'!AJ136,'C1 Portfolio construction'!AJ171) -> Pavements | N26: =CHOOSE('O2 Dashboard'!$D$6,'C1 Portfolio construction'!AK66,'C1 Portfolio construction'!AK101,'C1 Portfolio construction'!AK136,'C1 Portfolio construction'!AK171) -> Rural | O26: =IFERROR(IF(INDEX('I1 Inputs'!$T$13:$T$42,MATCH('C2 Dashboard data'!$B26,'I1 Inputs'!$B$13:$B$42,0))>0,INDEX('I1 Inputs'!$T$13:$T$42,MATCH('C2 Dashboard data'!$B26,'I1 Inputs'!$B$13:$B$42,0)),""),"") -> 1100 | P26: =IFERROR(IF(INDEX('I1 Inputs'!$V$13:$V$42,MATCH('C2 Dashboard data'!$B26,'I1 Inputs'!$B$13:$B$42,0))>0, INDEX('I1 Inputs'!$V$13:$V$42,MATCH('C2 Dashboard data'!$B26,'I1 Inputs'!$B$13:$B$42,0)), ""),"") -> 0.8 | Q26: =IFERROR(IF(INDEX('I1 Inputs'!$Y$13:$Y$42,MATCH('C2 Dashboard data'!$B26,'I1 Inputs'!$B$13:$B$42,0))>0,INDEX('I1 Inputs'!$Y$13:$Y$42,MATCH('C2 Dashboard data'!$B26,'I1 Inputs'!$B$13:$B$42,0)),""),"") -> 0.9
B27: =CHOOSE('O2 Dashboard'!$D$6,'C1 Portfolio construction'!Y67,'C1 Portfolio construction'!Y102,'C1 Portfolio construction'!Y137,'C1 Portfolio construction'!Y172) -> Project 8 | C27: =CHOOSE('O2 Dashboard'!$D$6,'C1 Portfolio construction'!Z67,'C1 Portfolio construction'!Z102,'C1 Portfolio construction'!Z137,'C1 Portfolio construction'!Z172) -> 73.149081 | D27: =CHOOSE('O2 Dashboard'!$D$6,'C1 Portfolio construction'!AA67,'C1 Portfolio construction'!AA102,'C1 Portfolio construction'!AA137,'C1 Portfolio construction'!AA172) -> 38.893698 | E27: =CHOOSE('O2 Dashboard'!$D$6,'C1 Portfolio construction'!AB67,'C1 Portfolio construction'!AB102,'C1 Portfolio construction'!AB137,'C1 Portfolio construction'!AB172) -> 54.183073 | F27: =CHOOSE('O2 Dashboard'!$D$6,'C1 Portfolio construction'!AC67,'C1 Portfolio construction'!AC102,'C1 Portfolio construction'!AC137,'C1 Portfolio construction'!AC172) -> 54.012382 | G27: =CHOOSE('O2 Dashboard'!$D$6,'C1 Portfolio construction'!AD67,'C1 Portfolio construction'!AD102,'C1 Portfolio construction'!AD137,'C1 Portfolio construction'!AD172) -> 3.847324 | H27: =CHOOSE('O2 Dashboard'!$D$6,'C1 Portfolio construction'!AE67,'C1 Portfolio construction'!AE102,'C1 Portfolio construction'!AE137,'C1 Portfolio construction'!AE172) -> 10 | I27: =CHOOSE('O2 Dashboard'!$D$6,'C1 Portfolio construction'!AF67,'C1 Portfolio construction'!AF102,'C1 Portfolio construction'!AF137,'C1 Portfolio construction'!AF172) -> 1 | J27: =CHOOSE('O2 Dashboard'!$D$6,'C1 Portfolio construction'!AG67,'C1 Portfolio construction'!AG102,'C1 Portfolio construction'!AG137,'C1 Portfolio construction'!AG172) -> 0 | K27: =CHOOSE('O2 Dashboard'!$D$6,'C1 Portfolio construction'!AH67,'C1 Portfolio construction'!AH102,'C1 Portfolio construction'!AH137,'C1 Portfolio construction'!AH172) -> Asset maintenance | L27: =CHOOSE('O2 Dashboard'!$D$6,'C1 Portfolio construction'!AI67,'C1 Portfolio construction'!AI102,'C1 Portfolio construction'!AI137,'C1 Portfolio construction'!AI172) -> Opex | M27: =CHOOSE('O2 Dashboard'!$D$6,'C1 Portfolio construction'!AJ67,'C1 Portfolio construction'!AJ102,'C1 Portfolio construction'!AJ137,'C1 Portfolio construction'!AJ172) -> Pavements | N27: =CHOOSE('O2 Dashboard'!$D$6,'C1 Portfolio construction'!AK67,'C1 Portfolio construction'!AK102,'C1 Portfolio construction'!AK137,'C1 Portfolio construction'!AK172) -> Urban | O27: =IFERROR(IF(INDEX('I1 Inputs'!$T$13:$T$42,MATCH('C2 Dashboard data'!$B27,'I1 Inputs'!$B$13:$B$42,0))>0,INDEX('I1 Inputs'!$T$13:$T$42,MATCH('C2 Dashboard data'!$B27,'I1 Inputs'!$B$13:$B$42,0)),""),"") -> 800 | P27: =IFERROR(IF(INDEX('I1 Inputs'!$V$13:$V$42,MATCH('C2 Dashboard data'!$B27,'I1 Inputs'!$B$13:$B$42,0))>0, INDEX('I1 Inputs'!$V$13:$V$42,MATCH('C2 Dashboard data'!$B27,'I1 Inputs'!$B$13:$B$42,0)), ""),"") -> 0.94 | Q27: =IFERROR(IF(INDEX('I1 Inputs'!$Y$13:$Y$42,MATCH('C2 Dashboard data'!$B27,'I1 Inputs'!$B$13:$B$42,0))>0,INDEX('I1 Inputs'!$Y$13:$Y$42,MATCH('C2 Dashboard data'!$B27,'I1 Inputs'!$B$13:$B$42,0)),""),"") -> 0.97
B28: =CHOOSE('O2 Dashboard'!$D$6,'C1 Portfolio construction'!Y68,'C1 Portfolio construction'!Y103,'C1 Portfolio construction'!Y138,'C1 Portfolio construction'!Y173) -> Project 25 | C28: =CHOOSE('O2 Dashboard'!$D$6,'C1 Portfolio construction'!Z68,'C1 Portfolio construction'!Z103,'C1 Portfolio construction'!Z138,'C1 Portfolio construction'!Z173) -> 1.15262 | D28: =CHOOSE('O2 Dashboard'!$D$6,'C1 Portfolio construction'!AA68,'C1 Portfolio construction'!AA103,'C1 Portfolio construction'!AA138,'C1 Portfolio construction'!AA173) -> 0.112035 | E28: =CHOOSE('O2 Dashboard'!$D$6,'C1 Portfolio construction'!AB68,'C1 Portfolio construction'!AB103,'C1 Portfolio construction'!AB138,'C1 Portfolio construction'!AB173) -> 0.022642 | F28: =CHOOSE('O2 Dashboard'!$D$6,'C1 Portfolio construction'!AC68,'C1 Portfolio construction'!AC103,'C1 Portfolio construction'!AC138,'C1 Portfolio construction'!AC173) -> 0.093953 | G28: =CHOOSE('O2 Dashboard'!$D$6,'C1 Portfolio construction'!AD68,'C1 Portfolio construction'!AD103,'C1 Portfolio construction'!AD138,'C1 Portfolio construction'!AD173) -> 1.14806 | H28: =CHOOSE('O2 Dashboard'!$D$6,'C1 Portfolio construction'!AE68,'C1 Portfolio construction'!AE103,'C1 Portfolio construction'!AE138,'C1 Portfolio construction'!AE173) -> 1 | I28: =CHOOSE('O2 Dashboard'!$D$6,'C1 Portfolio construction'!AF68,'C1 Portfolio construction'!AF103,'C1 Portfolio construction'!AF138,'C1 Portfolio construction'!AF173) -> 1 | J28: =CHOOSE('O2 Dashboard'!$D$6,'C1 Portfolio construction'!AG68,'C1 Portfolio construction'!AG103,'C1 Portfolio construction'!AG138,'C1 Portfolio construction'!AG173) -> 3 | K28: =CHOOSE('O2 Dashboard'!$D$6,'C1 Portfolio construction'!AH68,'C1 Portfolio construction'!AH103,'C1 Portfolio construction'!AH138,'C1 Portfolio construction'!AH173) -> Services and operations | L28: =CHOOSE('O2 Dashboard'!$D$6,'C1 Portfolio construction'!AI68,'C1 Portfolio construction'!AI103,'C1 Portfolio construction'!AI138,'C1 Portfolio construction'!AI173) -> Opex | M28: =CHOOSE('O2 Dashboard'!$D$6,'C1 Portfolio construction'!AJ68,'C1 Portfolio construction'!AJ103,'C1 Portfolio construction'!AJ138,'C1 Portfolio construction'!AJ173) -> Traffic facility | N28: =CHOOSE('O2 Dashboard'!$D$6,'C1 Portfolio construction'!AK68,'C1 Portfolio construction'!AK103,'C1 Portfolio construction'!AK138,'C1 Portfolio construction'!AK173) -> Urban | O28: =IFERROR(IF(INDEX('I1 Inputs'!$T$13:$T$42,MATCH('C2 Dashboard data'!$B28,'I1 Inputs'!$B$13:$B$42,0))>0,INDEX('I1 Inputs'!$T$13:$T$42,MATCH('C2 Dashboard data'!$B28,'I1 Inputs'!$B$13:$B$42,0)),""),"") ->  | P28: =IFERROR(IF(INDEX('I1 Inputs'!$V$13:$V$42,MATCH('C2 Dashboard data'!$B28,'I1 Inputs'!$B$13:$B$42,0))>0, INDEX('I1 Inputs'!$V$13:$V$42,MATCH('C2 Dashboard data'!$B28,'I1 Inputs'!$B$13:$B$42,0)), ""),"") ->  | Q28: =IFERROR(IF(INDEX('I1 Inputs'!$Y$13:$Y$42,MATCH('C2 Dashboard data'!$B28,'I1 Inputs'!$B$13:$B$42,0))>0,INDEX('I1 Inputs'!$Y$13:$Y$42,MATCH('C2 Dashboard data'!$B28,'I1 Inputs'!$B$13:$B$42,0)),""),"") -> 
B29: =CHOOSE('O2 Dashboard'!$D$6,'C1 Portfolio construction'!Y69,'C1 Portfolio construction'!Y104,'C1 Portfolio construction'!Y139,'C1 Portfolio construction'!Y174) -> Project 29 | C29: =CHOOSE('O2 Dashboard'!$D$6,'C1 Portfolio construction'!Z69,'C1 Portfolio construction'!Z104,'C1 Portfolio construction'!Z139,'C1 Portfolio construction'!Z174) -> 1.081725 | D29: =CHOOSE('O2 Dashboard'!$D$6,'C1 Portfolio construction'!AA69,'C1 Portfolio construction'!AA104,'C1 Portfolio construction'!AA139,'C1 Portfolio construction'!AA174) -> 0.111433 | E29: =CHOOSE('O2 Dashboard'!$D$6,'C1 Portfolio construction'!AB69,'C1 Portfolio construction'!AB104,'C1 Portfolio construction'!AB139,'C1 Portfolio construction'!AB174) -> 0.022131 | F29: =CHOOSE('O2 Dashboard'!$D$6,'C1 Portfolio construction'!AC69,'C1 Portfolio construction'!AC104,'C1 Portfolio construction'!AC139,'C1 Portfolio construction'!AC174) -> 0.095855 | G29: =CHOOSE('O2 Dashboard'!$D$6,'C1 Portfolio construction'!AD69,'C1 Portfolio construction'!AD104,'C1 Portfolio construction'!AD139,'C1 Portfolio construction'!AD174) -> 1.075172 | H29: =CHOOSE('O2 Dashboard'!$D$6,'C1 Portfolio construction'!AE69,'C1 Portfolio construction'!AE104,'C1 Portfolio construction'!AE139,'C1 Portfolio construction'!AE174) -> 1 | I29: =CHOOSE('O2 Dashboard'!$D$6,'C1 Portfolio construction'!AF69,'C1 Portfolio construction'!AF104,'C1 Portfolio construction'!AF139,'C1 Portfolio construction'!AF174) -> 1 | J29: =CHOOSE('O2 Dashboard'!$D$6,'C1 Portfolio construction'!AG69,'C1 Portfolio construction'!AG104,'C1 Portfolio construction'!AG139,'C1 Portfolio construction'!AG174) -> 2 | K29: =CHOOSE('O2 Dashboard'!$D$6,'C1 Portfolio construction'!AH69,'C1 Portfolio construction'!AH104,'C1 Portfolio construction'!AH139,'C1 Portfolio construction'!AH174) -> Services and operations | L29: =CHOOSE('O2 Dashboard'!$D$6,'C1 Portfolio construction'!AI69,'C1 Portfolio construction'!AI104,'C1 Portfolio construction'!AI139,'C1 Portfolio construction'!AI174) -> Opex | M29: =CHOOSE('O2 Dashboard'!$D$6,'C1 Portfolio construction'!AJ69,'C1 Portfolio construction'!AJ104,'C1 Portfolio construction'!AJ139,'C1 Portfolio construction'!AJ174) -> Traffic facility | N29: =CHOOSE('O2 Dashboard'!$D$6,'C1 Portfolio construction'!AK69,'C1 Portfolio construction'!AK104,'C1 Portfolio construction'!AK139,'C1 Portfolio construction'!AK174) -> Rural | O29: =IFERROR(IF(INDEX('I1 Inputs'!$T$13:$T$42,MATCH('C2 Dashboard data'!$B29,'I1 Inputs'!$B$13:$B$42,0))>0,INDEX('I1 Inputs'!$T$13:$T$42,MATCH('C2 Dashboard data'!$B29,'I1 Inputs'!$B$13:$B$42,0)),""),"") ->  | P29: =IFERROR(IF(INDEX('I1 Inputs'!$V$13:$V$42,MATCH('C2 Dashboard data'!$B29,'I1 Inputs'!$B$13:$B$42,0))>0, INDEX('I1 Inputs'!$V$13:$V$42,MATCH('C2 Dashboard data'!$B29,'I1 Inputs'!$B$13:$B$42,0)), ""),"") ->  | Q29: =IFERROR(IF(INDEX('I1 Inputs'!$Y$13:$Y$42,MATCH('C2 Dashboard data'!$B29,'I1 Inputs'!$B$13:$B$42,0))>0,INDEX('I1 Inputs'!$Y$13:$Y$42,MATCH('C2 Dashboard data'!$B29,'I1 Inputs'!$B$13:$B$42,0)),""),"") -> 
B30: =CHOOSE('O2 Dashboard'!$D$6,'C1 Portfolio construction'!Y70,'C1 Portfolio construction'!Y105,'C1 Portfolio construction'!Y140,'C1 Portfolio construction'!Y175) -> Project 28 | C30: =CHOOSE('O2 Dashboard'!$D$6,'C1 Portfolio construction'!Z70,'C1 Portfolio construction'!Z105,'C1 Portfolio construction'!Z140,'C1 Portfolio construction'!Z175) -> 1.066856 | D30: =CHOOSE('O2 Dashboard'!$D$6,'C1 Portfolio construction'!AA70,'C1 Portfolio construction'!AA105,'C1 Portfolio construction'!AA140,'C1 Portfolio construction'!AA175) -> 0.161622 | E30: =CHOOSE('O2 Dashboard'!$D$6,'C1 Portfolio construction'!AB70,'C1 Portfolio construction'!AB105,'C1 Portfolio construction'!AB140,'C1 Portfolio construction'!AB175) -> 0.023334 | F30: =CHOOSE('O2 Dashboard'!$D$6,'C1 Portfolio construction'!AC70,'C1 Portfolio construction'!AC105,'C1 Portfolio construction'!AC140,'C1 Portfolio construction'!AC175) -> 0.081416 | G30: =CHOOSE('O2 Dashboard'!$D$6,'C1 Portfolio construction'!AD70,'C1 Portfolio construction'!AD105,'C1 Portfolio construction'!AD140,'C1 Portfolio construction'!AD175) -> 1.123728 | H30: =CHOOSE('O2 Dashboard'!$D$6,'C1 Portfolio construction'!AE70,'C1 Portfolio construction'!AE105,'C1 Portfolio construction'!AE140,'C1 Portfolio construction'!AE175) -> 1 | I30: =CHOOSE('O2 Dashboard'!$D$6,'C1 Portfolio construction'!AF70,'C1 Portfolio construction'!AF105,'C1 Portfolio construction'!AF140,'C1 Portfolio construction'!AF175) -> 1 | J30: =CHOOSE('O2 Dashboard'!$D$6,'C1 Portfolio construction'!AG70,'C1 Portfolio construction'!AG105,'C1 Portfolio construction'!AG140,'C1 Portfolio construction'!AG175) -> 5 | K30: =CHOOSE('O2 Dashboard'!$D$6,'C1 Portfolio construction'!AH70,'C1 Portfolio construction'!AH105,'C1 Portfolio construction'!AH140,'C1 Portfolio construction'!AH175) -> Services and operations | L30: =CHOOSE('O2 Dashboard'!$D$6,'C1 Portfolio construction'!AI70,'C1 Portfolio construction'!AI105,'C1 Portfolio construction'!AI140,'C1 Portfolio construction'!AI175) -> Opex | M30: =CHOOSE('O2 Dashboard'!$D$6,'C1 Portfolio construction'!AJ70,'C1 Portfolio construction'!AJ105,'C1 Portfolio construction'!AJ140,'C1 Portfolio construction'!AJ175) -> Traffic facility | N30: =CHOOSE('O2 Dashboard'!$D$6,'C1 Portfolio construction'!AK70,'C1 Portfolio construction'!AK105,'C1 Portfolio construction'!AK140,'C1 Portfolio construction'!AK175) -> Rural | O30: =IFERROR(IF(INDEX('I1 Inputs'!$T$13:$T$42,MATCH('C2 Dashboard data'!$B30,'I1 Inputs'!$B$13:$B$42,0))>0,INDEX('I1 Inputs'!$T$13:$T$42,MATCH('C2 Dashboard data'!$B30,'I1 Inputs'!$B$13:$B$42,0)),""),"") ->  | P30: =IFERROR(IF(INDEX('I1 Inputs'!$V$13:$V$42,MATCH('C2 Dashboard data'!$B30,'I1 Inputs'!$B$13:$B$42,0))>0, INDEX('I1 Inputs'!$V$13:$V$42,MATCH('C2 Dashboard data'!$B30,'I1 Inputs'!$B$13:$B$42,0)), ""),"") ->  | Q30: =IFERROR(IF(INDEX('I1 Inputs'!$Y$13:$Y$42,MATCH('C2 Dashboard data'!$B30,'I1 Inputs'!$B$13:$B$42,0))>0,INDEX('I1 Inputs'!$Y$13:$Y$42,MATCH('C2 Dashboard data'!$B30,'I1 Inputs'!$B$13:$B$42,0)),""),"") -> 
B31: =CHOOSE('O2 Dashboard'!$D$6,'C1 Portfolio construction'!Y71,'C1 Portfolio construction'!Y106,'C1 Portfolio construction'!Y141,'C1 Portfolio construction'!Y176) -> Project 30 | C31: =CHOOSE('O2 Dashboard'!$D$6,'C1 Portfolio construction'!Z71,'C1 Portfolio construction'!Z106,'C1 Portfolio construction'!Z141,'C1 Portfolio construction'!Z176) -> 1.038671 | D31: =CHOOSE('O2 Dashboard'!$D$6,'C1 Portfolio construction'!AA71,'C1 Portfolio construction'!AA106,'C1 Portfolio construction'!AA141,'C1 Portfolio construction'!AA176) -> 0.162763 | E31: =CHOOSE('O2 Dashboard'!$D$6,'C1 Portfolio construction'!AB71,'C1 Portfolio construction'!AB106,'C1 Portfolio construction'!AB141,'C1 Portfolio construction'!AB176) -> 0.014612 | F31: =CHOOSE('O2 Dashboard'!$D$6,'C1 Portfolio construction'!AC71,'C1 Portfolio construction'!AC106,'C1 Portfolio construction'!AC141,'C1 Portfolio construction'!AC176) -> 0.088817 | G31: =CHOOSE('O2 Dashboard'!$D$6,'C1 Portfolio construction'!AD71,'C1 Portfolio construction'!AD106,'C1 Portfolio construction'!AD141,'C1 Portfolio construction'!AD176) -> 1.098005 | H31: =CHOOSE('O2 Dashboard'!$D$6,'C1 Portfolio construction'!AE71,'C1 Portfolio construction'!AE106,'C1 Portfolio construction'!AE141,'C1 Portfolio construction'!AE176) -> 1 | I31: =CHOOSE('O2 Dashboard'!$D$6,'C1 Portfolio construction'!AF71,'C1 Portfolio construction'!AF106,'C1 Portfolio construction'!AF141,'C1 Portfolio construction'!AF176) -> 1 | J31: =CHOOSE('O2 Dashboard'!$D$6,'C1 Portfolio construction'!AG71,'C1 Portfolio construction'!AG106,'C1 Portfolio construction'!AG141,'C1 Portfolio construction'!AG176) -> 2 | K31: =CHOOSE('O2 Dashboard'!$D$6,'C1 Portfolio construction'!AH71,'C1 Portfolio construction'!AH106,'C1 Portfolio construction'!AH141,'C1 Portfolio construction'!AH176) -> Services and operations | L31: =CHOOSE('O2 Dashboard'!$D$6,'C1 Portfolio construction'!AI71,'C1 Portfolio construction'!AI106,'C1 Portfolio construction'!AI141,'C1 Portfolio construction'!AI176) -> Opex | M31: =CHOOSE('O2 Dashboard'!$D$6,'C1 Portfolio construction'!AJ71,'C1 Portfolio construction'!AJ106,'C1 Portfolio construction'!AJ141,'C1 Portfolio construction'!AJ176) -> Traffic facility | N31: =CHOOSE('O2 Dashboard'!$D$6,'C1 Portfolio construction'!AK71,'C1 Portfolio construction'!AK106,'C1 Portfolio construction'!AK141,'C1 Portfolio construction'!AK176) -> Rural | O31: =IFERROR(IF(INDEX('I1 Inputs'!$T$13:$T$42,MATCH('C2 Dashboard data'!$B31,'I1 Inputs'!$B$13:$B$42,0))>0,INDEX('I1 Inputs'!$T$13:$T$42,MATCH('C2 Dashboard data'!$B31,'I1 Inputs'!$B$13:$B$42,0)),""),"") ->  | P31: =IFERROR(IF(INDEX('I1 Inputs'!$V$13:$V$42,MATCH('C2 Dashboard data'!$B31,'I1 Inputs'!$B$13:$B$42,0))>0, INDEX('I1 Inputs'!$V$13:$V$42,MATCH('C2 Dashboard data'!$B31,'I1 Inputs'!$B$13:$B$42,0)), ""),"") ->  | Q31: =IFERROR(IF(INDEX('I1 Inputs'!$Y$13:$Y$42,MATCH('C2 Dashboard data'!$B31,'I1 Inputs'!$B$13:$B$42,0))>0,INDEX('I1 Inputs'!$Y$13:$Y$42,MATCH('C2 Dashboard data'!$B31,'I1 Inputs'!$B$13:$B$42,0)),""),"") -> 
B32: =CHOOSE('O2 Dashboard'!$D$6,'C1 Portfolio construction'!Y72,'C1 Portfolio construction'!Y107,'C1 Portfolio construction'!Y142,'C1 Portfolio construction'!Y177) -> Project 22 | C32: =CHOOSE('O2 Dashboard'!$D$6,'C1 Portfolio construction'!Z72,'C1 Portfolio construction'!Z107,'C1 Portfolio construction'!Z142,'C1 Portfolio construction'!Z177) -> 0.91069 | D32: =CHOOSE('O2 Dashboard'!$D$6,'C1 Portfolio construction'!AA72,'C1 Portfolio construction'!AA107,'C1 Portfolio construction'!AA142,'C1 Portfolio construction'!AA177) -> 0.133117 | E32: =CHOOSE('O2 Dashboard'!$D$6,'C1 Portfolio construction'!AB72,'C1 Portfolio construction'!AB107,'C1 Portfolio construction'!AB142,'C1 Portfolio construction'!AB177) -> 0.021547 | F32: =CHOOSE('O2 Dashboard'!$D$6,'C1 Portfolio construction'!AC72,'C1 Portfolio construction'!AC107,'C1 Portfolio construction'!AC142,'C1 Portfolio construction'!AC177) -> 0.06899 | G32: =CHOOSE('O2 Dashboard'!$D$6,'C1 Portfolio construction'!AD72,'C1 Portfolio construction'!AD107,'C1 Portfolio construction'!AD142,'C1 Portfolio construction'!AD177) -> 0.95327 | H32: =CHOOSE('O2 Dashboard'!$D$6,'C1 Portfolio construction'!AE72,'C1 Portfolio construction'!AE107,'C1 Portfolio construction'!AE142,'C1 Portfolio construction'!AE177) -> 1 | I32: =CHOOSE('O2 Dashboard'!$D$6,'C1 Portfolio construction'!AF72,'C1 Portfolio construction'!AF107,'C1 Portfolio construction'!AF142,'C1 Portfolio construction'!AF177) -> 1 | J32: =CHOOSE('O2 Dashboard'!$D$6,'C1 Portfolio construction'!AG72,'C1 Portfolio construction'!AG107,'C1 Portfolio construction'!AG142,'C1 Portfolio construction'!AG177) -> 4 | K32: =CHOOSE('O2 Dashboard'!$D$6,'C1 Portfolio construction'!AH72,'C1 Portfolio construction'!AH107,'C1 Portfolio construction'!AH142,'C1 Portfolio construction'!AH177) -> Services and operations | L32: =CHOOSE('O2 Dashboard'!$D$6,'C1 Portfolio construction'!AI72,'C1 Portfolio construction'!AI107,'C1 Portfolio construction'!AI142,'C1 Portfolio construction'!AI177) -> Opex | M32: =CHOOSE('O2 Dashboard'!$D$6,'C1 Portfolio construction'!AJ72,'C1 Portfolio construction'!AJ107,'C1 Portfolio construction'!AJ142,'C1 Portfolio construction'!AJ177) -> Traffic facility | N32: =CHOOSE('O2 Dashboard'!$D$6,'C1 Portfolio construction'!AK72,'C1 Portfolio construction'!AK107,'C1 Portfolio construction'!AK142,'C1 Portfolio construction'!AK177) -> Urban | O32: =IFERROR(IF(INDEX('I1 Inputs'!$T$13:$T$42,MATCH('C2 Dashboard data'!$B32,'I1 Inputs'!$B$13:$B$42,0))>0,INDEX('I1 Inputs'!$T$13:$T$42,MATCH('C2 Dashboard data'!$B32,'I1 Inputs'!$B$13:$B$42,0)),""),"") ->  | P32: =IFERROR(IF(INDEX('I1 Inputs'!$V$13:$V$42,MATCH('C2 Dashboard data'!$B32,'I1 Inputs'!$B$13:$B$42,0))>0, INDEX('I1 Inputs'!$V$13:$V$42,MATCH('C2 Dashboard data'!$B32,'I1 Inputs'!$B$13:$B$42,0)), ""),"") ->  | Q32: =IFERROR(IF(INDEX('I1 Inputs'!$Y$13:$Y$42,MATCH('C2 Dashboard data'!$B32,'I1 Inputs'!$B$13:$B$42,0))>0,INDEX('I1 Inputs'!$Y$13:$Y$42,MATCH('C2 Dashboard data'!$B32,'I1 Inputs'!$B$13:$B$42,0)),""),"") -> 
B33: =CHOOSE('O2 Dashboard'!$D$6,'C1 Portfolio construction'!Y73,'C1 Portfolio construction'!Y108,'C1 Portfolio construction'!Y143,'C1 Portfolio construction'!Y178) -> Project 21 | C33: =CHOOSE('O2 Dashboard'!$D$6,'C1 Portfolio construction'!Z73,'C1 Portfolio construction'!Z108,'C1 Portfolio construction'!Z143,'C1 Portfolio construction'!Z178) -> 0.8803434421 | D33: =CHOOSE('O2 Dashboard'!$D$6,'C1 Portfolio construction'!AA73,'C1 Portfolio construction'!AA108,'C1 Portfolio construction'!AA143,'C1 Portfolio construction'!AA178) -> 0.139 | E33: =CHOOSE('O2 Dashboard'!$D$6,'C1 Portfolio construction'!AB73,'C1 Portfolio construction'!AB108,'C1 Portfolio construction'!AB143,'C1 Portfolio construction'!AB178) -> 0.01868515758 | F33: =CHOOSE('O2 Dashboard'!$D$6,'C1 Portfolio construction'!AC73,'C1 Portfolio construction'!AC108,'C1 Portfolio construction'!AC143,'C1 Portfolio construction'!AC178) -> 0.07899020152 | G33: =CHOOSE('O2 Dashboard'!$D$6,'C1 Portfolio construction'!AD73,'C1 Portfolio construction'!AD108,'C1 Portfolio construction'!AD143,'C1 Portfolio construction'!AD178) -> 0.921668083 | H33: =CHOOSE('O2 Dashboard'!$D$6,'C1 Portfolio construction'!AE73,'C1 Portfolio construction'!AE108,'C1 Portfolio construction'!AE143,'C1 Portfolio construction'!AE178) -> 0.01 | I33: =CHOOSE('O2 Dashboard'!$D$6,'C1 Portfolio construction'!AF73,'C1 Portfolio construction'!AF108,'C1 Portfolio construction'!AF143,'C1 Portfolio construction'!AF178) -> 0.2 | J33: =CHOOSE('O2 Dashboard'!$D$6,'C1 Portfolio construction'!AG73,'C1 Portfolio construction'!AG108,'C1 Portfolio construction'!AG143,'C1 Portfolio construction'!AG178) -> 9 | K33: =CHOOSE('O2 Dashboard'!$D$6,'C1 Portfolio construction'!AH73,'C1 Portfolio construction'!AH108,'C1 Portfolio construction'!AH143,'C1 Portfolio construction'!AH178) -> Services and operations | L33: =CHOOSE('O2 Dashboard'!$D$6,'C1 Portfolio construction'!AI73,'C1 Portfolio construction'!AI108,'C1 Portfolio construction'!AI143,'C1 Portfolio construction'!AI178) -> Opex | M33: =CHOOSE('O2 Dashboard'!$D$6,'C1 Portfolio construction'!AJ73,'C1 Portfolio construction'!AJ108,'C1 Portfolio construction'!AJ143,'C1 Portfolio construction'!AJ178) -> Traffic facility | N33: =CHOOSE('O2 Dashboard'!$D$6,'C1 Portfolio construction'!AK73,'C1 Portfolio construction'!AK108,'C1 Portfolio construction'!AK143,'C1 Portfolio construction'!AK178) -> Urban | O33: =IFERROR(IF(INDEX('I1 Inputs'!$T$13:$T$42,MATCH('C2 Dashboard data'!$B33,'I1 Inputs'!$B$13:$B$42,0))>0,INDEX('I1 Inputs'!$T$13:$T$42,MATCH('C2 Dashboard data'!$B33,'I1 Inputs'!$B$13:$B$42,0)),""),"") ->  | P33: =IFERROR(IF(INDEX('I1 Inputs'!$V$13:$V$42,MATCH('C2 Dashboard data'!$B33,'I1 Inputs'!$B$13:$B$42,0))>0, INDEX('I1 Inputs'!$V$13:$V$42,MATCH('C2 Dashboard data'!$B33,'I1 Inputs'!$B$13:$B$42,0)), ""),"") ->  | Q33: =IFERROR(IF(INDEX('I1 Inputs'!$Y$13:$Y$42,MATCH('C2 Dashboard data'!$B33,'I1 Inputs'!$B$13:$B$42,0))>0,INDEX('I1 Inputs'!$Y$13:$Y$42,MATCH('C2 Dashboard data'!$B33,'I1 Inputs'!$B$13:$B$42,0)),""),"") -> 
B34: =CHOOSE('O2 Dashboard'!$D$6,'C1 Portfolio construction'!Y74,'C1 Portfolio construction'!Y109,'C1 Portfolio construction'!Y144,'C1 Portfolio construction'!Y179) -> Project 19 | C34: =CHOOSE('O2 Dashboard'!$D$6,'C1 Portfolio construction'!Z74,'C1 Portfolio construction'!Z109,'C1 Portfolio construction'!Z144,'C1 Portfolio construction'!Z179) -> 0.845977 | D34: =CHOOSE('O2 Dashboard'!$D$6,'C1 Portfolio construction'!AA74,'C1 Portfolio construction'!AA109,'C1 Portfolio construction'!AA144,'C1 Portfolio construction'!AA179) -> 0.310281 | E34: =CHOOSE('O2 Dashboard'!$D$6,'C1 Portfolio construction'!AB74,'C1 Portfolio construction'!AB109,'C1 Portfolio construction'!AB144,'C1 Portfolio construction'!AB179) -> 0 | F34: =CHOOSE('O2 Dashboard'!$D$6,'C1 Portfolio construction'!AC74,'C1 Portfolio construction'!AC109,'C1 Portfolio construction'!AC144,'C1 Portfolio construction'!AC179) -> 1.156258 | G34: =CHOOSE('O2 Dashboard'!$D$6,'C1 Portfolio construction'!AD74,'C1 Portfolio construction'!AD109,'C1 Portfolio construction'!AD144,'C1 Portfolio construction'!AD179) -> 0 | H34: =CHOOSE('O2 Dashboard'!$D$6,'C1 Portfolio construction'!AE74,'C1 Portfolio construction'!AE109,'C1 Portfolio construction'!AE144,'C1 Portfolio construction'!AE179) -> 0 | I34: =CHOOSE('O2 Dashboard'!$D$6,'C1 Portfolio construction'!AF74,'C1 Portfolio construction'!AF109,'C1 Portfolio construction'!AF144,'C1 Portfolio construction'!AF179) -> 0 | J34: =CHOOSE('O2 Dashboard'!$D$6,'C1 Portfolio construction'!AG74,'C1 Portfolio construction'!AG109,'C1 Portfolio construction'!AG144,'C1 Portfolio construction'!AG179) -> 16 | K34: =CHOOSE('O2 Dashboard'!$D$6,'C1 Portfolio construction'!AH74,'C1 Portfolio construction'!AH109,'C1 Portfolio construction'!AH144,'C1 Portfolio construction'!AH179) -> Growth and improvement | L34: =CHOOSE('O2 Dashboard'!$D$6,'C1 Portfolio construction'!AI74,'C1 Portfolio construction'!AI109,'C1 Portfolio construction'!AI144,'C1 Portfolio construction'!AI179) -> Capex | M34: =CHOOSE('O2 Dashboard'!$D$6,'C1 Portfolio construction'!AJ74,'C1 Portfolio construction'!AJ109,'C1 Portfolio construction'!AJ144,'C1 Portfolio construction'!AJ179) -> Structures | N34: =CHOOSE('O2 Dashboard'!$D$6,'C1 Portfolio construction'!AK74,'C1 Portfolio construction'!AK109,'C1 Portfolio construction'!AK144,'C1 Portfolio construction'!AK179) -> Rural | O34: =IFERROR(IF(INDEX('I1 Inputs'!$T$13:$T$42,MATCH('C2 Dashboard data'!$B34,'I1 Inputs'!$B$13:$B$42,0))>0,INDEX('I1 Inputs'!$T$13:$T$42,MATCH('C2 Dashboard data'!$B34,'I1 Inputs'!$B$13:$B$42,0)),""),"") ->  | P34: =IFERROR(IF(INDEX('I1 Inputs'!$V$13:$V$42,MATCH('C2 Dashboard data'!$B34,'I1 Inputs'!$B$13:$B$42,0))>0, INDEX('I1 Inputs'!$V$13:$V$42,MATCH('C2 Dashboard data'!$B34,'I1 Inputs'!$B$13:$B$42,0)), ""),"") ->  | Q34: =IFERROR(IF(INDEX('I1 Inputs'!$Y$13:$Y$42,MATCH('C2 Dashboard data'!$B34,'I1 Inputs'!$B$13:$B$42,0))>0,INDEX('I1 Inputs'!$Y$13:$Y$42,MATCH('C2 Dashboard data'!$B34,'I1 Inputs'!$B$13:$B$42,0)),""),"") -> 
B35: =CHOOSE('O2 Dashboard'!$D$6,'C1 Portfolio construction'!Y75,'C1 Portfolio construction'!Y110,'C1 Portfolio construction'!Y145,'C1 Portfolio construction'!Y180) -> Project 27 | C35: =CHOOSE('O2 Dashboard'!$D$6,'C1 Portfolio construction'!Z75,'C1 Portfolio construction'!Z110,'C1 Portfolio construction'!Z145,'C1 Portfolio construction'!Z180) -> 0.81999 | D35: =CHOOSE('O2 Dashboard'!$D$6,'C1 Portfolio construction'!AA75,'C1 Portfolio construction'!AA110,'C1 Portfolio construction'!AA145,'C1 Portfolio construction'!AA180) -> 0.132448 | E35: =CHOOSE('O2 Dashboard'!$D$6,'C1 Portfolio construction'!AB75,'C1 Portfolio construction'!AB110,'C1 Portfolio construction'!AB145,'C1 Portfolio construction'!AB180) -> 0.014058 | F35: =CHOOSE('O2 Dashboard'!$D$6,'C1 Portfolio construction'!AC75,'C1 Portfolio construction'!AC110,'C1 Portfolio construction'!AC145,'C1 Portfolio construction'!AC180) -> 0.093471 | G35: =CHOOSE('O2 Dashboard'!$D$6,'C1 Portfolio construction'!AD75,'C1 Portfolio construction'!AD110,'C1 Portfolio construction'!AD145,'C1 Portfolio construction'!AD180) -> 0.844909 | H35: =CHOOSE('O2 Dashboard'!$D$6,'C1 Portfolio construction'!AE75,'C1 Portfolio construction'!AE110,'C1 Portfolio construction'!AE145,'C1 Portfolio construction'!AE180) -> 1 | I35: =CHOOSE('O2 Dashboard'!$D$6,'C1 Portfolio construction'!AF75,'C1 Portfolio construction'!AF110,'C1 Portfolio construction'!AF145,'C1 Portfolio construction'!AF180) -> 1 | J35: =CHOOSE('O2 Dashboard'!$D$6,'C1 Portfolio construction'!AG75,'C1 Portfolio construction'!AG110,'C1 Portfolio construction'!AG145,'C1 Portfolio construction'!AG180) -> 4 | K35: =CHOOSE('O2 Dashboard'!$D$6,'C1 Portfolio construction'!AH75,'C1 Portfolio construction'!AH110,'C1 Portfolio construction'!AH145,'C1 Portfolio construction'!AH180) -> Services and operations | L35: =CHOOSE('O2 Dashboard'!$D$6,'C1 Portfolio construction'!AI75,'C1 Portfolio construction'!AI110,'C1 Portfolio construction'!AI145,'C1 Portfolio construction'!AI180) -> Opex | M35: =CHOOSE('O2 Dashboard'!$D$6,'C1 Portfolio construction'!AJ75,'C1 Portfolio construction'!AJ110,'C1 Portfolio construction'!AJ145,'C1 Portfolio construction'!AJ180) -> Traffic facility | N35: =CHOOSE('O2 Dashboard'!$D$6,'C1 Portfolio construction'!AK75,'C1 Portfolio construction'!AK110,'C1 Portfolio construction'!AK145,'C1 Portfolio construction'!AK180) -> Rural | O35: =IFERROR(IF(INDEX('I1 Inputs'!$T$13:$T$42,MATCH('C2 Dashboard data'!$B35,'I1 Inputs'!$B$13:$B$42,0))>0,INDEX('I1 Inputs'!$T$13:$T$42,MATCH('C2 Dashboard data'!$B35,'I1 Inputs'!$B$13:$B$42,0)),""),"") ->  | P35: =IFERROR(IF(INDEX('I1 Inputs'!$V$13:$V$42,MATCH('C2 Dashboard data'!$B35,'I1 Inputs'!$B$13:$B$42,0))>0, INDEX('I1 Inputs'!$V$13:$V$42,MATCH('C2 Dashboard data'!$B35,'I1 Inputs'!$B$13:$B$42,0)), ""),"") ->  | Q35: =IFERROR(IF(INDEX('I1 Inputs'!$Y$13:$Y$42,MATCH('C2 Dashboard data'!$B35,'I1 Inputs'!$B$13:$B$42,0))>0,INDEX('I1 Inputs'!$Y$13:$Y$42,MATCH('C2 Dashboard data'!$B35,'I1 Inputs'!$B$13:$B$42,0)),""),"") -> 
B36: =CHOOSE('O2 Dashboard'!$D$6,'C1 Portfolio construction'!Y76,'C1 Portfolio construction'!Y111,'C1 Portfolio construction'!Y146,'C1 Portfolio construction'!Y181) -> Project 14 | C36: =CHOOSE('O2 Dashboard'!$D$6,'C1 Portfolio construction'!Z76,'C1 Portfolio construction'!Z111,'C1 Portfolio construction'!Z146,'C1 Portfolio construction'!Z181) -> 0.814308 | D36: =CHOOSE('O2 Dashboard'!$D$6,'C1 Portfolio construction'!AA76,'C1 Portfolio construction'!AA111,'C1 Portfolio construction'!AA146,'C1 Portfolio construction'!AA181) -> 0.27218 | E36: =CHOOSE('O2 Dashboard'!$D$6,'C1 Portfolio construction'!AB76,'C1 Portfolio construction'!AB111,'C1 Portfolio construction'!AB146,'C1 Portfolio construction'!AB181) -> 0 | F36: =CHOOSE('O2 Dashboard'!$D$6,'C1 Portfolio construction'!AC76,'C1 Portfolio construction'!AC111,'C1 Portfolio construction'!AC146,'C1 Portfolio construction'!AC181) -> 1.086488 | G36: =CHOOSE('O2 Dashboard'!$D$6,'C1 Portfolio construction'!AD76,'C1 Portfolio construction'!AD111,'C1 Portfolio construction'!AD146,'C1 Portfolio construction'!AD181) -> 0 | H36: =CHOOSE('O2 Dashboard'!$D$6,'C1 Portfolio construction'!AE76,'C1 Portfolio construction'!AE111,'C1 Portfolio construction'!AE146,'C1 Portfolio construction'!AE181) -> 0 | I36: =CHOOSE('O2 Dashboard'!$D$6,'C1 Portfolio construction'!AF76,'C1 Portfolio construction'!AF111,'C1 Portfolio construction'!AF146,'C1 Portfolio construction'!AF181) -> 0 | J36: =CHOOSE('O2 Dashboard'!$D$6,'C1 Portfolio construction'!AG76,'C1 Portfolio construction'!AG111,'C1 Portfolio construction'!AG146,'C1 Portfolio construction'!AG181) -> 12 | K36: =CHOOSE('O2 Dashboard'!$D$6,'C1 Portfolio construction'!AH76,'C1 Portfolio construction'!AH111,'C1 Portfolio construction'!AH146,'C1 Portfolio construction'!AH181) -> Growth and improvement | L36: =CHOOSE('O2 Dashboard'!$D$6,'C1 Portfolio construction'!AI76,'C1 Portfolio construction'!AI111,'C1 Portfolio construction'!AI146,'C1 Portfolio construction'!AI181) -> Capex | M36: =CHOOSE('O2 Dashboard'!$D$6,'C1 Portfolio construction'!AJ76,'C1 Portfolio construction'!AJ111,'C1 Portfolio construction'!AJ146,'C1 Portfolio construction'!AJ181) -> Structures | N36: =CHOOSE('O2 Dashboard'!$D$6,'C1 Portfolio construction'!AK76,'C1 Portfolio construction'!AK111,'C1 Portfolio construction'!AK146,'C1 Portfolio construction'!AK181) -> Urban | O36: =IFERROR(IF(INDEX('I1 Inputs'!$T$13:$T$42,MATCH('C2 Dashboard data'!$B36,'I1 Inputs'!$B$13:$B$42,0))>0,INDEX('I1 Inputs'!$T$13:$T$42,MATCH('C2 Dashboard data'!$B36,'I1 Inputs'!$B$13:$B$42,0)),""),"") ->  | P36: =IFERROR(IF(INDEX('I1 Inputs'!$V$13:$V$42,MATCH('C2 Dashboard data'!$B36,'I1 Inputs'!$B$13:$B$42,0))>0, INDEX('I1 Inputs'!$V$13:$V$42,MATCH('C2 Dashboard data'!$B36,'I1 Inputs'!$B$13:$B$42,0)), ""),"") ->  | Q36: =IFERROR(IF(INDEX('I1 Inputs'!$Y$13:$Y$42,MATCH('C2 Dashboard data'!$B36,'I1 Inputs'!$B$13:$B$42,0))>0,INDEX('I1 Inputs'!$Y$13:$Y$42,MATCH('C2 Dashboard data'!$B36,'I1 Inputs'!$B$13:$B$42,0)),""),"") -> 
B37: =CHOOSE('O2 Dashboard'!$D$6,'C1 Portfolio construction'!Y77,'C1 Portfolio construction'!Y112,'C1 Portfolio construction'!Y147,'C1 Portfolio construction'!Y182) -> Project 23 | C37: =CHOOSE('O2 Dashboard'!$D$6,'C1 Portfolio construction'!Z77,'C1 Portfolio construction'!Z112,'C1 Portfolio construction'!Z147,'C1 Portfolio construction'!Z182) -> 0.813737 | D37: =CHOOSE('O2 Dashboard'!$D$6,'C1 Portfolio construction'!AA77,'C1 Portfolio construction'!AA112,'C1 Portfolio construction'!AA147,'C1 Portfolio construction'!AA182) -> 0.122117 | E37: =CHOOSE('O2 Dashboard'!$D$6,'C1 Portfolio construction'!AB77,'C1 Portfolio construction'!AB112,'C1 Portfolio construction'!AB147,'C1 Portfolio construction'!AB182) -> 0.014475 | F37: =CHOOSE('O2 Dashboard'!$D$6,'C1 Portfolio construction'!AC77,'C1 Portfolio construction'!AC112,'C1 Portfolio construction'!AC147,'C1 Portfolio construction'!AC182) -> 0.074959 | G37: =CHOOSE('O2 Dashboard'!$D$6,'C1 Portfolio construction'!AD77,'C1 Portfolio construction'!AD112,'C1 Portfolio construction'!AD147,'C1 Portfolio construction'!AD182) -> 0.84642 | H37: =CHOOSE('O2 Dashboard'!$D$6,'C1 Portfolio construction'!AE77,'C1 Portfolio construction'!AE112,'C1 Portfolio construction'!AE147,'C1 Portfolio construction'!AE182) -> 1 | I37: =CHOOSE('O2 Dashboard'!$D$6,'C1 Portfolio construction'!AF77,'C1 Portfolio construction'!AF112,'C1 Portfolio construction'!AF147,'C1 Portfolio construction'!AF182) -> 1 | J37: =CHOOSE('O2 Dashboard'!$D$6,'C1 Portfolio construction'!AG77,'C1 Portfolio construction'!AG112,'C1 Portfolio construction'!AG147,'C1 Portfolio construction'!AG182) -> 5 | K37: =CHOOSE('O2 Dashboard'!$D$6,'C1 Portfolio construction'!AH77,'C1 Portfolio construction'!AH112,'C1 Portfolio construction'!AH147,'C1 Portfolio construction'!AH182) -> Services and operations | L37: =CHOOSE('O2 Dashboard'!$D$6,'C1 Portfolio construction'!AI77,'C1 Portfolio construction'!AI112,'C1 Portfolio construction'!AI147,'C1 Portfolio construction'!AI182) -> Opex | M37: =CHOOSE('O2 Dashboard'!$D$6,'C1 Portfolio construction'!AJ77,'C1 Portfolio construction'!AJ112,'C1 Portfolio construction'!AJ147,'C1 Portfolio construction'!AJ182) -> Traffic facility | N37: =CHOOSE('O2 Dashboard'!$D$6,'C1 Portfolio construction'!AK77,'C1 Portfolio construction'!AK112,'C1 Portfolio construction'!AK147,'C1 Portfolio construction'!AK182) -> Urban | O37: =IFERROR(IF(INDEX('I1 Inputs'!$T$13:$T$42,MATCH('C2 Dashboard data'!$B37,'I1 Inputs'!$B$13:$B$42,0))>0,INDEX('I1 Inputs'!$T$13:$T$42,MATCH('C2 Dashboard data'!$B37,'I1 Inputs'!$B$13:$B$42,0)),""),"") ->  | P37: =IFERROR(IF(INDEX('I1 Inputs'!$V$13:$V$42,MATCH('C2 Dashboard data'!$B37,'I1 Inputs'!$B$13:$B$42,0))>0, INDEX('I1 Inputs'!$V$13:$V$42,MATCH('C2 Dashboard data'!$B37,'I1 Inputs'!$B$13:$B$42,0)), ""),"") ->  | Q37: =IFERROR(IF(INDEX('I1 Inputs'!$Y$13:$Y$42,MATCH('C2 Dashboard data'!$B37,'I1 Inputs'!$B$13:$B$42,0))>0,INDEX('I1 Inputs'!$Y$13:$Y$42,MATCH('C2 Dashboard data'!$B37,'I1 Inputs'!$B$13:$B$42,0)),""),"") -> 
B38: =CHOOSE('O2 Dashboard'!$D$6,'C1 Portfolio construction'!Y78,'C1 Portfolio construction'!Y113,'C1 Portfolio construction'!Y148,'C1 Portfolio construction'!Y183) -> Project 24 | C38: =CHOOSE('O2 Dashboard'!$D$6,'C1 Portfolio construction'!Z78,'C1 Portfolio construction'!Z113,'C1 Portfolio construction'!Z148,'C1 Portfolio construction'!Z183) -> 0.78007 | D38: =CHOOSE('O2 Dashboard'!$D$6,'C1 Portfolio construction'!AA78,'C1 Portfolio construction'!AA113,'C1 Portfolio construction'!AA148,'C1 Portfolio construction'!AA183) -> 0.107198 | E38: =CHOOSE('O2 Dashboard'!$D$6,'C1 Portfolio construction'!AB78,'C1 Portfolio construction'!AB113,'C1 Portfolio construction'!AB148,'C1 Portfolio construction'!AB183) -> 0.01444 | F38: =CHOOSE('O2 Dashboard'!$D$6,'C1 Portfolio construction'!AC78,'C1 Portfolio construction'!AC113,'C1 Portfolio construction'!AC148,'C1 Portfolio construction'!AC183) -> 0.097917 | G38: =CHOOSE('O2 Dashboard'!$D$6,'C1 Portfolio construction'!AD78,'C1 Portfolio construction'!AD113,'C1 Portfolio construction'!AD148,'C1 Portfolio construction'!AD183) -> 0.774911 | H38: =CHOOSE('O2 Dashboard'!$D$6,'C1 Portfolio construction'!AE78,'C1 Portfolio construction'!AE113,'C1 Portfolio construction'!AE148,'C1 Portfolio construction'!AE183) -> 1 | I38: =CHOOSE('O2 Dashboard'!$D$6,'C1 Portfolio construction'!AF78,'C1 Portfolio construction'!AF113,'C1 Portfolio construction'!AF148,'C1 Portfolio construction'!AF183) -> 1 | J38: =CHOOSE('O2 Dashboard'!$D$6,'C1 Portfolio construction'!AG78,'C1 Portfolio construction'!AG113,'C1 Portfolio construction'!AG148,'C1 Portfolio construction'!AG183) -> 4 | K38: =CHOOSE('O2 Dashboard'!$D$6,'C1 Portfolio construction'!AH78,'C1 Portfolio construction'!AH113,'C1 Portfolio construction'!AH148,'C1 Portfolio construction'!AH183) -> Services and operations | L38: =CHOOSE('O2 Dashboard'!$D$6,'C1 Portfolio construction'!AI78,'C1 Portfolio construction'!AI113,'C1 Portfolio construction'!AI148,'C1 Portfolio construction'!AI183) -> Opex | M38: =CHOOSE('O2 Dashboard'!$D$6,'C1 Portfolio construction'!AJ78,'C1 Portfolio construction'!AJ113,'C1 Portfolio construction'!AJ148,'C1 Portfolio construction'!AJ183) -> Traffic facility | N38: =CHOOSE('O2 Dashboard'!$D$6,'C1 Portfolio construction'!AK78,'C1 Portfolio construction'!AK113,'C1 Portfolio construction'!AK148,'C1 Portfolio construction'!AK183) -> Urban | O38: =IFERROR(IF(INDEX('I1 Inputs'!$T$13:$T$42,MATCH('C2 Dashboard data'!$B38,'I1 Inputs'!$B$13:$B$42,0))>0,INDEX('I1 Inputs'!$T$13:$T$42,MATCH('C2 Dashboard data'!$B38,'I1 Inputs'!$B$13:$B$42,0)),""),"") ->  | P38: =IFERROR(IF(INDEX('I1 Inputs'!$V$13:$V$42,MATCH('C2 Dashboard data'!$B38,'I1 Inputs'!$B$13:$B$42,0))>0, INDEX('I1 Inputs'!$V$13:$V$42,MATCH('C2 Dashboard data'!$B38,'I1 Inputs'!$B$13:$B$42,0)), ""),"") ->  | Q38: =IFERROR(IF(INDEX('I1 Inputs'!$Y$13:$Y$42,MATCH('C2 Dashboard data'!$B38,'I1 Inputs'!$B$13:$B$42,0))>0,INDEX('I1 Inputs'!$Y$13:$Y$42,MATCH('C2 Dashboard data'!$B38,'I1 Inputs'!$B$13:$B$42,0)),""),"") -> 
B39: =CHOOSE('O2 Dashboard'!$D$6,'C1 Portfolio construction'!Y79,'C1 Portfolio construction'!Y114,'C1 Portfolio construction'!Y149,'C1 Portfolio construction'!Y184) -> Project 15 | C39: =CHOOSE('O2 Dashboard'!$D$6,'C1 Portfolio construction'!Z79,'C1 Portfolio construction'!Z114,'C1 Portfolio construction'!Z149,'C1 Portfolio construction'!Z184) -> 0.746978 | D39: =CHOOSE('O2 Dashboard'!$D$6,'C1 Portfolio construction'!AA79,'C1 Portfolio construction'!AA114,'C1 Portfolio construction'!AA149,'C1 Portfolio construction'!AA184) -> 0.232291 | E39: =CHOOSE('O2 Dashboard'!$D$6,'C1 Portfolio construction'!AB79,'C1 Portfolio construction'!AB114,'C1 Portfolio construction'!AB149,'C1 Portfolio construction'!AB184) -> 0 | F39: =CHOOSE('O2 Dashboard'!$D$6,'C1 Portfolio construction'!AC79,'C1 Portfolio construction'!AC114,'C1 Portfolio construction'!AC149,'C1 Portfolio construction'!AC184) -> 0.979269 | G39: =CHOOSE('O2 Dashboard'!$D$6,'C1 Portfolio construction'!AD79,'C1 Portfolio construction'!AD114,'C1 Portfolio construction'!AD149,'C1 Portfolio construction'!AD184) -> 0 | H39: =CHOOSE('O2 Dashboard'!$D$6,'C1 Portfolio construction'!AE79,'C1 Portfolio construction'!AE114,'C1 Portfolio construction'!AE149,'C1 Portfolio construction'!AE184) -> 0 | I39: =CHOOSE('O2 Dashboard'!$D$6,'C1 Portfolio construction'!AF79,'C1 Portfolio construction'!AF114,'C1 Portfolio construction'!AF149,'C1 Portfolio construction'!AF184) -> 0 | J39: =CHOOSE('O2 Dashboard'!$D$6,'C1 Portfolio construction'!AG79,'C1 Portfolio construction'!AG114,'C1 Portfolio construction'!AG149,'C1 Portfolio construction'!AG184) -> 16 | K39: =CHOOSE('O2 Dashboard'!$D$6,'C1 Portfolio construction'!AH79,'C1 Portfolio construction'!AH114,'C1 Portfolio construction'!AH149,'C1 Portfolio construction'!AH184) -> Growth and improvement | L39: =CHOOSE('O2 Dashboard'!$D$6,'C1 Portfolio construction'!AI79,'C1 Portfolio construction'!AI114,'C1 Portfolio construction'!AI149,'C1 Portfolio construction'!AI184) -> Capex | M39: =CHOOSE('O2 Dashboard'!$D$6,'C1 Portfolio construction'!AJ79,'C1 Portfolio construction'!AJ114,'C1 Portfolio construction'!AJ149,'C1 Portfolio construction'!AJ184) -> Structures | N39: =CHOOSE('O2 Dashboard'!$D$6,'C1 Portfolio construction'!AK79,'C1 Portfolio construction'!AK114,'C1 Portfolio construction'!AK149,'C1 Portfolio construction'!AK184) -> Urban | O39: =IFERROR(IF(INDEX('I1 Inputs'!$T$13:$T$42,MATCH('C2 Dashboard data'!$B39,'I1 Inputs'!$B$13:$B$42,0))>0,INDEX('I1 Inputs'!$T$13:$T$42,MATCH('C2 Dashboard data'!$B39,'I1 Inputs'!$B$13:$B$42,0)),""),"") ->  | P39: =IFERROR(IF(INDEX('I1 Inputs'!$V$13:$V$42,MATCH('C2 Dashboard data'!$B39,'I1 Inputs'!$B$13:$B$42,0))>0, INDEX('I1 Inputs'!$V$13:$V$42,MATCH('C2 Dashboard data'!$B39,'I1 Inputs'!$B$13:$B$42,0)), ""),"") ->  | Q39: =IFERROR(IF(INDEX('I1 Inputs'!$Y$13:$Y$42,MATCH('C2 Dashboard data'!$B39,'I1 Inputs'!$B$13:$B$42,0))>0,INDEX('I1 Inputs'!$Y$13:$Y$42,MATCH('C2 Dashboard data'!$B39,'I1 Inputs'!$B$13:$B$42,0)),""),"") -> 
B40: =CHOOSE('O2 Dashboard'!$D$6,'C1 Portfolio construction'!Y80,'C1 Portfolio construction'!Y115,'C1 Portfolio construction'!Y150,'C1 Portfolio construction'!Y185) -> Project 26 | C40: =CHOOSE('O2 Dashboard'!$D$6,'C1 Portfolio construction'!Z80,'C1 Portfolio construction'!Z115,'C1 Portfolio construction'!Z150,'C1 Portfolio construction'!Z185) -> 0.743609 | D40: =CHOOSE('O2 Dashboard'!$D$6,'C1 Portfolio construction'!AA80,'C1 Portfolio construction'!AA115,'C1 Portfolio construction'!AA150,'C1 Portfolio construction'!AA185) -> 0.12047 | E40: =CHOOSE('O2 Dashboard'!$D$6,'C1 Portfolio construction'!AB80,'C1 Portfolio construction'!AB115,'C1 Portfolio construction'!AB150,'C1 Portfolio construction'!AB185) -> 0.021651 | F40: =CHOOSE('O2 Dashboard'!$D$6,'C1 Portfolio construction'!AC80,'C1 Portfolio construction'!AC115,'C1 Portfolio construction'!AC150,'C1 Portfolio construction'!AC185) -> 0.091781 | G40: =CHOOSE('O2 Dashboard'!$D$6,'C1 Portfolio construction'!AD80,'C1 Portfolio construction'!AD115,'C1 Portfolio construction'!AD150,'C1 Portfolio construction'!AD185) -> 0.750647 | H40: =CHOOSE('O2 Dashboard'!$D$6,'C1 Portfolio construction'!AE80,'C1 Portfolio construction'!AE115,'C1 Portfolio construction'!AE150,'C1 Portfolio construction'!AE185) -> 1 | I40: =CHOOSE('O2 Dashboard'!$D$6,'C1 Portfolio construction'!AF80,'C1 Portfolio construction'!AF115,'C1 Portfolio construction'!AF150,'C1 Portfolio construction'!AF185) -> 1 | J40: =CHOOSE('O2 Dashboard'!$D$6,'C1 Portfolio construction'!AG80,'C1 Portfolio construction'!AG115,'C1 Portfolio construction'!AG150,'C1 Portfolio construction'!AG185) -> 3 | K40: =CHOOSE('O2 Dashboard'!$D$6,'C1 Portfolio construction'!AH80,'C1 Portfolio construction'!AH115,'C1 Portfolio construction'!AH150,'C1 Portfolio construction'!AH185) -> Services and operations | L40: =CHOOSE('O2 Dashboard'!$D$6,'C1 Portfolio construction'!AI80,'C1 Portfolio construction'!AI115,'C1 Portfolio construction'!AI150,'C1 Portfolio construction'!AI185) -> Opex | M40: =CHOOSE('O2 Dashboard'!$D$6,'C1 Portfolio construction'!AJ80,'C1 Portfolio construction'!AJ115,'C1 Portfolio construction'!AJ150,'C1 Portfolio construction'!AJ185) -> Traffic facility | N40: =CHOOSE('O2 Dashboard'!$D$6,'C1 Portfolio construction'!AK80,'C1 Portfolio construction'!AK115,'C1 Portfolio construction'!AK150,'C1 Portfolio construction'!AK185) -> Rural | O40: =IFERROR(IF(INDEX('I1 Inputs'!$T$13:$T$42,MATCH('C2 Dashboard data'!$B40,'I1 Inputs'!$B$13:$B$42,0))>0,INDEX('I1 Inputs'!$T$13:$T$42,MATCH('C2 Dashboard data'!$B40,'I1 Inputs'!$B$13:$B$42,0)),""),"") ->  | P40: =IFERROR(IF(INDEX('I1 Inputs'!$V$13:$V$42,MATCH('C2 Dashboard data'!$B40,'I1 Inputs'!$B$13:$B$42,0))>0, INDEX('I1 Inputs'!$V$13:$V$42,MATCH('C2 Dashboard data'!$B40,'I1 Inputs'!$B$13:$B$42,0)), ""),"") ->  | Q40: =IFERROR(IF(INDEX('I1 Inputs'!$Y$13:$Y$42,MATCH('C2 Dashboard data'!$B40,'I1 Inputs'!$B$13:$B$42,0))>0,INDEX('I1 Inputs'!$Y$13:$Y$42,MATCH('C2 Dashboard data'!$B40,'I1 Inputs'!$B$13:$B$42,0)),""),"") -> 
B41: =CHOOSE('O2 Dashboard'!$D$6,'C1 Portfolio construction'!Y81,'C1 Portfolio construction'!Y116,'C1 Portfolio construction'!Y151,'C1 Portfolio construction'!Y186) -> Project 13 | C41: =CHOOSE('O2 Dashboard'!$D$6,'C1 Portfolio construction'!Z81,'C1 Portfolio construction'!Z116,'C1 Portfolio construction'!Z151,'C1 Portfolio construction'!Z186) -> 0.739473 | D41: =CHOOSE('O2 Dashboard'!$D$6,'C1 Portfolio construction'!AA81,'C1 Portfolio construction'!AA116,'C1 Portfolio construction'!AA151,'C1 Portfolio construction'!AA186) -> 0.251494 | E41: =CHOOSE('O2 Dashboard'!$D$6,'C1 Portfolio construction'!AB81,'C1 Portfolio construction'!AB116,'C1 Portfolio construction'!AB151,'C1 Portfolio construction'!AB186) -> 0 | F41: =CHOOSE('O2 Dashboard'!$D$6,'C1 Portfolio construction'!AC81,'C1 Portfolio construction'!AC116,'C1 Portfolio construction'!AC151,'C1 Portfolio construction'!AC186) -> 0.990967 | G41: =CHOOSE('O2 Dashboard'!$D$6,'C1 Portfolio construction'!AD81,'C1 Portfolio construction'!AD116,'C1 Portfolio construction'!AD151,'C1 Portfolio construction'!AD186) -> 0 | H41: =CHOOSE('O2 Dashboard'!$D$6,'C1 Portfolio construction'!AE81,'C1 Portfolio construction'!AE116,'C1 Portfolio construction'!AE151,'C1 Portfolio construction'!AE186) -> 0 | I41: =CHOOSE('O2 Dashboard'!$D$6,'C1 Portfolio construction'!AF81,'C1 Portfolio construction'!AF116,'C1 Portfolio construction'!AF151,'C1 Portfolio construction'!AF186) -> 0 | J41: =CHOOSE('O2 Dashboard'!$D$6,'C1 Portfolio construction'!AG81,'C1 Portfolio construction'!AG116,'C1 Portfolio construction'!AG151,'C1 Portfolio construction'!AG186) -> 10 | K41: =CHOOSE('O2 Dashboard'!$D$6,'C1 Portfolio construction'!AH81,'C1 Portfolio construction'!AH116,'C1 Portfolio construction'!AH151,'C1 Portfolio construction'!AH186) -> Growth and improvement | L41: =CHOOSE('O2 Dashboard'!$D$6,'C1 Portfolio construction'!AI81,'C1 Portfolio construction'!AI116,'C1 Portfolio construction'!AI151,'C1 Portfolio construction'!AI186) -> Capex | M41: =CHOOSE('O2 Dashboard'!$D$6,'C1 Portfolio construction'!AJ81,'C1 Portfolio construction'!AJ116,'C1 Portfolio construction'!AJ151,'C1 Portfolio construction'!AJ186) -> Structures | N41: =CHOOSE('O2 Dashboard'!$D$6,'C1 Portfolio construction'!AK81,'C1 Portfolio construction'!AK116,'C1 Portfolio construction'!AK151,'C1 Portfolio construction'!AK186) -> Urban | O41: =IFERROR(IF(INDEX('I1 Inputs'!$T$13:$T$42,MATCH('C2 Dashboard data'!$B41,'I1 Inputs'!$B$13:$B$42,0))>0,INDEX('I1 Inputs'!$T$13:$T$42,MATCH('C2 Dashboard data'!$B41,'I1 Inputs'!$B$13:$B$42,0)),""),"") ->  | P41: =IFERROR(IF(INDEX('I1 Inputs'!$V$13:$V$42,MATCH('C2 Dashboard data'!$B41,'I1 Inputs'!$B$13:$B$42,0))>0, INDEX('I1 Inputs'!$V$13:$V$42,MATCH('C2 Dashboard data'!$B41,'I1 Inputs'!$B$13:$B$42,0)), ""),"") ->  | Q41: =IFERROR(IF(INDEX('I1 Inputs'!$Y$13:$Y$42,MATCH('C2 Dashboard data'!$B41,'I1 Inputs'!$B$13:$B$42,0))>0,INDEX('I1 Inputs'!$Y$13:$Y$42,MATCH('C2 Dashboard data'!$B41,'I1 Inputs'!$B$13:$B$42,0)),""),"") -> 
B42: =CHOOSE('O2 Dashboard'!$D$6,'C1 Portfolio construction'!Y82,'C1 Portfolio construction'!Y117,'C1 Portfolio construction'!Y152,'C1 Portfolio construction'!Y187) -> Project 20 | C42: =CHOOSE('O2 Dashboard'!$D$6,'C1 Portfolio construction'!Z82,'C1 Portfolio construction'!Z117,'C1 Portfolio construction'!Z152,'C1 Portfolio construction'!Z187) -> 0.692645 | D42: =CHOOSE('O2 Dashboard'!$D$6,'C1 Portfolio construction'!AA82,'C1 Portfolio construction'!AA117,'C1 Portfolio construction'!AA152,'C1 Portfolio construction'!AA187) -> 0.256936 | E42: =CHOOSE('O2 Dashboard'!$D$6,'C1 Portfolio construction'!AB82,'C1 Portfolio construction'!AB117,'C1 Portfolio construction'!AB152,'C1 Portfolio construction'!AB187) -> 0 | F42: =CHOOSE('O2 Dashboard'!$D$6,'C1 Portfolio construction'!AC82,'C1 Portfolio construction'!AC117,'C1 Portfolio construction'!AC152,'C1 Portfolio construction'!AC187) -> 0.949581 | G42: =CHOOSE('O2 Dashboard'!$D$6,'C1 Portfolio construction'!AD82,'C1 Portfolio construction'!AD117,'C1 Portfolio construction'!AD152,'C1 Portfolio construction'!AD187) -> 0 | H42: =CHOOSE('O2 Dashboard'!$D$6,'C1 Portfolio construction'!AE82,'C1 Portfolio construction'!AE117,'C1 Portfolio construction'!AE152,'C1 Portfolio construction'!AE187) -> 0 | I42: =CHOOSE('O2 Dashboard'!$D$6,'C1 Portfolio construction'!AF82,'C1 Portfolio construction'!AF117,'C1 Portfolio construction'!AF152,'C1 Portfolio construction'!AF187) -> 0 | J42: =CHOOSE('O2 Dashboard'!$D$6,'C1 Portfolio construction'!AG82,'C1 Portfolio construction'!AG117,'C1 Portfolio construction'!AG152,'C1 Portfolio construction'!AG187) -> 15 | K42: =CHOOSE('O2 Dashboard'!$D$6,'C1 Portfolio construction'!AH82,'C1 Portfolio construction'!AH117,'C1 Portfolio construction'!AH152,'C1 Portfolio construction'!AH187) -> Growth and improvement | L42: =CHOOSE('O2 Dashboard'!$D$6,'C1 Portfolio construction'!AI82,'C1 Portfolio construction'!AI117,'C1 Portfolio construction'!AI152,'C1 Portfolio construction'!AI187) -> Capex | M42: =CHOOSE('O2 Dashboard'!$D$6,'C1 Portfolio construction'!AJ82,'C1 Portfolio construction'!AJ117,'C1 Portfolio construction'!AJ152,'C1 Portfolio construction'!AJ187) -> Structures | N42: =CHOOSE('O2 Dashboard'!$D$6,'C1 Portfolio construction'!AK82,'C1 Portfolio construction'!AK117,'C1 Portfolio construction'!AK152,'C1 Portfolio construction'!AK187) -> Rural | O42: =IFERROR(IF(INDEX('I1 Inputs'!$T$13:$T$42,MATCH('C2 Dashboard data'!$B42,'I1 Inputs'!$B$13:$B$42,0))>0,INDEX('I1 Inputs'!$T$13:$T$42,MATCH('C2 Dashboard data'!$B42,'I1 Inputs'!$B$13:$B$42,0)),""),"") ->  | P42: =IFERROR(IF(INDEX('I1 Inputs'!$V$13:$V$42,MATCH('C2 Dashboard data'!$B42,'I1 Inputs'!$B$13:$B$42,0))>0, INDEX('I1 Inputs'!$V$13:$V$42,MATCH('C2 Dashboard data'!$B42,'I1 Inputs'!$B$13:$B$42,0)), ""),"") ->  | Q42: =IFERROR(IF(INDEX('I1 Inputs'!$Y$13:$Y$42,MATCH('C2 Dashboard data'!$B42,'I1 Inputs'!$B$13:$B$42,0))>0,INDEX('I1 Inputs'!$Y$13:$Y$42,MATCH('C2 Dashboard data'!$B42,'I1 Inputs'!$B$13:$B$42,0)),""),"") -> 
B43: =CHOOSE('O2 Dashboard'!$D$6,'C1 Portfolio construction'!Y83,'C1 Portfolio construction'!Y118,'C1 Portfolio construction'!Y153,'C1 Portfolio construction'!Y188) -> Project 16 | C43: =CHOOSE('O2 Dashboard'!$D$6,'C1 Portfolio construction'!Z83,'C1 Portfolio construction'!Z118,'C1 Portfolio construction'!Z153,'C1 Portfolio construction'!Z188) -> 0.691587 | D43: =CHOOSE('O2 Dashboard'!$D$6,'C1 Portfolio construction'!AA83,'C1 Portfolio construction'!AA118,'C1 Portfolio construction'!AA153,'C1 Portfolio construction'!AA188) -> 0.266974 | E43: =CHOOSE('O2 Dashboard'!$D$6,'C1 Portfolio construction'!AB83,'C1 Portfolio construction'!AB118,'C1 Portfolio construction'!AB153,'C1 Portfolio construction'!AB188) -> 0 | F43: =CHOOSE('O2 Dashboard'!$D$6,'C1 Portfolio construction'!AC83,'C1 Portfolio construction'!AC118,'C1 Portfolio construction'!AC153,'C1 Portfolio construction'!AC188) -> 0.958561 | G43: =CHOOSE('O2 Dashboard'!$D$6,'C1 Portfolio construction'!AD83,'C1 Portfolio construction'!AD118,'C1 Portfolio construction'!AD153,'C1 Portfolio construction'!AD188) -> 0 | H43: =CHOOSE('O2 Dashboard'!$D$6,'C1 Portfolio construction'!AE83,'C1 Portfolio construction'!AE118,'C1 Portfolio construction'!AE153,'C1 Portfolio construction'!AE188) -> 0 | I43: =CHOOSE('O2 Dashboard'!$D$6,'C1 Portfolio construction'!AF83,'C1 Portfolio construction'!AF118,'C1 Portfolio construction'!AF153,'C1 Portfolio construction'!AF188) -> 0 | J43: =CHOOSE('O2 Dashboard'!$D$6,'C1 Portfolio construction'!AG83,'C1 Portfolio construction'!AG118,'C1 Portfolio construction'!AG153,'C1 Portfolio construction'!AG188) -> 20 | K43: =CHOOSE('O2 Dashboard'!$D$6,'C1 Portfolio construction'!AH83,'C1 Portfolio construction'!AH118,'C1 Portfolio construction'!AH153,'C1 Portfolio construction'!AH188) -> Growth and improvement | L43: =CHOOSE('O2 Dashboard'!$D$6,'C1 Portfolio construction'!AI83,'C1 Portfolio construction'!AI118,'C1 Portfolio construction'!AI153,'C1 Portfolio construction'!AI188) -> Capex | M43: =CHOOSE('O2 Dashboard'!$D$6,'C1 Portfolio construction'!AJ83,'C1 Portfolio construction'!AJ118,'C1 Portfolio construction'!AJ153,'C1 Portfolio construction'!AJ188) -> Structures | N43: =CHOOSE('O2 Dashboard'!$D$6,'C1 Portfolio construction'!AK83,'C1 Portfolio construction'!AK118,'C1 Portfolio construction'!AK153,'C1 Portfolio construction'!AK188) -> Rural | O43: =IFERROR(IF(INDEX('I1 Inputs'!$T$13:$T$42,MATCH('C2 Dashboard data'!$B43,'I1 Inputs'!$B$13:$B$42,0))>0,INDEX('I1 Inputs'!$T$13:$T$42,MATCH('C2 Dashboard data'!$B43,'I1 Inputs'!$B$13:$B$42,0)),""),"") ->  | P43: =IFERROR(IF(INDEX('I1 Inputs'!$V$13:$V$42,MATCH('C2 Dashboard data'!$B43,'I1 Inputs'!$B$13:$B$42,0))>0, INDEX('I1 Inputs'!$V$13:$V$42,MATCH('C2 Dashboard data'!$B43,'I1 Inputs'!$B$13:$B$42,0)), ""),"") ->  | Q43: =IFERROR(IF(INDEX('I1 Inputs'!$Y$13:$Y$42,MATCH('C2 Dashboard data'!$B43,'I1 Inputs'!$B$13:$B$42,0))>0,INDEX('I1 Inputs'!$Y$13:$Y$42,MATCH('C2 Dashboard data'!$B43,'I1 Inputs'!$B$13:$B$42,0)),""),"") -> 
B44: =CHOOSE('O2 Dashboard'!$D$6,'C1 Portfolio construction'!Y84,'C1 Portfolio construction'!Y119,'C1 Portfolio construction'!Y154,'C1 Portfolio construction'!Y189) -> Project 17 | C44: =CHOOSE('O2 Dashboard'!$D$6,'C1 Portfolio construction'!Z84,'C1 Portfolio construction'!Z119,'C1 Portfolio construction'!Z154,'C1 Portfolio construction'!Z189) -> 0.685881 | D44: =CHOOSE('O2 Dashboard'!$D$6,'C1 Portfolio construction'!AA84,'C1 Portfolio construction'!AA119,'C1 Portfolio construction'!AA154,'C1 Portfolio construction'!AA189) -> 0.329273 | E44: =CHOOSE('O2 Dashboard'!$D$6,'C1 Portfolio construction'!AB84,'C1 Portfolio construction'!AB119,'C1 Portfolio construction'!AB154,'C1 Portfolio construction'!AB189) -> 0 | F44: =CHOOSE('O2 Dashboard'!$D$6,'C1 Portfolio construction'!AC84,'C1 Portfolio construction'!AC119,'C1 Portfolio construction'!AC154,'C1 Portfolio construction'!AC189) -> 1.015154 | G44: =CHOOSE('O2 Dashboard'!$D$6,'C1 Portfolio construction'!AD84,'C1 Portfolio construction'!AD119,'C1 Portfolio construction'!AD154,'C1 Portfolio construction'!AD189) -> 0 | H44: =CHOOSE('O2 Dashboard'!$D$6,'C1 Portfolio construction'!AE84,'C1 Portfolio construction'!AE119,'C1 Portfolio construction'!AE154,'C1 Portfolio construction'!AE189) -> 0 | I44: =CHOOSE('O2 Dashboard'!$D$6,'C1 Portfolio construction'!AF84,'C1 Portfolio construction'!AF119,'C1 Portfolio construction'!AF154,'C1 Portfolio construction'!AF189) -> 0 | J44: =CHOOSE('O2 Dashboard'!$D$6,'C1 Portfolio construction'!AG84,'C1 Portfolio construction'!AG119,'C1 Portfolio construction'!AG154,'C1 Portfolio construction'!AG189) -> 20 | K44: =CHOOSE('O2 Dashboard'!$D$6,'C1 Portfolio construction'!AH84,'C1 Portfolio construction'!AH119,'C1 Portfolio construction'!AH154,'C1 Portfolio construction'!AH189) -> Growth and improvement | L44: =CHOOSE('O2 Dashboard'!$D$6,'C1 Portfolio construction'!AI84,'C1 Portfolio construction'!AI119,'C1 Portfolio construction'!AI154,'C1 Portfolio construction'!AI189) -> Capex | M44: =CHOOSE('O2 Dashboard'!$D$6,'C1 Portfolio construction'!AJ84,'C1 Portfolio construction'!AJ119,'C1 Portfolio construction'!AJ154,'C1 Portfolio construction'!AJ189) -> Structures | N44: =CHOOSE('O2 Dashboard'!$D$6,'C1 Portfolio construction'!AK84,'C1 Portfolio construction'!AK119,'C1 Portfolio construction'!AK154,'C1 Portfolio construction'!AK189) -> Rural | O44: =IFERROR(IF(INDEX('I1 Inputs'!$T$13:$T$42,MATCH('C2 Dashboard data'!$B44,'I1 Inputs'!$B$13:$B$42,0))>0,INDEX('I1 Inputs'!$T$13:$T$42,MATCH('C2 Dashboard data'!$B44,'I1 Inputs'!$B$13:$B$42,0)),""),"") ->  | P44: =IFERROR(IF(INDEX('I1 Inputs'!$V$13:$V$42,MATCH('C2 Dashboard data'!$B44,'I1 Inputs'!$B$13:$B$42,0))>0, INDEX('I1 Inputs'!$V$13:$V$42,MATCH('C2 Dashboard data'!$B44,'I1 Inputs'!$B$13:$B$42,0)), ""),"") ->  | Q44: =IFERROR(IF(INDEX('I1 Inputs'!$Y$13:$Y$42,MATCH('C2 Dashboard data'!$B44,'I1 Inputs'!$B$13:$B$42,0))>0,INDEX('I1 Inputs'!$Y$13:$Y$42,MATCH('C2 Dashboard data'!$B44,'I1 Inputs'!$B$13:$B$42,0)),""),"") -> 
B45: =CHOOSE('O2 Dashboard'!$D$6,'C1 Portfolio construction'!Y85,'C1 Portfolio construction'!Y120,'C1 Portfolio construction'!Y155,'C1 Portfolio construction'!Y190) -> Project 11 | C45: =CHOOSE('O2 Dashboard'!$D$6,'C1 Portfolio construction'!Z85,'C1 Portfolio construction'!Z120,'C1 Portfolio construction'!Z155,'C1 Portfolio construction'!Z190) -> 0.6403793362 | D45: =CHOOSE('O2 Dashboard'!$D$6,'C1 Portfolio construction'!AA85,'C1 Portfolio construction'!AA120,'C1 Portfolio construction'!AA155,'C1 Portfolio construction'!AA190) -> 0.2967556968 | E45: =CHOOSE('O2 Dashboard'!$D$6,'C1 Portfolio construction'!AB85,'C1 Portfolio construction'!AB120,'C1 Portfolio construction'!AB155,'C1 Portfolio construction'!AB190) -> 0 | F45: =CHOOSE('O2 Dashboard'!$D$6,'C1 Portfolio construction'!AC85,'C1 Portfolio construction'!AC120,'C1 Portfolio construction'!AC155,'C1 Portfolio construction'!AC190) -> 0.937135033 | G45: =CHOOSE('O2 Dashboard'!$D$6,'C1 Portfolio construction'!AD85,'C1 Portfolio construction'!AD120,'C1 Portfolio construction'!AD155,'C1 Portfolio construction'!AD190) -> 0 | H45: =CHOOSE('O2 Dashboard'!$D$6,'C1 Portfolio construction'!AE85,'C1 Portfolio construction'!AE120,'C1 Portfolio construction'!AE155,'C1 Portfolio construction'!AE190) -> 0 | I45: =CHOOSE('O2 Dashboard'!$D$6,'C1 Portfolio construction'!AF85,'C1 Portfolio construction'!AF120,'C1 Portfolio construction'!AF155,'C1 Portfolio construction'!AF190) -> 0 | J45: =CHOOSE('O2 Dashboard'!$D$6,'C1 Portfolio construction'!AG85,'C1 Portfolio construction'!AG120,'C1 Portfolio construction'!AG155,'C1 Portfolio construction'!AG190) -> 20 | K45: =CHOOSE('O2 Dashboard'!$D$6,'C1 Portfolio construction'!AH85,'C1 Portfolio construction'!AH120,'C1 Portfolio construction'!AH155,'C1 Portfolio construction'!AH190) -> Growth and improvement | L45: =CHOOSE('O2 Dashboard'!$D$6,'C1 Portfolio construction'!AI85,'C1 Portfolio construction'!AI120,'C1 Portfolio construction'!AI155,'C1 Portfolio construction'!AI190) -> Capex | M45: =CHOOSE('O2 Dashboard'!$D$6,'C1 Portfolio construction'!AJ85,'C1 Portfolio construction'!AJ120,'C1 Portfolio construction'!AJ155,'C1 Portfolio construction'!AJ190) -> Structures | N45: =CHOOSE('O2 Dashboard'!$D$6,'C1 Portfolio construction'!AK85,'C1 Portfolio construction'!AK120,'C1 Portfolio construction'!AK155,'C1 Portfolio construction'!AK190) -> Urban | O45: =IFERROR(IF(INDEX('I1 Inputs'!$T$13:$T$42,MATCH('C2 Dashboard data'!$B45,'I1 Inputs'!$B$13:$B$42,0))>0,INDEX('I1 Inputs'!$T$13:$T$42,MATCH('C2 Dashboard data'!$B45,'I1 Inputs'!$B$13:$B$42,0)),""),"") ->  | P45: =IFERROR(IF(INDEX('I1 Inputs'!$V$13:$V$42,MATCH('C2 Dashboard data'!$B45,'I1 Inputs'!$B$13:$B$42,0))>0, INDEX('I1 Inputs'!$V$13:$V$42,MATCH('C2 Dashboard data'!$B45,'I1 Inputs'!$B$13:$B$42,0)), ""),"") ->  | Q45: =IFERROR(IF(INDEX('I1 Inputs'!$Y$13:$Y$42,MATCH('C2 Dashboard data'!$B45,'I1 Inputs'!$B$13:$B$42,0))>0,INDEX('I1 Inputs'!$Y$13:$Y$42,MATCH('C2 Dashboard data'!$B45,'I1 Inputs'!$B$13:$B$42,0)),""),"") -> 
B46: =CHOOSE('O2 Dashboard'!$D$6,'C1 Portfolio construction'!Y86,'C1 Portfolio construction'!Y121,'C1 Portfolio construction'!Y156,'C1 Portfolio construction'!Y191) -> Project 18 | C46: =CHOOSE('O2 Dashboard'!$D$6,'C1 Portfolio construction'!Z86,'C1 Portfolio construction'!Z121,'C1 Portfolio construction'!Z156,'C1 Portfolio construction'!Z191) -> 0.55788 | D46: =CHOOSE('O2 Dashboard'!$D$6,'C1 Portfolio construction'!AA86,'C1 Portfolio construction'!AA121,'C1 Portfolio construction'!AA156,'C1 Portfolio construction'!AA191) -> 0.261766 | E46: =CHOOSE('O2 Dashboard'!$D$6,'C1 Portfolio construction'!AB86,'C1 Portfolio construction'!AB121,'C1 Portfolio construction'!AB156,'C1 Portfolio construction'!AB191) -> 0 | F46: =CHOOSE('O2 Dashboard'!$D$6,'C1 Portfolio construction'!AC86,'C1 Portfolio construction'!AC121,'C1 Portfolio construction'!AC156,'C1 Portfolio construction'!AC191) -> 0.819646 | G46: =CHOOSE('O2 Dashboard'!$D$6,'C1 Portfolio construction'!AD86,'C1 Portfolio construction'!AD121,'C1 Portfolio construction'!AD156,'C1 Portfolio construction'!AD191) -> 0 | H46: =CHOOSE('O2 Dashboard'!$D$6,'C1 Portfolio construction'!AE86,'C1 Portfolio construction'!AE121,'C1 Portfolio construction'!AE156,'C1 Portfolio construction'!AE191) -> 0 | I46: =CHOOSE('O2 Dashboard'!$D$6,'C1 Portfolio construction'!AF86,'C1 Portfolio construction'!AF121,'C1 Portfolio construction'!AF156,'C1 Portfolio construction'!AF191) -> 0 | J46: =CHOOSE('O2 Dashboard'!$D$6,'C1 Portfolio construction'!AG86,'C1 Portfolio construction'!AG121,'C1 Portfolio construction'!AG156,'C1 Portfolio construction'!AG191) -> 20 | K46: =CHOOSE('O2 Dashboard'!$D$6,'C1 Portfolio construction'!AH86,'C1 Portfolio construction'!AH121,'C1 Portfolio construction'!AH156,'C1 Portfolio construction'!AH191) -> Growth and improvement | L46: =CHOOSE('O2 Dashboard'!$D$6,'C1 Portfolio construction'!AI86,'C1 Portfolio construction'!AI121,'C1 Portfolio construction'!AI156,'C1 Portfolio construction'!AI191) -> Capex | M46: =CHOOSE('O2 Dashboard'!$D$6,'C1 Portfolio construction'!AJ86,'C1 Portfolio construction'!AJ121,'C1 Portfolio construction'!AJ156,'C1 Portfolio construction'!AJ191) -> Structures | N46: =CHOOSE('O2 Dashboard'!$D$6,'C1 Portfolio construction'!AK86,'C1 Portfolio construction'!AK121,'C1 Portfolio construction'!AK156,'C1 Portfolio construction'!AK191) -> Rural | O46: =IFERROR(IF(INDEX('I1 Inputs'!$T$13:$T$42,MATCH('C2 Dashboard data'!$B46,'I1 Inputs'!$B$13:$B$42,0))>0,INDEX('I1 Inputs'!$T$13:$T$42,MATCH('C2 Dashboard data'!$B46,'I1 Inputs'!$B$13:$B$42,0)),""),"") ->  | P46: =IFERROR(IF(INDEX('I1 Inputs'!$V$13:$V$42,MATCH('C2 Dashboard data'!$B46,'I1 Inputs'!$B$13:$B$42,0))>0, INDEX('I1 Inputs'!$V$13:$V$42,MATCH('C2 Dashboard data'!$B46,'I1 Inputs'!$B$13:$B$42,0)), ""),"") ->  | Q46: =IFERROR(IF(INDEX('I1 Inputs'!$Y$13:$Y$42,MATCH('C2 Dashboard data'!$B46,'I1 Inputs'!$B$13:$B$42,0))>0,INDEX('I1 Inputs'!$Y$13:$Y$42,MATCH('C2 Dashboard data'!$B46,'I1 Inputs'!$B$13:$B$42,0)),""),"") -> 
B47: =CHOOSE('O2 Dashboard'!$D$6,'C1 Portfolio construction'!Y87,'C1 Portfolio construction'!Y122,'C1 Portfolio construction'!Y157,'C1 Portfolio construction'!Y192) -> Project 12 | C47: =CHOOSE('O2 Dashboard'!$D$6,'C1 Portfolio construction'!Z87,'C1 Portfolio construction'!Z122,'C1 Portfolio construction'!Z157,'C1 Portfolio construction'!Z192) -> 0.462208 | D47: =CHOOSE('O2 Dashboard'!$D$6,'C1 Portfolio construction'!AA87,'C1 Portfolio construction'!AA122,'C1 Portfolio construction'!AA157,'C1 Portfolio construction'!AA192) -> 0.284142 | E47: =CHOOSE('O2 Dashboard'!$D$6,'C1 Portfolio construction'!AB87,'C1 Portfolio construction'!AB122,'C1 Portfolio construction'!AB157,'C1 Portfolio construction'!AB192) -> 0 | F47: =CHOOSE('O2 Dashboard'!$D$6,'C1 Portfolio construction'!AC87,'C1 Portfolio construction'!AC122,'C1 Portfolio construction'!AC157,'C1 Portfolio construction'!AC192) -> 0.74635 | G47: =CHOOSE('O2 Dashboard'!$D$6,'C1 Portfolio construction'!AD87,'C1 Portfolio construction'!AD122,'C1 Portfolio construction'!AD157,'C1 Portfolio construction'!AD192) -> 0 | H47: =CHOOSE('O2 Dashboard'!$D$6,'C1 Portfolio construction'!AE87,'C1 Portfolio construction'!AE122,'C1 Portfolio construction'!AE157,'C1 Portfolio construction'!AE192) -> 0 | I47: =CHOOSE('O2 Dashboard'!$D$6,'C1 Portfolio construction'!AF87,'C1 Portfolio construction'!AF122,'C1 Portfolio construction'!AF157,'C1 Portfolio construction'!AF192) -> 0 | J47: =CHOOSE('O2 Dashboard'!$D$6,'C1 Portfolio construction'!AG87,'C1 Portfolio construction'!AG122,'C1 Portfolio construction'!AG157,'C1 Portfolio construction'!AG192) -> 12 | K47: =CHOOSE('O2 Dashboard'!$D$6,'C1 Portfolio construction'!AH87,'C1 Portfolio construction'!AH122,'C1 Portfolio construction'!AH157,'C1 Portfolio construction'!AH192) -> Growth and improvement | L47: =CHOOSE('O2 Dashboard'!$D$6,'C1 Portfolio construction'!AI87,'C1 Portfolio construction'!AI122,'C1 Portfolio construction'!AI157,'C1 Portfolio construction'!AI192) -> Capex | M47: =CHOOSE('O2 Dashboard'!$D$6,'C1 Portfolio construction'!AJ87,'C1 Portfolio construction'!AJ122,'C1 Portfolio construction'!AJ157,'C1 Portfolio construction'!AJ192) -> Structures | N47: =CHOOSE('O2 Dashboard'!$D$6,'C1 Portfolio construction'!AK87,'C1 Portfolio construction'!AK122,'C1 Portfolio construction'!AK157,'C1 Portfolio construction'!AK192) -> Urban | O47: =IFERROR(IF(INDEX('I1 Inputs'!$T$13:$T$42,MATCH('C2 Dashboard data'!$B47,'I1 Inputs'!$B$13:$B$42,0))>0,INDEX('I1 Inputs'!$T$13:$T$42,MATCH('C2 Dashboard data'!$B47,'I1 Inputs'!$B$13:$B$42,0)),""),"") ->  | P47: =IFERROR(IF(INDEX('I1 Inputs'!$V$13:$V$42,MATCH('C2 Dashboard data'!$B47,'I1 Inputs'!$B$13:$B$42,0))>0, INDEX('I1 Inputs'!$V$13:$V$42,MATCH('C2 Dashboard data'!$B47,'I1 Inputs'!$B$13:$B$42,0)), ""),"") ->  | Q47: =IFERROR(IF(INDEX('I1 Inputs'!$Y$13:$Y$42,MATCH('C2 Dashboard data'!$B47,'I1 Inputs'!$B$13:$B$42,0))>0,INDEX('I1 Inputs'!$Y$13:$Y$42,MATCH('C2 Dashboard data'!$B47,'I1 Inputs'!$B$13:$B$42,0)),""),"") -> 
B48: =CHOOSE('O2 Dashboard'!$D$6,'C1 Portfolio construction'!Y88,'C1 Portfolio construction'!Y123,'C1 Portfolio construction'!Y158,'C1 Portfolio construction'!Y193) ->  | C48: =CHOOSE('O2 Dashboard'!$D$6,'C1 Portfolio construction'!Z88,'C1 Portfolio construction'!Z123,'C1 Portfolio construction'!Z158,'C1 Portfolio construction'!Z193) ->  | D48: =CHOOSE('O2 Dashboard'!$D$6,'C1 Portfolio construction'!AA88,'C1 Portfolio construction'!AA123,'C1 Portfolio construction'!AA158,'C1 Portfolio construction'!AA193) ->  | E48: =CHOOSE('O2 Dashboard'!$D$6,'C1 Portfolio construction'!AB88,'C1 Portfolio construction'!AB123,'C1 Portfolio construction'!AB158,'C1 Portfolio construction'!AB193) ->  | F48: =CHOOSE('O2 Dashboard'!$D$6,'C1 Portfolio construction'!AC88,'C1 Portfolio construction'!AC123,'C1 Portfolio construction'!AC158,'C1 Portfolio construction'!AC193) ->  | G48: =CHOOSE('O2 Dashboard'!$D$6,'C1 Portfolio construction'!AD88,'C1 Portfolio construction'!AD123,'C1 Portfolio construction'!AD158,'C1 Portfolio construction'!AD193) ->  | H48: =CHOOSE('O2 Dashboard'!$D$6,'C1 Portfolio construction'!AE88,'C1 Portfolio construction'!AE123,'C1 Portfolio construction'!AE158,'C1 Portfolio construction'!AE193) ->  | I48: =CHOOSE('O2 Dashboard'!$D$6,'C1 Portfolio construction'!AF88,'C1 Portfolio construction'!AF123,'C1 Portfolio construction'!AF158,'C1 Portfolio construction'!AF193) ->  | J48: =CHOOSE('O2 Dashboard'!$D$6,'C1 Portfolio construction'!AG88,'C1 Portfolio construction'!AG123,'C1 Portfolio construction'!AG158,'C1 Portfolio construction'!AG193) ->  | K48: =CHOOSE('O2 Dashboard'!$D$6,'C1 Portfolio construction'!AH88,'C1 Portfolio construction'!AH123,'C1 Portfolio construction'!AH158,'C1 Portfolio construction'!AH193) ->  | L48: =CHOOSE('O2 Dashboard'!$D$6,'C1 Portfolio construction'!AI88,'C1 Portfolio construction'!AI123,'C1 Portfolio construction'!AI158,'C1 Portfolio construction'!AI193) ->  | M48: =CHOOSE('O2 Dashboard'!$D$6,'C1 Portfolio construction'!AJ88,'C1 Portfolio construction'!AJ123,'C1 Portfolio construction'!AJ158,'C1 Portfolio construction'!AJ193) ->  | N48: =CHOOSE('O2 Dashboard'!$D$6,'C1 Portfolio construction'!AK88,'C1 Portfolio construction'!AK123,'C1 Portfolio construction'!AK158,'C1 Portfolio construction'!AK193) ->  | O48: =IFERROR(IF(INDEX('I1 Inputs'!$T$13:$T$42,MATCH('C2 Dashboard data'!$B48,'I1 Inputs'!$B$13:$B$42,0))>0,INDEX('I1 Inputs'!$T$13:$T$42,MATCH('C2 Dashboard data'!$B48,'I1 Inputs'!$B$13:$B$42,0)),""),"") ->  | P48: =IFERROR(IF(INDEX('I1 Inputs'!$V$13:$V$42,MATCH('C2 Dashboard data'!$B48,'I1 Inputs'!$B$13:$B$42,0))>0, INDEX('I1 Inputs'!$V$13:$V$42,MATCH('C2 Dashboard data'!$B48,'I1 Inputs'!$B$13:$B$42,0)), ""),"") ->  | Q48: =IFERROR(IF(INDEX('I1 Inputs'!$Y$13:$Y$42,MATCH('C2 Dashboard data'!$B48,'I1 Inputs'!$B$13:$B$42,0))>0,INDEX('I1 Inputs'!$Y$13:$Y$42,MATCH('C2 Dashboard data'!$B48,'I1 Inputs'!$B$13:$B$42,0)),""),"") -> 
B49: =CHOOSE('O2 Dashboard'!$D$6,'C1 Portfolio construction'!Y89,'C1 Portfolio construction'!Y124,'C1 Portfolio construction'!Y159,'C1 Portfolio construction'!Y194) ->  | C49: =CHOOSE('O2 Dashboard'!$D$6,'C1 Portfolio construction'!Z89,'C1 Portfolio construction'!Z124,'C1 Portfolio construction'!Z159,'C1 Portfolio construction'!Z194) ->  | D49: =CHOOSE('O2 Dashboard'!$D$6,'C1 Portfolio construction'!AA89,'C1 Portfolio construction'!AA124,'C1 Portfolio construction'!AA159,'C1 Portfolio construction'!AA194) ->  | E49: =CHOOSE('O2 Dashboard'!$D$6,'C1 Portfolio construction'!AB89,'C1 Portfolio construction'!AB124,'C1 Portfolio construction'!AB159,'C1 Portfolio construction'!AB194) ->  | F49: =CHOOSE('O2 Dashboard'!$D$6,'C1 Portfolio construction'!AC89,'C1 Portfolio construction'!AC124,'C1 Portfolio construction'!AC159,'C1 Portfolio construction'!AC194) ->  | G49: =CHOOSE('O2 Dashboard'!$D$6,'C1 Portfolio construction'!AD89,'C1 Portfolio construction'!AD124,'C1 Portfolio construction'!AD159,'C1 Portfolio construction'!AD194) ->  | H49: =CHOOSE('O2 Dashboard'!$D$6,'C1 Portfolio construction'!AE89,'C1 Portfolio construction'!AE124,'C1 Portfolio construction'!AE159,'C1 Portfolio construction'!AE194) ->  | I49: =CHOOSE('O2 Dashboard'!$D$6,'C1 Portfolio construction'!AF89,'C1 Portfolio construction'!AF124,'C1 Portfolio construction'!AF159,'C1 Portfolio construction'!AF194) ->  | J49: =CHOOSE('O2 Dashboard'!$D$6,'C1 Portfolio construction'!AG89,'C1 Portfolio construction'!AG124,'C1 Portfolio construction'!AG159,'C1 Portfolio construction'!AG194) ->  | K49: =CHOOSE('O2 Dashboard'!$D$6,'C1 Portfolio construction'!AH89,'C1 Portfolio construction'!AH124,'C1 Portfolio construction'!AH159,'C1 Portfolio construction'!AH194) ->  | L49: =CHOOSE('O2 Dashboard'!$D$6,'C1 Portfolio construction'!AI89,'C1 Portfolio construction'!AI124,'C1 Portfolio construction'!AI159,'C1 Portfolio construction'!AI194) ->  | M49: =CHOOSE('O2 Dashboard'!$D$6,'C1 Portfolio construction'!AJ89,'C1 Portfolio construction'!AJ124,'C1 Portfolio construction'!AJ159,'C1 Portfolio construction'!AJ194) ->  | N49: =CHOOSE('O2 Dashboard'!$D$6,'C1 Portfolio construction'!AK89,'C1 Portfolio construction'!AK124,'C1 Portfolio construction'!AK159,'C1 Portfolio construction'!AK194) ->  | O49: =IFERROR(IF(INDEX('I1 Inputs'!$T$13:$T$42,MATCH('C2 Dashboard data'!$B49,'I1 Inputs'!$B$13:$B$42,0))>0,INDEX('I1 Inputs'!$T$13:$T$42,MATCH('C2 Dashboard data'!$B49,'I1 Inputs'!$B$13:$B$42,0)),""),"") ->  | P49: =IFERROR(IF(INDEX('I1 Inputs'!$V$13:$V$42,MATCH('C2 Dashboard data'!$B49,'I1 Inputs'!$B$13:$B$42,0))>0, INDEX('I1 Inputs'!$V$13:$V$42,MATCH('C2 Dashboard data'!$B49,'I1 Inputs'!$B$13:$B$42,0)), ""),"") ->  | Q49: =IFERROR(IF(INDEX('I1 Inputs'!$Y$13:$Y$42,MATCH('C2 Dashboard data'!$B49,'I1 Inputs'!$B$13:$B$42,0))>0,INDEX('I1 Inputs'!$Y$13:$Y$42,MATCH('C2 Dashboard data'!$B49,'I1 Inputs'!$B$13:$B$42,0)),""),"") -> 
B50: =CHOOSE('O2 Dashboard'!$D$6,'C1 Portfolio construction'!Y90,'C1 Portfolio construction'!Y125,'C1 Portfolio construction'!Y160,'C1 Portfolio construction'!Y195) ->  | C50: =CHOOSE('O2 Dashboard'!$D$6,'C1 Portfolio construction'!Z90,'C1 Portfolio construction'!Z125,'C1 Portfolio construction'!Z160,'C1 Portfolio construction'!Z195) ->  | D50: =CHOOSE('O2 Dashboard'!$D$6,'C1 Portfolio construction'!AA90,'C1 Portfolio construction'!AA125,'C1 Portfolio construction'!AA160,'C1 Portfolio construction'!AA195) ->  | E50: =CHOOSE('O2 Dashboard'!$D$6,'C1 Portfolio construction'!AB90,'C1 Portfolio construction'!AB125,'C1 Portfolio construction'!AB160,'C1 Portfolio construction'!AB195) ->  | F50: =CHOOSE('O2 Dashboard'!$D$6,'C1 Portfolio construction'!AC90,'C1 Portfolio construction'!AC125,'C1 Portfolio construction'!AC160,'C1 Portfolio construction'!AC195) ->  | G50: =CHOOSE('O2 Dashboard'!$D$6,'C1 Portfolio construction'!AD90,'C1 Portfolio construction'!AD125,'C1 Portfolio construction'!AD160,'C1 Portfolio construction'!AD195) ->  | H50: =CHOOSE('O2 Dashboard'!$D$6,'C1 Portfolio construction'!AE90,'C1 Portfolio construction'!AE125,'C1 Portfolio construction'!AE160,'C1 Portfolio construction'!AE195) ->  | I50: =CHOOSE('O2 Dashboard'!$D$6,'C1 Portfolio construction'!AF90,'C1 Portfolio construction'!AF125,'C1 Portfolio construction'!AF160,'C1 Portfolio construction'!AF195) ->  | J50: =CHOOSE('O2 Dashboard'!$D$6,'C1 Portfolio construction'!AG90,'C1 Portfolio construction'!AG125,'C1 Portfolio construction'!AG160,'C1 Portfolio construction'!AG195) ->  | K50: =CHOOSE('O2 Dashboard'!$D$6,'C1 Portfolio construction'!AH90,'C1 Portfolio construction'!AH125,'C1 Portfolio construction'!AH160,'C1 Portfolio construction'!AH195) ->  | L50: =CHOOSE('O2 Dashboard'!$D$6,'C1 Portfolio construction'!AI90,'C1 Portfolio construction'!AI125,'C1 Portfolio construction'!AI160,'C1 Portfolio construction'!AI195) ->  | M50: =CHOOSE('O2 Dashboard'!$D$6,'C1 Portfolio construction'!AJ90,'C1 Portfolio construction'!AJ125,'C1 Portfolio construction'!AJ160,'C1 Portfolio construction'!AJ195) ->  | N50: =CHOOSE('O2 Dashboard'!$D$6,'C1 Portfolio construction'!AK90,'C1 Portfolio construction'!AK125,'C1 Portfolio construction'!AK160,'C1 Portfolio construction'!AK195) ->  | O50: =IFERROR(IF(INDEX('I1 Inputs'!$T$13:$T$42,MATCH('C2 Dashboard data'!$B50,'I1 Inputs'!$B$13:$B$42,0))>0,INDEX('I1 Inputs'!$T$13:$T$42,MATCH('C2 Dashboard data'!$B50,'I1 Inputs'!$B$13:$B$42,0)),""),"") ->  | P50: =IFERROR(IF(INDEX('I1 Inputs'!$V$13:$V$42,MATCH('C2 Dashboard data'!$B50,'I1 Inputs'!$B$13:$B$42,0))>0, INDEX('I1 Inputs'!$V$13:$V$42,MATCH('C2 Dashboard data'!$B50,'I1 Inputs'!$B$13:$B$42,0)), ""),"") ->  | Q50: =IFERROR(IF(INDEX('I1 Inputs'!$Y$13:$Y$42,MATCH('C2 Dashboard data'!$B50,'I1 Inputs'!$B$13:$B$42,0))>0,INDEX('I1 Inputs'!$Y$13:$Y$42,MATCH('C2 Dashboard data'!$B50,'I1 Inputs'!$B$13:$B$42,0)),""),"") -> 
B51: =CHOOSE('O2 Dashboard'!$D$6,'C1 Portfolio construction'!Y91,'C1 Portfolio construction'!Y126,'C1 Portfolio construction'!Y161,'C1 Portfolio construction'!Y196) ->  | C51: =CHOOSE('O2 Dashboard'!$D$6,'C1 Portfolio construction'!Z91,'C1 Portfolio construction'!Z126,'C1 Portfolio construction'!Z161,'C1 Portfolio construction'!Z196) ->  | D51: =CHOOSE('O2 Dashboard'!$D$6,'C1 Portfolio construction'!AA91,'C1 Portfolio construction'!AA126,'C1 Portfolio construction'!AA161,'C1 Portfolio construction'!AA196) ->  | E51: =CHOOSE('O2 Dashboard'!$D$6,'C1 Portfolio construction'!AB91,'C1 Portfolio construction'!AB126,'C1 Portfolio construction'!AB161,'C1 Portfolio construction'!AB196) ->  | F51: =CHOOSE('O2 Dashboard'!$D$6,'C1 Portfolio construction'!AC91,'C1 Portfolio construction'!AC126,'C1 Portfolio construction'!AC161,'C1 Portfolio construction'!AC196) ->  | G51: =CHOOSE('O2 Dashboard'!$D$6,'C1 Portfolio construction'!AD91,'C1 Portfolio construction'!AD126,'C1 Portfolio construction'!AD161,'C1 Portfolio construction'!AD196) ->  | H51: =CHOOSE('O2 Dashboard'!$D$6,'C1 Portfolio construction'!AE91,'C1 Portfolio construction'!AE126,'C1 Portfolio construction'!AE161,'C1 Portfolio construction'!AE196) ->  | I51: =CHOOSE('O2 Dashboard'!$D$6,'C1 Portfolio construction'!AF91,'C1 Portfolio construction'!AF126,'C1 Portfolio construction'!AF161,'C1 Portfolio construction'!AF196) ->  | J51: =CHOOSE('O2 Dashboard'!$D$6,'C1 Portfolio construction'!AG91,'C1 Portfolio construction'!AG126,'C1 Portfolio construction'!AG161,'C1 Portfolio construction'!AG196) ->  | K51: =CHOOSE('O2 Dashboard'!$D$6,'C1 Portfolio construction'!AH91,'C1 Portfolio construction'!AH126,'C1 Portfolio construction'!AH161,'C1 Portfolio construction'!AH196) ->  | L51: =CHOOSE('O2 Dashboard'!$D$6,'C1 Portfolio construction'!AI91,'C1 Portfolio construction'!AI126,'C1 Portfolio construction'!AI161,'C1 Portfolio construction'!AI196) ->  | M51: =CHOOSE('O2 Dashboard'!$D$6,'C1 Portfolio construction'!AJ91,'C1 Portfolio construction'!AJ126,'C1 Portfolio construction'!AJ161,'C1 Portfolio construction'!AJ196) ->  | N51: =CHOOSE('O2 Dashboard'!$D$6,'C1 Portfolio construction'!AK91,'C1 Portfolio construction'!AK126,'C1 Portfolio construction'!AK161,'C1 Portfolio construction'!AK196) ->  | O51: =IFERROR(IF(INDEX('I1 Inputs'!$T$13:$T$42,MATCH('C2 Dashboard data'!$B51,'I1 Inputs'!$B$13:$B$42,0))>0,INDEX('I1 Inputs'!$T$13:$T$42,MATCH('C2 Dashboard data'!$B51,'I1 Inputs'!$B$13:$B$42,0)),""),"") ->  | P51: =IFERROR(IF(INDEX('I1 Inputs'!$V$13:$V$42,MATCH('C2 Dashboard data'!$B51,'I1 Inputs'!$B$13:$B$42,0))>0, INDEX('I1 Inputs'!$V$13:$V$42,MATCH('C2 Dashboard data'!$B51,'I1 Inputs'!$B$13:$B$42,0)), ""),"") ->  | Q51: =IFERROR(IF(INDEX('I1 Inputs'!$Y$13:$Y$42,MATCH('C2 Dashboard data'!$B51,'I1 Inputs'!$B$13:$B$42,0))>0,INDEX('I1 Inputs'!$Y$13:$Y$42,MATCH('C2 Dashboard data'!$B51,'I1 Inputs'!$B$13:$B$42,0)),""),"") -> 
B52: =CHOOSE('O2 Dashboard'!$D$6,'C1 Portfolio construction'!Y92,'C1 Portfolio construction'!Y127,'C1 Portfolio construction'!Y162,'C1 Portfolio construction'!Y197) ->  | C52: =CHOOSE('O2 Dashboard'!$D$6,'C1 Portfolio construction'!Z92,'C1 Portfolio construction'!Z127,'C1 Portfolio construction'!Z162,'C1 Portfolio construction'!Z197) ->  | D52: =CHOOSE('O2 Dashboard'!$D$6,'C1 Portfolio construction'!AA92,'C1 Portfolio construction'!AA127,'C1 Portfolio construction'!AA162,'C1 Portfolio construction'!AA197) ->  | E52: =CHOOSE('O2 Dashboard'!$D$6,'C1 Portfolio construction'!AB92,'C1 Portfolio construction'!AB127,'C1 Portfolio construction'!AB162,'C1 Portfolio construction'!AB197) ->  | F52: =CHOOSE('O2 Dashboard'!$D$6,'C1 Portfolio construction'!AC92,'C1 Portfolio construction'!AC127,'C1 Portfolio construction'!AC162,'C1 Portfolio construction'!AC197) ->  | G52: =CHOOSE('O2 Dashboard'!$D$6,'C1 Portfolio construction'!AD92,'C1 Portfolio construction'!AD127,'C1 Portfolio construction'!AD162,'C1 Portfolio construction'!AD197) ->  | H52: =CHOOSE('O2 Dashboard'!$D$6,'C1 Portfolio construction'!AE92,'C1 Portfolio construction'!AE127,'C1 Portfolio construction'!AE162,'C1 Portfolio construction'!AE197) ->  | I52: =CHOOSE('O2 Dashboard'!$D$6,'C1 Portfolio construction'!AF92,'C1 Portfolio construction'!AF127,'C1 Portfolio construction'!AF162,'C1 Portfolio construction'!AF197) ->  | J52: =CHOOSE('O2 Dashboard'!$D$6,'C1 Portfolio construction'!AG92,'C1 Portfolio construction'!AG127,'C1 Portfolio construction'!AG162,'C1 Portfolio construction'!AG197) ->  | K52: =CHOOSE('O2 Dashboard'!$D$6,'C1 Portfolio construction'!AH92,'C1 Portfolio construction'!AH127,'C1 Portfolio construction'!AH162,'C1 Portfolio construction'!AH197) ->  | L52: =CHOOSE('O2 Dashboard'!$D$6,'C1 Portfolio construction'!AI92,'C1 Portfolio construction'!AI127,'C1 Portfolio construction'!AI162,'C1 Portfolio construction'!AI197) ->  | M52: =CHOOSE('O2 Dashboard'!$D$6,'C1 Portfolio construction'!AJ92,'C1 Portfolio construction'!AJ127,'C1 Portfolio construction'!AJ162,'C1 Portfolio construction'!AJ197) ->  | N52: =CHOOSE('O2 Dashboard'!$D$6,'C1 Portfolio construction'!AK92,'C1 Portfolio construction'!AK127,'C1 Portfolio construction'!AK162,'C1 Portfolio construction'!AK197) ->  | O52: =IFERROR(IF(INDEX('I1 Inputs'!$T$13:$T$42,MATCH('C2 Dashboard data'!$B52,'I1 Inputs'!$B$13:$B$42,0))>0,INDEX('I1 Inputs'!$T$13:$T$42,MATCH('C2 Dashboard data'!$B52,'I1 Inputs'!$B$13:$B$42,0)),""),"") ->  | P52: =IFERROR(IF(INDEX('I1 Inputs'!$V$13:$V$42,MATCH('C2 Dashboard data'!$B52,'I1 Inputs'!$B$13:$B$42,0))>0, INDEX('I1 Inputs'!$V$13:$V$42,MATCH('C2 Dashboard data'!$B52,'I1 Inputs'!$B$13:$B$42,0)), ""),"") ->  | Q52: =IFERROR(IF(INDEX('I1 Inputs'!$Y$13:$Y$42,MATCH('C2 Dashboard data'!$B52,'I1 Inputs'!$B$13:$B$42,0))>0,INDEX('I1 Inputs'!$Y$13:$Y$42,MATCH('C2 Dashboard data'!$B52,'I1 Inputs'!$B$13:$B$42,0)),""),"") -> 
B54: ="Expenditure breakdowns under " & active_scenario -> Expenditure breakdowns under Scenario 1
B56: Service group | E56: Expenditure type | H56: Asset class | K56: Region
B58: Service group | C58: Expenditure | E58: Expenditure category | F58: Expenditure | H58: Asset class | I58: Expenditure | K58: Region | L58: Expenditure
B59: Asset maintenance | C59: =SUMIFS($D$23:$D$52,$K$23:$K$52,$B59) -> 185.1254924 | E59: Opex | F59: =SUMIFS($D$23:$D$52,$L$23:$L$52,$E59) -> 186.4276954 | H59: Pavements | I59: =SUMIFS($D$23:$D$52,$M$23:$M$52,$H59) -> 185.1254924 | K59: Urban | L59: =SUMIFS($D$23:$D$52,$N$23:$N$52,$K59) -> 119.7359171
B60: Services and operations | C60: =SUMIFS($D$23:$D$52,$K$23:$K$52,$B60) -> 1.302203 | E60: Capex | F60: =SUMIFS($D$23:$D$52,$L$23:$L$52,$E60) -> 2.762092697 | H60: Roadside | I60: =SUMIFS($D$23:$D$52,$M$23:$M$52,$H60) -> 0 | K60: Rural | L60: =SUMIFS($D$23:$D$52,$N$23:$N$52,$K60) -> 69.453871
B61: Growth and improvement | C61: =SUMIFS($D$23:$D$52,$K$23:$K$52,$B61) -> 2.762092697 | H61: Structures | I61: =SUMIFS($D$23:$D$52,$M$23:$M$52,$H61) -> 2.762092697
H62: Traffic facility | I62: =SUMIFS($D$23:$D$52,$M$23:$M$52,$H62) -> 1.302203
B64: Pavement asset condition - all scenarios
B66: Scenario | C66: Poor | D66: Good
B67: Scenario 1 | C67: ='C1 Portfolio construction'!P93 -> 0.06228571429 | D67: ='C1 Portfolio construction'!Q93 -> 0.9377142857
B68: Scenario 2 | C68: ='C1 Portfolio construction'!P128 -> 0.1085714286 | D68: ='C1 Portfolio construction'!Q128 -> 0.8914285714
B69: Scenario 3 | C69: ='C1 Portfolio construction'!P163 -> 0.06914285714 | D69: ='C1 Portfolio construction'!Q163 -> 0.9308571429
B70: Scenario 4 | C70: ='C1 Portfolio construction'!P198 -> 0.112 | D70: ='C1 Portfolio construction'!Q198 -> 0.888
B72: ="Risk assessment - " & active_scenario -> Risk assessment - Scenario 1
B74: Funding indicator | C74: Project | D74: Consequence | E74: Likelihood
B75: =CHOOSE('O2 Dashboard'!$D$6,'C1 Portfolio construction'!C63,'C1 Portfolio construction'!C98,'C1 Portfolio construction'!C133,'C1 Portfolio construction'!C168) -> 0 | C75: ='C1 Portfolio construction'!B26 -> Project 1 | D75: =IF(B75=0,'I1 Inputs'!N13,'I1 Inputs'!Q13) -> Serious | E75: =IF(B75=0,'I1 Inputs'!O13,'I1 Inputs'!R13) -> Likely
B76: =CHOOSE('O2 Dashboard'!$D$6,'C1 Portfolio construction'!C64,'C1 Portfolio construction'!C99,'C1 Portfolio construction'!C134,'C1 Portfolio construction'!C169) -> 0 | C76: ='C1 Portfolio construction'!B27 -> Project 2 | D76: =IF(B76=0,'I1 Inputs'!N14,'I1 Inputs'!Q14) -> Critical | E76: =IF(B76=0,'I1 Inputs'!O14,'I1 Inputs'!R14) -> Possible
B77: =CHOOSE('O2 Dashboard'!$D$6,'C1 Portfolio construction'!C65,'C1 Portfolio construction'!C100,'C1 Portfolio construction'!C135,'C1 Portfolio construction'!C170) -> 0 | C77: ='C1 Portfolio construction'!B28 -> Project 3 | D77: =IF(B77=0,'I1 Inputs'!N15,'I1 Inputs'!Q15) -> Catastrophic | E77: =IF(B77=0,'I1 Inputs'!O15,'I1 Inputs'!R15) -> Possible
B78: =CHOOSE('O2 Dashboard'!$D$6,'C1 Portfolio construction'!C66,'C1 Portfolio construction'!C101,'C1 Portfolio construction'!C136,'C1 Portfolio construction'!C171) -> 0 | C78: ='C1 Portfolio construction'!B29 -> Project 4 | D78: =IF(B78=0,'I1 Inputs'!N16,'I1 Inputs'!Q16) -> Serious | E78: =IF(B78=0,'I1 Inputs'!O16,'I1 Inputs'!R16) -> Almost certain
B79: =CHOOSE('O2 Dashboard'!$D$6,'C1 Portfolio construction'!C67,'C1 Portfolio construction'!C102,'C1 Portfolio construction'!C137,'C1 Portfolio construction'!C172) -> 0 | C79: ='C1 Portfolio construction'!B30 -> Project 5 | D79: =IF(B79=0,'I1 Inputs'!N17,'I1 Inputs'!Q17) -> Catastrophic | E79: =IF(B79=0,'I1 Inputs'!O17,'I1 Inputs'!R17) -> Rare
B80: =CHOOSE('O2 Dashboard'!$D$6,'C1 Portfolio construction'!C68,'C1 Portfolio construction'!C103,'C1 Portfolio construction'!C138,'C1 Portfolio construction'!C173) -> 1 | C80: ='C1 Portfolio construction'!B31 -> Project 6 | D80: =IF(B80=0,'I1 Inputs'!N18,'I1 Inputs'!Q18) -> 0 | E80: =IF(B80=0,'I1 Inputs'!O18,'I1 Inputs'!R18) -> 0
B81: =CHOOSE('O2 Dashboard'!$D$6,'C1 Portfolio construction'!C69,'C1 Portfolio construction'!C104,'C1 Portfolio construction'!C139,'C1 Portfolio construction'!C174) -> 1 | C81: ='C1 Portfolio construction'!B32 -> Project 7 | D81: =IF(B81=0,'I1 Inputs'!N19,'I1 Inputs'!Q19) -> 0 | E81: =IF(B81=0,'I1 Inputs'!O19,'I1 Inputs'!R19) -> 0
B82: =CHOOSE('O2 Dashboard'!$D$6,'C1 Portfolio construction'!C70,'C1 Portfolio construction'!C105,'C1 Portfolio construction'!C140,'C1 Portfolio construction'!C175) -> 1 | C82: ='C1 Portfolio construction'!B33 -> Project 8 | D82: =IF(B82=0,'I1 Inputs'!N20,'I1 Inputs'!Q20) -> 0 | E82: =IF(B82=0,'I1 Inputs'!O20,'I1 Inputs'!R20) -> 0
B83: =CHOOSE('O2 Dashboard'!$D$6,'C1 Portfolio construction'!C71,'C1 Portfolio construction'!C106,'C1 Portfolio construction'!C141,'C1 Portfolio construction'!C176) -> 1 | C83: ='C1 Portfolio construction'!B34 -> Project 9 | D83: =IF(B83=0,'I1 Inputs'!N21,'I1 Inputs'!Q21) -> 0 | E83: =IF(B83=0,'I1 Inputs'!O21,'I1 Inputs'!R21) -> 0
B84: =CHOOSE('O2 Dashboard'!$D$6,'C1 Portfolio construction'!C72,'C1 Portfolio construction'!C107,'C1 Portfolio construction'!C142,'C1 Portfolio construction'!C177) -> 1 | C84: ='C1 Portfolio construction'!B35 -> Project 10 | D84: =IF(B84=0,'I1 Inputs'!N22,'I1 Inputs'!Q22) -> 0 | E84: =IF(B84=0,'I1 Inputs'!O22,'I1 Inputs'!R22) -> 0
B85: =CHOOSE('O2 Dashboard'!$D$6,'C1 Portfolio construction'!C73,'C1 Portfolio construction'!C108,'C1 Portfolio construction'!C143,'C1 Portfolio construction'!C178) -> 1 | C85: ='C1 Portfolio construction'!B36 -> Project 11 | D85: =IF(B85=0,'I1 Inputs'!N23,'I1 Inputs'!Q23) -> Catastrophic | E85: =IF(B85=0,'I1 Inputs'!O23,'I1 Inputs'!R23) -> Rare
B86: =CHOOSE('O2 Dashboard'!$D$6,'C1 Portfolio construction'!C74,'C1 Portfolio construction'!C109,'C1 Portfolio construction'!C144,'C1 Portfolio construction'!C179) -> 1 | C86: ='C1 Portfolio construction'!B37 -> Project 12 | D86: =IF(B86=0,'I1 Inputs'!N24,'I1 Inputs'!Q24) -> Critical | E86: =IF(B86=0,'I1 Inputs'!O24,'I1 Inputs'!R24) -> Unlikely
B87: =CHOOSE('O2 Dashboard'!$D$6,'C1 Portfolio construction'!C75,'C1 Portfolio construction'!C110,'C1 Portfolio construction'!C145,'C1 Portfolio construction'!C180) -> 1 | C87: ='C1 Portfolio construction'!B38 -> Project 13 | D87: =IF(B87=0,'I1 Inputs'!N25,'I1 Inputs'!Q25) -> Catastrophic | E87: =IF(B87=0,'I1 Inputs'!O25,'I1 Inputs'!R25) -> Rare
B88: =CHOOSE('O2 Dashboard'!$D$6,'C1 Portfolio construction'!C76,'C1 Portfolio construction'!C111,'C1 Portfolio construction'!C146,'C1 Portfolio construction'!C181) -> 1 | C88: ='C1 Portfolio construction'!B39 -> Project 14 | D88: =IF(B88=0,'I1 Inputs'!N26,'I1 Inputs'!Q26) -> Critical | E88: =IF(B88=0,'I1 Inputs'!O26,'I1 Inputs'!R26) -> Unlikely
B89: =CHOOSE('O2 Dashboard'!$D$6,'C1 Portfolio construction'!C77,'C1 Portfolio construction'!C112,'C1 Portfolio construction'!C147,'C1 Portfolio construction'!C182) -> 1 | C89: ='C1 Portfolio construction'!B40 -> Project 15 | D89: =IF(B89=0,'I1 Inputs'!N27,'I1 Inputs'!Q27) -> Critical | E89: =IF(B89=0,'I1 Inputs'!O27,'I1 Inputs'!R27) -> Possible
B90: =CHOOSE('O2 Dashboard'!$D$6,'C1 Portfolio construction'!C78,'C1 Portfolio construction'!C113,'C1 Portfolio construction'!C148,'C1 Portfolio construction'!C183) -> 1 | C90: ='C1 Portfolio construction'!B41 -> Project 16 | D90: =IF(B90=0,'I1 Inputs'!N28,'I1 Inputs'!Q28) -> Critical | E90: =IF(B90=0,'I1 Inputs'!O28,'I1 Inputs'!R28) -> Possible
B91: =CHOOSE('O2 Dashboard'!$D$6,'C1 Portfolio construction'!C79,'C1 Portfolio construction'!C114,'C1 Portfolio construction'!C149,'C1 Portfolio construction'!C184) -> 1 | C91: ='C1 Portfolio construction'!B42 -> Project 17 | D91: =IF(B91=0,'I1 Inputs'!N29,'I1 Inputs'!Q29) -> Catastrophic | E91: =IF(B91=0,'I1 Inputs'!O29,'I1 Inputs'!R29) -> Unlikely
B92: =CHOOSE('O2 Dashboard'!$D$6,'C1 Portfolio construction'!C80,'C1 Portfolio construction'!C115,'C1 Portfolio construction'!C150,'C1 Portfolio construction'!C185) -> 1 | C92: ='C1 Portfolio construction'!B43 -> Project 18 | D92: =IF(B92=0,'I1 Inputs'!N30,'I1 Inputs'!Q30) -> Catastrophic | E92: =IF(B92=0,'I1 Inputs'!O30,'I1 Inputs'!R30) -> Rare
B93: =CHOOSE('O2 Dashboard'!$D$6,'C1 Portfolio construction'!C81,'C1 Portfolio construction'!C116,'C1 Portfolio construction'!C151,'C1 Portfolio construction'!C186) -> 1 | C93: ='C1 Portfolio construction'!B44 -> Project 19 | D93: =IF(B93=0,'I1 Inputs'!N31,'I1 Inputs'!Q31) -> Critical | E93: =IF(B93=0,'I1 Inputs'!O31,'I1 Inputs'!R31) -> Unlikely
B94: =CHOOSE('O2 Dashboard'!$D$6,'C1 Portfolio construction'!C82,'C1 Portfolio construction'!C117,'C1 Portfolio construction'!C152,'C1 Portfolio construction'!C187) -> 1 | C94: ='C1 Portfolio construction'!B45 -> Project 20 | D94: =IF(B94=0,'I1 Inputs'!N32,'I1 Inputs'!Q32) -> Catastrophic | E94: =IF(B94=0,'I1 Inputs'!O32,'I1 Inputs'!R32) -> Unlikely
B95: =CHOOSE('O2 Dashboard'!$D$6,'C1 Portfolio construction'!C83,'C1 Portfolio construction'!C118,'C1 Portfolio construction'!C153,'C1 Portfolio construction'!C188) -> 1 | C95: ='C1 Portfolio construction'!B46 -> Project 21 | D95: =IF(B95=0,'I1 Inputs'!N33,'I1 Inputs'!Q33) -> Marginal | E95: =IF(B95=0,'I1 Inputs'!O33,'I1 Inputs'!R33) -> Rare
B96: =CHOOSE('O2 Dashboard'!$D$6,'C1 Portfolio construction'!C84,'C1 Portfolio construction'!C119,'C1 Portfolio construction'!C154,'C1 Portfolio construction'!C189) -> 1 | C96: ='C1 Portfolio construction'!B47 -> Project 22 | D96: =IF(B96=0,'I1 Inputs'!N34,'I1 Inputs'!Q34) -> Serious | E96: =IF(B96=0,'I1 Inputs'!O34,'I1 Inputs'!R34) -> Rare
B97: =CHOOSE('O2 Dashboard'!$D$6,'C1 Portfolio construction'!C85,'C1 Portfolio construction'!C120,'C1 Portfolio construction'!C155,'C1 Portfolio construction'!C190) -> 1 | C97: ='C1 Portfolio construction'!B48 -> Project 23 | D97: =IF(B97=0,'I1 Inputs'!N35,'I1 Inputs'!Q35) -> Critical | E97: =IF(B97=0,'I1 Inputs'!O35,'I1 Inputs'!R35) -> Rare
B98: =CHOOSE('O2 Dashboard'!$D$6,'C1 Portfolio construction'!C86,'C1 Portfolio construction'!C121,'C1 Portfolio construction'!C156,'C1 Portfolio construction'!C191) -> 1 | C98: ='C1 Portfolio construction'!B49 -> Project 24 | D98: =IF(B98=0,'I1 Inputs'!N36,'I1 Inputs'!Q36) -> Serious | E98: =IF(B98=0,'I1 Inputs'!O36,'I1 Inputs'!R36) -> Rare
B99: =CHOOSE('O2 Dashboard'!$D$6,'C1 Portfolio construction'!C87,'C1 Portfolio construction'!C122,'C1 Portfolio construction'!C157,'C1 Portfolio construction'!C192) -> 1 | C99: ='C1 Portfolio construction'!B50 -> Project 25 | D99: =IF(B99=0,'I1 Inputs'!N37,'I1 Inputs'!Q37) -> Marginal | E99: =IF(B99=0,'I1 Inputs'!O37,'I1 Inputs'!R37) -> Rare
B100: =CHOOSE('O2 Dashboard'!$D$6,'C1 Portfolio construction'!C88,'C1 Portfolio construction'!C123,'C1 Portfolio construction'!C158,'C1 Portfolio construction'!C193) -> 1 | C100: ='C1 Portfolio construction'!B51 -> Project 26 | D100: =IF(B100=0,'I1 Inputs'!N38,'I1 Inputs'!Q38) -> Negligible | E100: =IF(B100=0,'I1 Inputs'!O38,'I1 Inputs'!R38) -> Rare
B101: =CHOOSE('O2 Dashboard'!$D$6,'C1 Portfolio construction'!C89,'C1 Portfolio construction'!C124,'C1 Portfolio construction'!C159,'C1 Portfolio construction'!C194) -> 1 | C101: ='C1 Portfolio construction'!B52 -> Project 27 | D101: =IF(B101=0,'I1 Inputs'!N39,'I1 Inputs'!Q39) -> Serious | E101: =IF(B101=0,'I1 Inputs'!O39,'I1 Inputs'!R39) -> Rare
B102: =CHOOSE('O2 Dashboard'!$D$6,'C1 Portfolio construction'!C90,'C1 Portfolio construction'!C125,'C1 Portfolio construction'!C160,'C1 Portfolio construction'!C195) -> 1 | C102: ='C1 Portfolio construction'!B53 -> Project 28 | D102: =IF(B102=0,'I1 Inputs'!N40,'I1 Inputs'!Q40) -> Marginal | E102: =IF(B102=0,'I1 Inputs'!O40,'I1 Inputs'!R40) -> Rare
B103: =CHOOSE('O2 Dashboard'!$D$6,'C1 Portfolio construction'!C91,'C1 Portfolio construction'!C126,'C1 Portfolio construction'!C161,'C1 Portfolio construction'!C196) -> 1 | C103: ='C1 Portfolio construction'!B54 -> Project 29 | D103: =IF(B103=0,'I1 Inputs'!N41,'I1 Inputs'!Q41) -> Negligible | E103: =IF(B103=0,'I1 Inputs'!O41,'I1 Inputs'!R41) -> Rare
B104: =CHOOSE('O2 Dashboard'!$D$6,'C1 Portfolio construction'!C92,'C1 Portfolio construction'!C127,'C1 Portfolio construction'!C162,'C1 Portfolio construction'!C197) -> 1 | C104: ='C1 Portfolio construction'!B55 -> Project 30 | D104: =IF(B104=0,'I1 Inputs'!N42,'I1 Inputs'!Q42) -> Negligible | E104: =IF(B104=0,'I1 Inputs'!O42,'I1 Inputs'!R42) -> Rare
B106: Pavement condition - base case and all projects funded
B108: No projects funded | H108: All projects funded
B109: Project | C109: Length | D109: Proportion | E109: Bad | F109: Good | H109: Project | I109: Length | J109: Proportion | K109: Bad | L109: Good
B110: ='I1 Inputs'!B13 -> Project 1 | C110: ='I1 Inputs'!T13 -> 0 | D110: =C110/SUM($C$110:$C$138) -> 0 | E110: ='I1 Inputs'!U13 -> 0 | F110: ='I1 Inputs'!V13 -> 0 | H110: ='I1 Inputs'!B13 -> Project 1 | I110: ='I1 Inputs'!W13 -> 0 | J110: =I110/SUM($I$110:$I$139) -> 0 | K110: ='I1 Inputs'!X13 -> 0 | L110: ='I1 Inputs'!Y13 -> 0
B111: ='I1 Inputs'!B14 -> Project 2 | C111: ='I1 Inputs'!T14 -> 0 | D111: =C111/SUM($C$110:$C$138) -> 0 | E111: ='I1 Inputs'!U14 -> 0 | F111: ='I1 Inputs'!V14 -> 0 | H111: ='I1 Inputs'!B14 -> Project 2 | I111: ='I1 Inputs'!W14 -> 0 | J111: 0 | K111: ='I1 Inputs'!X14 -> 0 | L111: ='I1 Inputs'!Y14 -> 0
B112: ='I1 Inputs'!B15 -> Project 3 | C112: ='I1 Inputs'!T15 -> 0 | D112: 0 | E112: ='I1 Inputs'!U15 -> 0 | F112: ='I1 Inputs'!V15 -> 0 | H112: ='I1 Inputs'!B15 -> Project 3 | I112: ='I1 Inputs'!W15 -> 0 | J112: 0 | K112: ='I1 Inputs'!X15 -> 0 | L112: ='I1 Inputs'!Y15 -> 0
B113: ='I1 Inputs'!B16 -> Project 4 | C113: ='I1 Inputs'!T16 -> 0 | D113: 0 | E113: ='I1 Inputs'!U16 -> 0 | F113: ='I1 Inputs'!V16 -> 0 | H113: ='I1 Inputs'!B16 -> Project 4 | I113: ='I1 Inputs'!W16 -> 0 | J113: 0 | K113: ='I1 Inputs'!X16 -> 0 | L113: ='I1 Inputs'!Y16 -> 0
B114: ='I1 Inputs'!B17 -> Project 5 | C114: ='I1 Inputs'!T17 -> 0 | D114: 0 | E114: ='I1 Inputs'!U17 -> 0 | F114: ='I1 Inputs'!V17 -> 0 | H114: ='I1 Inputs'!B17 -> Project 5 | I114: ='I1 Inputs'!W17 -> 0 | J114: 0 | K114: ='I1 Inputs'!X17 -> 0 | L114: ='I1 Inputs'!Y17 -> 0
B115: ='I1 Inputs'!B18 -> Project 6 | C115: ='I1 Inputs'!T18 -> 400 | D115: 0.1142857143 | E115: ='I1 Inputs'!U18 -> 0.1 | F115: ='I1 Inputs'!V18 -> 0.9 | H115: ='I1 Inputs'!B18 -> Project 6 | I115: ='I1 Inputs'!W18 -> 400 | J115: 0.1142857143 | K115: ='I1 Inputs'!X18 -> 0.03 | L115: ='I1 Inputs'!Y18 -> 0.97
B116: ='I1 Inputs'!B19 -> Project 7 | C116: ='I1 Inputs'!T19 -> 400 | D116: 0.1142857143 | E116: ='I1 Inputs'!U19 -> 0.07 | F116: ='I1 Inputs'!V19 -> 0.93 | H116: ='I1 Inputs'!B19 -> Project 7 | I116: ='I1 Inputs'!W19 -> 400 | J116: 0.1142857143 | K116: ='I1 Inputs'!X19 -> 0.04 | L116: ='I1 Inputs'!Y19 -> 0.96
B117: ='I1 Inputs'!B20 -> Project 8 | C117: ='I1 Inputs'!T20 -> 800 | D117: 0.2285714286 | E117: ='I1 Inputs'!U20 -> 0.06 | F117: ='I1 Inputs'!V20 -> 0.94 | H117: ='I1 Inputs'!B20 -> Project 8 | I117: ='I1 Inputs'!W20 -> 800 | J117: 0.2285714286 | K117: ='I1 Inputs'!X20 -> 0.03 | L117: ='I1 Inputs'!Y20 -> 0.97
B118: ='I1 Inputs'!B21 -> Project 9 | C118: ='I1 Inputs'!T21 -> 800 | D118: 0.2285714286 | E118: ='I1 Inputs'!U21 -> 0.12 | F118: ='I1 Inputs'!V21 -> 0.88 | H118: ='I1 Inputs'!B21 -> Project 9 | I118: ='I1 Inputs'!W21 -> 800 | J118: 0.2285714286 | K118: ='I1 Inputs'!X21 -> 0.07 | L118: ='I1 Inputs'!Y21 -> 0.93
B119: ='I1 Inputs'!B22 -> Project 10 | C119: ='I1 Inputs'!T22 -> 1100 | D119: 0.3142857143 | E119: ='I1 Inputs'!U22 -> 0.2 | F119: ='I1 Inputs'!V22 -> 0.8 | H119: ='I1 Inputs'!B22 -> Project 10 | I119: ='I1 Inputs'!W22 -> 1100 | J119: 0.3142857143 | K119: ='I1 Inputs'!X22 -> 0.1 | L119: ='I1 Inputs'!Y22 -> 0.9
B120: ='I1 Inputs'!B23 -> Project 11 | C120: ='I1 Inputs'!T23 -> 0 | D120: 0 | E120: ='I1 Inputs'!U23 -> 0 | F120: ='I1 Inputs'!V23 -> 0 | H120: ='I1 Inputs'!B23 -> Project 11 | I120: ='I1 Inputs'!W23 -> 0 | J120: 0 | K120: ='I1 Inputs'!X23 -> 0 | L120: ='I1 Inputs'!Y23 -> 0
B121: ='I1 Inputs'!B24 -> Project 12 | C121: ='I1 Inputs'!T24 -> 0 | D121: 0 | E121: ='I1 Inputs'!U24 -> 0 | F121: ='I1 Inputs'!V24 -> 0 | H121: ='I1 Inputs'!B24 -> Project 12 | I121: ='I1 Inputs'!W24 -> 0 | J121: 0 | K121: ='I1 Inputs'!X24 -> 0 | L121: ='I1 Inputs'!Y24 -> 0
B122: ='I1 Inputs'!B25 -> Project 13 | C122: ='I1 Inputs'!T25 -> 0 | D122: 0 | E122: ='I1 Inputs'!U25 -> 0 | F122: ='I1 Inputs'!V25 -> 0 | H122: ='I1 Inputs'!B25 -> Project 13 | I122: ='I1 Inputs'!W25 -> 0 | J122: 0 | K122: ='I1 Inputs'!X25 -> 0 | L122: ='I1 Inputs'!Y25 -> 0
B123: ='I1 Inputs'!B26 -> Project 14 | C123: ='I1 Inputs'!T26 -> 0 | D123: 0 | E123: ='I1 Inputs'!U26 -> 0 | F123: ='I1 Inputs'!V26 -> 0 | H123: ='I1 Inputs'!B26 -> Project 14 | I123: ='I1 Inputs'!W26 -> 0 | J123: 0 | K123: ='I1 Inputs'!X26 -> 0 | L123: ='I1 Inputs'!Y26 -> 0
B124: ='I1 Inputs'!B27 -> Project 15 | C124: ='I1 Inputs'!T27 -> 0 | D124: 0 | E124: ='I1 Inputs'!U27 -> 0 | F124: ='I1 Inputs'!V27 -> 0 | H124: ='I1 Inputs'!B27 -> Project 15 | I124: ='I1 Inputs'!W27 -> 0 | J124: 0 | K124: ='I1 Inputs'!X27 -> 0 | L124: ='I1 Inputs'!Y27 -> 0
B125: ='I1 Inputs'!B28 -> Project 16 | C125: ='I1 Inputs'!T28 -> 0 | D125: 0 | E125: ='I1 Inputs'!U28 -> 0 | F125: ='I1 Inputs'!V28 -> 0 | H125: ='I1 Inputs'!B28 -> Project 16 | I125: ='I1 Inputs'!W28 -> 0 | J125: 0 | K125: ='I1 Inputs'!X28 -> 0 | L125: ='I1 Inputs'!Y28 -> 0
B126: ='I1 Inputs'!B29 -> Project 17 | C126: ='I1 Inputs'!T29 -> 0 | D126: 0 | E126: ='I1 Inputs'!U29 -> 0 | F126: ='I1 Inputs'!V29 -> 0 | H126: ='I1 Inputs'!B29 -> Project 17 | I126: ='I1 Inputs'!W29 -> 0 | J126: 0 | K126: ='I1 Inputs'!X29 -> 0 | L126: ='I1 Inputs'!Y29 -> 0
B127: ='I1 Inputs'!B30 -> Project 18 | C127: ='I1 Inputs'!T30 -> 0 | D127: 0 | E127: ='I1 Inputs'!U30 -> 0 | F127: ='I1 Inputs'!V30 -> 0 | H127: ='I1 Inputs'!B30 -> Project 18 | I127: ='I1 Inputs'!W30 -> 0 | J127: 0 | K127: ='I1 Inputs'!X30 -> 0 | L127: ='I1 Inputs'!Y30 -> 0
B128: ='I1 Inputs'!B31 -> Project 19 | C128: ='I1 Inputs'!T31 -> 0 | D128: 0 | E128: ='I1 Inputs'!U31 -> 0 | F128: ='I1 Inputs'!V31 -> 0 | H128: ='I1 Inputs'!B31 -> Project 19 | I128: ='I1 Inputs'!W31 -> 0 | J128: 0 | K128: ='I1 Inputs'!X31 -> 0 | L128: ='I1 Inputs'!Y31 -> 0
B129: ='I1 Inputs'!B32 -> Project 20 | C129: ='I1 Inputs'!T32 -> 0 | D129: 0 | E129: ='I1 Inputs'!U32 -> 0 | F129: ='I1 Inputs'!V32 -> 0 | H129: ='I1 Inputs'!B32 -> Project 20 | I129: ='I1 Inputs'!W32 -> 0 | J129: 0 | K129: ='I1 Inputs'!X32 -> 0 | L129: ='I1 Inputs'!Y32 -> 0
B130: ='I1 Inputs'!B33 -> Project 21 | C130: ='I1 Inputs'!T33 -> 0 | D130: 0 | E130: ='I1 Inputs'!U33 -> 0 | F130: ='I1 Inputs'!V33 -> 0 | H130: ='I1 Inputs'!B33 -> Project 21 | I130: ='I1 Inputs'!W33 -> 0 | J130: 0 | K130: ='I1 Inputs'!X33 -> 0 | L130: ='I1 Inputs'!Y33 -> 0
B131: ='I1 Inputs'!B34 -> Project 22 | C131: ='I1 Inputs'!T34 -> 0 | D131: 0 | E131: ='I1 Inputs'!U34 -> 0 | F131: ='I1 Inputs'!V34 -> 0 | H131: ='I1 Inputs'!B34 -> Project 22 | I131: ='I1 Inputs'!W34 -> 0 | J131: 0 | K131: ='I1 Inputs'!X34 -> 0 | L131: ='I1 Inputs'!Y34 -> 0
B132: ='I1 Inputs'!B35 -> Project 23 | C132: ='I1 Inputs'!T35 -> 0 | D132: 0 | E132: ='I1 Inputs'!U35 -> 0 | F132: ='I1 Inputs'!V35 -> 0 | H132: ='I1 Inputs'!B35 -> Project 23 | I132: ='I1 Inputs'!W35 -> 0 | J132: 0 | K132: ='I1 Inputs'!X35 -> 0 | L132: ='I1 Inputs'!Y35 -> 0
B133: ='I1 Inputs'!B36 -> Project 24 | C133: ='I1 Inputs'!T36 -> 0 | D133: 0 | E133: ='I1 Inputs'!U36 -> 0 | F133: ='I1 Inputs'!V36 -> 0 | H133: ='I1 Inputs'!B36 -> Project 24 | I133: ='I1 Inputs'!W36 -> 0 | J133: 0 | K133: ='I1 Inputs'!X36 -> 0 | L133: ='I1 Inputs'!Y36 -> 0
B134: ='I1 Inputs'!B37 -> Project 25 | C134: ='I1 Inputs'!T37 -> 0 | D134: 0 | E134: ='I1 Inputs'!U37 -> 0 | F134: ='I1 Inputs'!V37 -> 0 | H134: ='I1 Inputs'!B37 -> Project 25 | I134: ='I1 Inputs'!W37 -> 0 | J134: 0 | K134: ='I1 Inputs'!X37 -> 0 | L134: ='I1 Inputs'!Y37 -> 0
B135: ='I1 Inputs'!B38 -> Project 26 | C135: ='I1 Inputs'!T38 -> 0 | D135: 0 | E135: ='I1 Inputs'!U38 -> 0 | F135: ='I1 Inputs'!V38 -> 0 | H135: ='I1 Inputs'!B38 -> Project 26 | I135: ='I1 Inputs'!W38 -> 0 | J135: 0 | K135: ='I1 Inputs'!X38 -> 0 | L135: ='I1 Inputs'!Y38 -> 0
B136: ='I1 Inputs'!B39 -> Project 27 | C136: ='I1 Inputs'!T39 -> 0 | D136: 0 | E136: ='I1 Inputs'!U39 -> 0 | F136: ='I1 Inputs'!V39 -> 0 | H136: ='I1 Inputs'!B39 -> Project 27 | I136: ='I1 Inputs'!W39 -> 0 | J136: 0 | K136: ='I1 Inputs'!X39 -> 0 | L136: ='I1 Inputs'!Y39 -> 0
B137: ='I1 Inputs'!B40 -> Project 28 | C137: ='I1 Inputs'!T40 -> 0 | D137: 0 | E137: ='I1 Inputs'!U40 -> 0 | F137: ='I1 Inputs'!V40 -> 0 | H137: ='I1 Inputs'!B40 -> Project 28 | I137: ='I1 Inputs'!W40 -> 0 | J137: 0 | K137: ='I1 Inputs'!X40 -> 0 | L137: ='I1 Inputs'!Y40 -> 0
B138: ='I1 Inputs'!B41 -> Project 29 | C138: ='I1 Inputs'!T41 -> 0 | D138: 0 | E138: ='I1 Inputs'!U41 -> 0 | F138: ='I1 Inputs'!V41 -> 0 | H138: ='I1 Inputs'!B41 -> Project 29 | I138: ='I1 Inputs'!W41 -> 0 | J138: 0 | K138: ='I1 Inputs'!X41 -> 0 | L138: ='I1 Inputs'!Y41 -> 0
B139: ='I1 Inputs'!B42 -> Project 30 | C139: ='I1 Inputs'!T42 -> 0 | D139: 0 | E139: ='I1 Inputs'!U42 -> 0 | F139: ='I1 Inputs'!V42 -> 0 | H139: ='I1 Inputs'!B42 -> Project 30 | I139: ='I1 Inputs'!W42 -> 0 | J139: 0 | K139: ='I1 Inputs'!X42 -> 0 | L139: ='I1 Inputs'!Y42 -> 0
